Department Family,Entity,Date,Expense Type,Expense area,Supplier,Transaction Number,Amount,VAT registration Number
Department of Health,Salisbury NHS Foundation Trust,12/10/2020,ETS UNITARY CHARGE,Finance charges & Reserves,SALISBURY HEALTHCARE FACILITIES LTD,480,337712.6,
Department of Health,Salisbury NHS Foundation Trust,30/10/2020,HEALTHCARE - NHS TRUSTS,Corporate - Transformation & Informatics,PORTSMOUTH HOSPITALS UNIVERSITY NHS TRUST,9410497,186746.96,
Department of Health,Salisbury NHS Foundation Trust,12/10/2020,ENERGY - GAS,Facilities,TOTAL GAS AND POWER LTD,221387512/20,33998.85,
Department of Health,Salisbury NHS Foundation Trust,12/10/2020,ENERGY - GAS,Facilities,TOTAL GAS AND POWER LTD,221387512/20,148.91,
Department of Health,Salisbury NHS Foundation Trust,12/10/2020,ENERGY - GAS,Facilities,TOTAL GAS AND POWER LTD,221387512/20,6204.12,
Department of Health,Salisbury NHS Foundation Trust,23/10/2020,POSTAGE & CARRIAGE,Facilities,PITNEY BOWES LTD,BH664989,26793.61,
Department of Health,Salisbury NHS Foundation Trust,23/10/2020,ETS UNITARY CHARGE,Finance charges & Reserves,SALISBURY HEALTHCARE FACILITIES LTD,481,327090.62,
Department of Health,Salisbury NHS Foundation Trust,02/10/2020,DRUGS,Clinical Support,LLOYDSPHARMACY CLINICAL HOMECARE,SINV4356757,25525.3,
Department of Health,Salisbury NHS Foundation Trust,02/10/2020,DRUGS,Clinical Support,LLOYDSPHARMACY CLINICAL HOMECARE,SINV4333311,25473.3,
Department of Health,Salisbury NHS Foundation Trust,02/10/2020,DRUGS,Clinical Support,BAYER PLC,824C303206,22811.4,
Department of Health,Salisbury NHS Foundation Trust,02/10/2020,DRUGS,Clinical Support,BAYER PLC,824C303206,4562.28,
Department of Health,Salisbury NHS Foundation Trust,02/10/2020,NETWORKING COSTS,Capital,SPECIALIST COMPUTER CENTRES PLC,OP/M819759,36271.44,
Department of Health,Salisbury NHS Foundation Trust,02/10/2020,NETWORKING COSTS,Capital,SPECIALIST COMPUTER CENTRES PLC,OP/M819759,7254.29,
Department of Health,Salisbury NHS Foundation Trust,02/10/2020,HARD/SOFTWARE-CONSUMABLE(NOT PAPER),Corporate - Transformation & Informatics,SOFTCAT LIMITED,INV02684127,139268.64,
Department of Health,Salisbury NHS Foundation Trust,02/10/2020,HARD/SOFTWARE-CONSUMABLE(NOT PAPER),Corporate - Transformation & Informatics,SOFTCAT LIMITED,INV02684127,6024.36,
Department of Health,Salisbury NHS Foundation Trust,02/10/2020,HARD/SOFTWARE-CONSUMABLE(NOT PAPER),Corporate - Transformation & Informatics,SOFTCAT LIMITED,INV02684127,154644,
Department of Health,Salisbury NHS Foundation Trust,02/10/2020,HARD/SOFTWARE-CONSUMABLE(NOT PAPER),Corporate - Transformation & Informatics,SOFTCAT LIMITED,INV02684127,33516,
Department of Health,Salisbury NHS Foundation Trust,02/10/2020,HARD/SOFTWARE-CONSUMABLE(NOT PAPER),Corporate - Transformation & Informatics,SOFTCAT LIMITED,INV02684127,3312,
Department of Health,Salisbury NHS Foundation Trust,02/10/2020,HARD/SOFTWARE-CONSUMABLE(NOT PAPER),Corporate - Transformation & Informatics,SOFTCAT LIMITED,INV02684127,25.2,
Department of Health,Salisbury NHS Foundation Trust,02/10/2020,HARD/SOFTWARE-CONSUMABLE(NOT PAPER),Corporate - Transformation & Informatics,SOFTCAT LIMITED,INV02684127,27853.73,
Department of Health,Salisbury NHS Foundation Trust,02/10/2020,HARD/SOFTWARE-CONSUMABLE(NOT PAPER),Corporate - Transformation & Informatics,SOFTCAT LIMITED,INV02684127,1204.87,
Department of Health,Salisbury NHS Foundation Trust,02/10/2020,HARD/SOFTWARE-CONSUMABLE(NOT PAPER),Corporate - Transformation & Informatics,SOFTCAT LIMITED,INV02684127,30928.8,
Department of Health,Salisbury NHS Foundation Trust,02/10/2020,HARD/SOFTWARE-CONSUMABLE(NOT PAPER),Corporate - Transformation & Informatics,SOFTCAT LIMITED,INV02684127,6703.2,
Department of Health,Salisbury NHS Foundation Trust,02/10/2020,HARD/SOFTWARE-CONSUMABLE(NOT PAPER),Corporate - Transformation & Informatics,SOFTCAT LIMITED,INV02684127,662.4,
Department of Health,Salisbury NHS Foundation Trust,02/10/2020,HARD/SOFTWARE-CONSUMABLE(NOT PAPER),Corporate - Transformation & Informatics,SOFTCAT LIMITED,INV02684127,5.04,
Department of Health,Salisbury NHS Foundation Trust,02/10/2020,DRUGS,Clinical Support,SEQIRUS VACCINES LIMITED,9160068398,22500,
Department of Health,Salisbury NHS Foundation Trust,02/10/2020,DRUGS,Clinical Support,SEQIRUS VACCINES LIMITED,9160068398,4500,
Department of Health,Salisbury NHS Foundation Trust,02/10/2020,MEDSURGCONS-OTHER,Medicine,NHS LOGISTICS,1121102380,50,
Department of Health,Salisbury NHS Foundation Trust,02/10/2020,MEDSURGCONS-OTHER,Surgery,NHS LOGISTICS,1121102380,25.4,
Department of Health,Salisbury NHS Foundation Trust,02/10/2020,MEDSURGCONS-OTHER,Surgery,NHS LOGISTICS,1121102380,117.92,
Department of Health,Salisbury NHS Foundation Trust,12/10/2020,ENERGY - WATER,Facilities,BWBSL,1056276982,33581.14,
Department of Health,Salisbury NHS Foundation Trust,12/10/2020,ENERGY - SEWERAGE,Facilities,BWBSL,1056276982,12002.3,
Department of Health,Salisbury NHS Foundation Trust,30/10/2020,COSTS TO OTHER LABS,Clinical Support,UNIVERSITY HOSPITAL SOUTHAMPTON NHS FOUNDATION TRUST,1029601,26489.03,
Department of Health,Salisbury NHS Foundation Trust,02/10/2020,DRESSINGS  -  PROCEDURE PACKS,Capital,PROMEGA UK LIMITED,212247533,38650.75,
Department of Health,Salisbury NHS Foundation Trust,02/10/2020,DRESSINGS  -  PROCEDURE PACKS,Capital,PROMEGA UK LIMITED,212247533,65,
Department of Health,Salisbury NHS Foundation Trust,02/10/2020,DRESSINGS  -  PROCEDURE PACKS,Capital,PROMEGA UK LIMITED,212247533,7730.15,
Department of Health,Salisbury NHS Foundation Trust,02/10/2020,DRESSINGS  -  PROCEDURE PACKS,Capital,PROMEGA UK LIMITED,212247533,13,
Department of Health,Salisbury NHS Foundation Trust,02/10/2020,HEALTHCARE SERVICES-CONT CLIN SERV,Clinical Support,PREVENTX LIMITED,PY714352,26897,
Department of Health,Salisbury NHS Foundation Trust,02/10/2020,MEDSURGCONS-OTHER,Medicine,NHS LOGISTICS,1121102380,25.4,
Department of Health,Salisbury NHS Foundation Trust,02/10/2020,MEDSURGCONS-OTHER,Medicine,NHS LOGISTICS,1121102380,25.35,
Department of Health,Salisbury NHS Foundation Trust,02/10/2020,MEDSURGCONS-OTHER,Surgery,NHS LOGISTICS,1121102380,4.5,
Department of Health,Salisbury NHS Foundation Trust,02/10/2020,MEDSURGCONS-OTHER,Surgery,NHS LOGISTICS,1121102380,84.52,
Department of Health,Salisbury NHS Foundation Trust,02/10/2020,MEDSURGCONS-OTHER,Surgery,NHS LOGISTICS,1121102380,168.24,
Department of Health,Salisbury NHS Foundation Trust,02/10/2020,MEDSURGCONS-OTHER,Surgery,NHS LOGISTICS,1121102380,114.4,
Department of Health,Salisbury NHS Foundation Trust,02/10/2020,LAB EQUIP-LABORATORY APPARATUS,Clinical Support,NHS LOGISTICS,1121102380,71.84,
Department of Health,Salisbury NHS Foundation Trust,02/10/2020,LAB EQUIP-LABORATORY APPARATUS,Clinical Support,NHS LOGISTICS,1121102380,81.58,
Department of Health,Salisbury NHS Foundation Trust,02/10/2020,LAB EQUIP-LABORATORY APPARATUS,Clinical Support,NHS LOGISTICS,1121102380,103.52,
Department of Health,Salisbury NHS Foundation Trust,02/10/2020,NON DISPOSABLE THEATRE DRAPES WIPES,Clinical Support,NHS LOGISTICS,1121102380,82.3,
Department of Health,Salisbury NHS Foundation Trust,02/10/2020,MEDSURGCONS-OTHER,Surgery,NHS LOGISTICS,1121102380,87.7,
Department of Health,Salisbury NHS Foundation Trust,02/10/2020,MEDSURGCONS-OTHER,Musculo-Skeletal,NHS LOGISTICS,1121102380,25.35,
Department of Health,Salisbury NHS Foundation Trust,02/10/2020,PAPER GENERAL STATIONERY SUNDRIES,Musculo-Skeletal,NHS LOGISTICS,1121102380,16.06,
Department of Health,Salisbury NHS Foundation Trust,02/10/2020,PAPER GENERAL STATIONERY SUNDRIES,Musculo-Skeletal,NHS LOGISTICS,1121102380,64.16,
Department of Health,Salisbury NHS Foundation Trust,02/10/2020,MEDSURGCONS-OTHER,Medicine,NHS LOGISTICS,1121102380,19.75,
Department of Health,Salisbury NHS Foundation Trust,02/10/2020,MEDSURGCONS-OTHER,Medicine,NHS LOGISTICS,1121102380,33.5,
Department of Health,Salisbury NHS Foundation Trust,02/10/2020,MEDSURGCONS-OTHER,Medicine,NHS LOGISTICS,1121102380,67,
Department of Health,Salisbury NHS Foundation Trust,02/10/2020,MED PROSTH - PACEMAKERS,Medicine,NHS LOGISTICS,1121102380,80,
Department of Health,Salisbury NHS Foundation Trust,02/10/2020,MED PROSTH - PACEMAKERS,Medicine,NHS LOGISTICS,1121102380,480,
Department of Health,Salisbury NHS Foundation Trust,02/10/2020,MED PROSTH - PACEMAKERS,Medicine,NHS LOGISTICS,1121102380,244.5,
Department of Health,Salisbury NHS Foundation Trust,02/10/2020,MED PROSTH - PACEMAKERS,Medicine,NHS LOGISTICS,1121102380,80,
Department of Health,Salisbury NHS Foundation Trust,02/10/2020,PATIENT APPLIANCES,Medicine,NHS LOGISTICS,1121102380,7,
Department of Health,Salisbury NHS Foundation Trust,02/10/2020,ADULTS HEARING AIDS,Surgery,NHS LOGISTICS,1121102380,175,
Department of Health,Salisbury NHS Foundation Trust,02/10/2020,MEDSURGCONS-OTHER,Surgery,NHS LOGISTICS,1121102380,9.1,
Department of Health,Salisbury NHS Foundation Trust,02/10/2020,MEDSURGCONS-OTHER,Medicine,NHS LOGISTICS,1121102380,67,
Department of Health,Salisbury NHS Foundation Trust,02/10/2020,LAB EQUIP-LABORATORY APPARATUS,Clinical Support,NHS LOGISTICS,1121102380,94.42,
Department of Health,Salisbury NHS Foundation Trust,02/10/2020,MEDSURGCONS-OTHER,Medicine,NHS LOGISTICS,1121102380,33.5,
Department of Health,Salisbury NHS Foundation Trust,02/10/2020,MEDSURGCONS-OTHER,Medicine,NHS LOGISTICS,1121102380,67,
Department of Health,Salisbury NHS Foundation Trust,02/10/2020,TOILETRIES PERSONAL HYGIENE PRODUCT,Clinical Support,NHS LOGISTICS,1121102380,13.4,
Department of Health,Salisbury NHS Foundation Trust,02/10/2020,TOILETRIES PERSONAL HYGIENE PRODUCT,Clinical Support,NHS LOGISTICS,1121102380,25.76,
Department of Health,Salisbury NHS Foundation Trust,02/10/2020,MEDSURGCONS-OTHER,Medicine,NHS LOGISTICS,1121102380,25.4,
Department of Health,Salisbury NHS Foundation Trust,02/10/2020,MEDSURGCONS-OTHER,Surgery,NHS LOGISTICS,1121102380,211.6,
Department of Health,Salisbury NHS Foundation Trust,02/10/2020,MEDSURGCONS-LAPAROSCOPIC EQUIPMENT,Surgery,NHS LOGISTICS,1121102380,60,
Department of Health,Salisbury NHS Foundation Trust,02/10/2020,MEDSURGCONS-OTHER,Surgery,NHS LOGISTICS,1121102380,43.85,
Department of Health,Salisbury NHS Foundation Trust,02/10/2020,PAPER GENERAL STATIONERY SUNDRIES,Facilities,NHS LOGISTICS,1121102380,40.15,
Department of Health,Salisbury NHS Foundation Trust,02/10/2020,MEDSURGCONS-OTHER,Clinical Support,NHS LOGISTICS,1121102380,100,
Department of Health,Salisbury NHS Foundation Trust,02/10/2020,MEDSURGCONS-OTHER,Medicine,NHS LOGISTICS,1121102380,25.4,
Department of Health,Salisbury NHS Foundation Trust,02/10/2020,DRESSINGS - PRE STERILE,Surgery,NHS LOGISTICS,1121102380,13.63,
Department of Health,Salisbury NHS Foundation Trust,02/10/2020,DRESSINGS - PRE STERILE,Clinical Support,NHS LOGISTICS,1121102380,97,
Department of Health,Salisbury NHS Foundation Trust,02/10/2020,DRESSINGS - PRE STERILE,Clinical Support,NHS LOGISTICS,1121102380,69.99,
Department of Health,Salisbury NHS Foundation Trust,02/10/2020,DRESSINGS - PRE STERILE,Musculo-Skeletal,NHS LOGISTICS,1121102380,43.8,
Department of Health,Salisbury NHS Foundation Trust,02/10/2020,DRESSINGS - PRE STERILE,Surgery,NHS LOGISTICS,1121102380,69.99,
Department of Health,Salisbury NHS Foundation Trust,02/10/2020,PAPER GENERAL STATIONERY SUNDRIES,Clinical Support,NHS LOGISTICS,1121102380,16.06,
Department of Health,Salisbury NHS Foundation Trust,02/10/2020,PAPER GENERAL STATIONERY SUNDRIES,Corporate - Finance & Procurement,NHS LOGISTICS,1121102380,16.06,
Department of Health,Salisbury NHS Foundation Trust,02/10/2020,PAPER GENERAL STATIONERY SUNDRIES,Corporate - Finance & Procurement,NHS LOGISTICS,1121102380,64.16,
Department of Health,Salisbury NHS Foundation Trust,02/10/2020,M & S EQUIPELECTEQUIPINST - OTHER,Clinical Support,NHS LOGISTICS,1121102380,58,
Department of Health,Salisbury NHS Foundation Trust,02/10/2020,MEDSURGCONS-OTHER,Medicine,NHS LOGISTICS,1121102380,25,
Department of Health,Salisbury NHS Foundation Trust,02/10/2020,MEDSURGCONS-OTHER,Medicine,NHS LOGISTICS,1121102380,850,
Department of Health,Salisbury NHS Foundation Trust,02/10/2020,MEDSURGCONS-OTHER,Medicine,NHS LOGISTICS,1121102380,25,
Department of Health,Salisbury NHS Foundation Trust,02/10/2020,MEDSURGCONS-OTHER,Medicine,NHS LOGISTICS,1121102380,25,
Department of Health,Salisbury NHS Foundation Trust,02/10/2020,MEDSURGCONS-OTHER,Medicine,NHS LOGISTICS,1121102380,248,
Department of Health,Salisbury NHS Foundation Trust,02/10/2020,MEDSURGCONS-OTHER,Medicine,NHS LOGISTICS,1121102380,320,
Department of Health,Salisbury NHS Foundation Trust,02/10/2020,MEDSURGCONS-OTHER,Medicine,NHS LOGISTICS,1121102380,70,
Department of Health,Salisbury NHS Foundation Trust,02/10/2020,MEDSURGCONS-OTHER,Medicine,NHS LOGISTICS,1121102380,42,
Department of Health,Salisbury NHS Foundation Trust,02/10/2020,MEDSURGCONS-OTHER,Medicine,NHS LOGISTICS,1121102380,21,
Department of Health,Salisbury NHS Foundation Trust,02/10/2020,MED PROSTH - PACEMAKERS,Medicine,NHS LOGISTICS,1121102380,50,
Department of Health,Salisbury NHS Foundation Trust,02/10/2020,MED PROSTH - PACEMAKERS,Medicine,NHS LOGISTICS,1121102380,80,
Department of Health,Salisbury NHS Foundation Trust,02/10/2020,MED PROSTH - PACEMAKERS,Medicine,NHS LOGISTICS,1121102380,660,
Department of Health,Salisbury NHS Foundation Trust,02/10/2020,MEDSURGCONS-OTHER,Medicine,NHS LOGISTICS,1121102380,215,
Department of Health,Salisbury NHS Foundation Trust,02/10/2020,MEDSURGCONS-OTHER,Medicine,NHS LOGISTICS,1121102380,25.4,
Department of Health,Salisbury NHS Foundation Trust,02/10/2020,MEDSURGCONS-OTHER,Medicine,NHS LOGISTICS,1121102380,42.75,
Department of Health,Salisbury NHS Foundation Trust,02/10/2020,MEDSURGCONS-OTHER,Medicine,NHS LOGISTICS,1121102380,25.4,
Department of Health,Salisbury NHS Foundation Trust,02/10/2020,DISPOSABLE THEATRE DRAPES WIPES,Clinical Support,NHS LOGISTICS,1121102380,5.43,
Department of Health,Salisbury NHS Foundation Trust,02/10/2020,NON DISPOSABLE BED LINEN,Clinical Support,NHS LOGISTICS,1121102380,5.64,
Department of Health,Salisbury NHS Foundation Trust,02/10/2020,SURGICAL INSTRUMENTS - GENERAL,Medicine,NHS LOGISTICS,1121102380,244.5,
Department of Health,Salisbury NHS Foundation Trust,02/10/2020,DRESSINGS - PRE STERILE,Musculo-Skeletal,NHS LOGISTICS,1121102380,15.2,
Department of Health,Salisbury NHS Foundation Trust,02/10/2020,DRESSINGS - PRE STERILE,Musculo-Skeletal,NHS LOGISTICS,1121102380,118.8,
Department of Health,Salisbury NHS Foundation Trust,02/10/2020,DISPOSABLE THEATRE DRAPES WIPES,Corporate - OD and People,NHS LOGISTICS,1121102380,4.2,
Department of Health,Salisbury NHS Foundation Trust,02/10/2020,PATIENTS BEDWEAR UNISEX,Musculo-Skeletal,NHS LOGISTICS,1121102380,97.23,
Department of Health,Salisbury NHS Foundation Trust,02/10/2020,MEDSURGCONS-OTHER,Surgery,NHS LOGISTICS,1121102380,301.99,
Department of Health,Salisbury NHS Foundation Trust,02/10/2020,MEDSURGCONS-OTHER,Surgery,NHS LOGISTICS,1121102380,360,
Department of Health,Salisbury NHS Foundation Trust,02/10/2020,OTHER MEDICAL SUPPLIES,Medicine,NHS LOGISTICS,1121102380,156,
Department of Health,Salisbury NHS Foundation Trust,02/10/2020,OTHER MEDICAL SUPPLIES,Surgery,NHS LOGISTICS,1121102380,55,
Department of Health,Salisbury NHS Foundation Trust,02/10/2020,OTHER MEDICAL SUPPLIES,Medicine,NHS LOGISTICS,1121102380,30.66,
Department of Health,Salisbury NHS Foundation Trust,02/10/2020,MEDSURGCONS-OTHER,Medicine,NHS LOGISTICS,1121102380,52,
Department of Health,Salisbury NHS Foundation Trust,02/10/2020,MEDSURGCONS-OTHER,Medicine,NHS LOGISTICS,1121102380,10,
Department of Health,Salisbury NHS Foundation Trust,02/10/2020,MEDSURGCONS-OTHER,Medicine,NHS LOGISTICS,1121102380,540,
Department of Health,Salisbury NHS Foundation Trust,02/10/2020,MEDSURGCONS-OTHER,Medicine,NHS LOGISTICS,1121102380,215,
Department of Health,Salisbury NHS Foundation Trust,02/10/2020,MEDSURGCONS-OTHER,Clinical Support,NHS LOGISTICS,1121102380,28.4,
Department of Health,Salisbury NHS Foundation Trust,02/10/2020,MEDSURGCONS-OTHER,Musculo-Skeletal,NHS LOGISTICS,1121102380,211.6,
Department of Health,Salisbury NHS Foundation Trust,02/10/2020,DRESSINGS - PRE STERILE,Medicine,NHS LOGISTICS,1121102380,22.68,
Department of Health,Salisbury NHS Foundation Trust,02/10/2020,DRESSINGS - PRE STERILE,Medicine,NHS LOGISTICS,1121102380,2,
Department of Health,Salisbury NHS Foundation Trust,02/10/2020,DRESSINGS - PRE STERILE,Medicine,NHS LOGISTICS,1121102380,12.55,
Department of Health,Salisbury NHS Foundation Trust,02/10/2020,LAB REAGENTS-BUFFERS COMPUND SOLNS,Medicine,NHS LOGISTICS,1121102380,11.47,
Department of Health,Salisbury NHS Foundation Trust,02/10/2020,DRESSINGS  -  PROCEDURE PACKS,Corporate - Finance & Procurement,NHS LOGISTICS,1121102380,483,
Department of Health,Salisbury NHS Foundation Trust,02/10/2020,DRESSINGS  -  PROCEDURE PACKS,Corporate - Finance & Procurement,NHS LOGISTICS,1121102380,394.2,
Department of Health,Salisbury NHS Foundation Trust,02/10/2020,BAGS SACKS - OTHER,Facilities,NHS LOGISTICS,1121102380,12.18,
Department of Health,Salisbury NHS Foundation Trust,02/10/2020,BAGS SACKS - OTHER,Facilities,NHS LOGISTICS,1121102380,8.28,
Department of Health,Salisbury NHS Foundation Trust,02/10/2020,CLEANING MATERIAL PRODUCTS SUNDRIES,Facilities,NHS LOGISTICS,1121102380,43.78,
Department of Health,Salisbury NHS Foundation Trust,02/10/2020,LIQUID REFRESHMENTS,Facilities,NHS LOGISTICS,1121102380,5.4,
Department of Health,Salisbury NHS Foundation Trust,02/10/2020,BAGS SACKS - OTHER,Facilities,NHS LOGISTICS,1121102380,100.8,
Department of Health,Salisbury NHS Foundation Trust,02/10/2020,BAGS SACKS - OTHER,Facilities,NHS LOGISTICS,1121102380,48.96,
Department of Health,Salisbury NHS Foundation Trust,02/10/2020,CONTOUTSERVICES - OTHER,Facilities,NHS LOGISTICS,1121102380,235.2,
Department of Health,Salisbury NHS Foundation Trust,02/10/2020,CLEANING MATERIAL PRODUCTS SUNDRIES,Facilities,NHS LOGISTICS,1121102380,147.5,
Department of Health,Salisbury NHS Foundation Trust,02/10/2020,CLEANING MATERIAL PRODUCTS SUNDRIES,Facilities,NHS LOGISTICS,1121102380,63.72,
Department of Health,Salisbury NHS Foundation Trust,02/10/2020,TISSUES HAND TOWELS & TOILET PAPER,Facilities,NHS LOGISTICS,1121102380,189.72,
Department of Health,Salisbury NHS Foundation Trust,02/10/2020,TISSUES HAND TOWELS & TOILET PAPER,Facilities,NHS LOGISTICS,1121102380,757.92,
Department of Health,Salisbury NHS Foundation Trust,02/10/2020,CLEANING MATERIAL PRODUCTS SUNDRIES,Facilities,NHS LOGISTICS,1121102380,20.5,
Department of Health,Salisbury NHS Foundation Trust,02/10/2020,DISPOSABLE THEATRE DRAPES WIPES,Facilities,NHS LOGISTICS,1121102380,145.92,
Department of Health,Salisbury NHS Foundation Trust,02/10/2020,MEDSURGCONS-OTHER,Musculo-Skeletal,NHS LOGISTICS,1121102380,29.95,
Department of Health,Salisbury NHS Foundation Trust,02/10/2020,PATIENTS BABY WEAR,Medicine,NHS LOGISTICS,1121102380,26.64,
Department of Health,Salisbury NHS Foundation Trust,02/10/2020,PATIENTS BABY WEAR,Medicine,NHS LOGISTICS,1121102380,24.68,
Department of Health,Salisbury NHS Foundation Trust,02/10/2020,OTHER MEDICAL SUPPLIES,Medicine,NHS LOGISTICS,1121102380,23,
Department of Health,Salisbury NHS Foundation Trust,02/10/2020,DRESSINGS - PRE STERILE,Medicine,NHS LOGISTICS,1121102380,1.46,
Department of Health,Salisbury NHS Foundation Trust,02/10/2020,M & S EQUIPELECTEQUIPINST - OTHER,Medicine,NHS LOGISTICS,1121102380,6.76,
Department of Health,Salisbury NHS Foundation Trust,02/10/2020,TOILETRIES PERSONAL HYGIENE PRODUCT,Medicine,NHS LOGISTICS,1121102380,7.98,
Department of Health,Salisbury NHS Foundation Trust,02/10/2020,TISSUES HAND TOWELS & TOILET PAPER,Medicine,NHS LOGISTICS,1121102380,1.22,
Department of Health,Salisbury NHS Foundation Trust,02/10/2020,CLEANING MATERIAL PRODUCTS SUNDRIES,Medicine,NHS LOGISTICS,1121102380,6.6,
Department of Health,Salisbury NHS Foundation Trust,02/10/2020,TISSUES HAND TOWELS & TOILET PAPER,Medicine,NHS LOGISTICS,1121102380,1.5,
Department of Health,Salisbury NHS Foundation Trust,02/10/2020,PATIENTS INCONTINENCE,Medicine,NHS LOGISTICS,1121102380,2.29,
Department of Health,Salisbury NHS Foundation Trust,02/10/2020,PATIENTS INCONTINENCE,Medicine,NHS LOGISTICS,1121102380,9.44,
Department of Health,Salisbury NHS Foundation Trust,02/10/2020,M & S EQUIPELECTEQUIPINST - OTHER,Medicine,NHS LOGISTICS,1121102380,29.6,
Department of Health,Salisbury NHS Foundation Trust,02/10/2020,DRESSINGS  -  PROCEDURE PACKS,Medicine,NHS LOGISTICS,1121102380,1.4,
Department of Health,Salisbury NHS Foundation Trust,02/10/2020,MEDSURGCONS-OTHER,Medicine,NHS LOGISTICS,1121102380,5,
Department of Health,Salisbury NHS Foundation Trust,02/10/2020,SURGICAL INSTRUMENTS - DISPOSABLE,Medicine,NHS LOGISTICS,1121102380,4.5,
Department of Health,Salisbury NHS Foundation Trust,02/10/2020,PATIENTS INCONTINENCE,Medicine,NHS LOGISTICS,1121102380,16.86,
Department of Health,Salisbury NHS Foundation Trust,02/10/2020,PATIENT APPLIANCES,Medicine,NHS LOGISTICS,1121102380,4,
Department of Health,Salisbury NHS Foundation Trust,02/10/2020,PATIENT APPLIANCES,Medicine,NHS LOGISTICS,1121102380,2.5,
Department of Health,Salisbury NHS Foundation Trust,02/10/2020,PATIENT APPLIANCES,Medicine,NHS LOGISTICS,1121102380,4,
Department of Health,Salisbury NHS Foundation Trust,02/10/2020,TOILETRIES PERSONAL HYGIENE PRODUCT,Medicine,NHS LOGISTICS,1121102380,2.88,
Department of Health,Salisbury NHS Foundation Trust,02/10/2020,DRESSINGS - PRE STERILE,Medicine,NHS LOGISTICS,1121102380,2.04,
Department of Health,Salisbury NHS Foundation Trust,02/10/2020,MEDSURGCONS-OTHER,Medicine,NHS LOGISTICS,1121102380,11.2,
Department of Health,Salisbury NHS Foundation Trust,02/10/2020,NON DISPOSABLE BED LINEN,Medicine,NHS LOGISTICS,1121102380,22.56,
Department of Health,Salisbury NHS Foundation Trust,02/10/2020,PATIENT APPLIANCES,Medicine,NHS LOGISTICS,1121102380,4.34,
Department of Health,Salisbury NHS Foundation Trust,02/10/2020,PATIENT APPLIANCES,Medicine,NHS LOGISTICS,1121102380,16.16,
Department of Health,Salisbury NHS Foundation Trust,02/10/2020,DISPOSABLE THEATRE DRAPES WIPES,Medicine,NHS LOGISTICS,1121102380,39.02,
Department of Health,Salisbury NHS Foundation Trust,02/10/2020,TISSUES HAND TOWELS & TOILET PAPER,Clinical Support,NHS LOGISTICS,1121102380,21.06,
Department of Health,Salisbury NHS Foundation Trust,02/10/2020,DRESSINGS - PRE STERILE,Clinical Support,NHS LOGISTICS,1121102380,1,
Department of Health,Salisbury NHS Foundation Trust,02/10/2020,MEDSURGCONS-OTHER,Clinical Support,NHS LOGISTICS,1121102380,3.38,
Department of Health,Salisbury NHS Foundation Trust,02/10/2020,DRESSINGS - PRE STERILE,Clinical Support,NHS LOGISTICS,1121102380,0.71,
Department of Health,Salisbury NHS Foundation Trust,02/10/2020,DRESSINGS  -  PROCEDURE PACKS,Clinical Support,NHS LOGISTICS,1121102380,6.4,
Department of Health,Salisbury NHS Foundation Trust,02/10/2020,DRESSINGS - PRE STERILE,Clinical Support,NHS LOGISTICS,1121102380,2.64,
Department of Health,Salisbury NHS Foundation Trust,02/10/2020,MEDSURGCONS-OTHER,Clinical Support,NHS LOGISTICS,1121102380,7.78,
Department of Health,Salisbury NHS Foundation Trust,02/10/2020,DISPOSABLE THEATRE DRAPES WIPES,Clinical Support,NHS LOGISTICS,1121102380,39.02,
Department of Health,Salisbury NHS Foundation Trust,02/10/2020,PATIENTS BABY WEAR,Medicine,NHS LOGISTICS,1121102380,26.64,
Department of Health,Salisbury NHS Foundation Trust,02/10/2020,PATIENTS BABY WEAR,Medicine,NHS LOGISTICS,1121102380,18.51,
Department of Health,Salisbury NHS Foundation Trust,02/10/2020,MEDSURGCONS-OTHER,Medicine,NHS LOGISTICS,1121102380,7.94,
Department of Health,Salisbury NHS Foundation Trust,02/10/2020,MED SURG EQUIP REP MAINT CLEANING,Medicine,NHS LOGISTICS,1121102380,43.05,
Department of Health,Salisbury NHS Foundation Trust,02/10/2020,MEDSURGCONS-OTHER,Medicine,NHS LOGISTICS,1121102380,3.38,
Department of Health,Salisbury NHS Foundation Trust,02/10/2020,OTHER MEDICAL SUPPLIES,Medicine,NHS LOGISTICS,1121102380,1.34,
Department of Health,Salisbury NHS Foundation Trust,02/10/2020,MEDSURGCONS-OTHER,Medicine,NHS LOGISTICS,1121102380,3.53,
Department of Health,Salisbury NHS Foundation Trust,02/10/2020,TISSUES HAND TOWELS & TOILET PAPER,Medicine,NHS LOGISTICS,1121102380,0.6,
Department of Health,Salisbury NHS Foundation Trust,02/10/2020,DISPOSABLE THEATRE DRAPES WIPES,Medicine,NHS LOGISTICS,1121102380,19.51,
Department of Health,Salisbury NHS Foundation Trust,02/10/2020,DRESSINGS - PRE STERILE,Medicine,NHS LOGISTICS,1121102380,120,
Department of Health,Salisbury NHS Foundation Trust,02/10/2020,MEDSURGCONS-OTHER,Clinical Support,NHS LOGISTICS,1121102380,27.67,
Department of Health,Salisbury NHS Foundation Trust,02/10/2020,HEALTHCARE - WEAR,Musculo-Skeletal,NHS LOGISTICS,1121102380,29.4,
Department of Health,Salisbury NHS Foundation Trust,02/10/2020,TISSUES HAND TOWELS & TOILET PAPER,Musculo-Skeletal,NHS LOGISTICS,1121102380,0.27,
Department of Health,Salisbury NHS Foundation Trust,02/10/2020,HEALTHCARE - WEAR,Musculo-Skeletal,NHS LOGISTICS,1121102380,4.92,
Department of Health,Salisbury NHS Foundation Trust,02/10/2020,DRESSINGS - PRE STERILE,Musculo-Skeletal,NHS LOGISTICS,1121102380,0.71,
Department of Health,Salisbury NHS Foundation Trust,02/10/2020,MEDSURGCONS-OTHER,Musculo-Skeletal,NHS LOGISTICS,1121102380,39.38,
Department of Health,Salisbury NHS Foundation Trust,02/10/2020,MEDSURGCONS-OTHER,Musculo-Skeletal,NHS LOGISTICS,1121102380,39.38,
Department of Health,Salisbury NHS Foundation Trust,02/10/2020,MEDSURGCONS-OTHER,Musculo-Skeletal,NHS LOGISTICS,1121102380,39.38,
Department of Health,Salisbury NHS Foundation Trust,02/10/2020,MEDSURGCONS-OTHER,Musculo-Skeletal,NHS LOGISTICS,1121102380,5.6,
Department of Health,Salisbury NHS Foundation Trust,02/10/2020,DISPOSABLE THEATRE DRAPES WIPES,Musculo-Skeletal,NHS LOGISTICS,1121102380,19.51,
Department of Health,Salisbury NHS Foundation Trust,02/10/2020,ELECTRICAL EQUIPMENT,Clinical Support,NHS LOGISTICS,1121102380,8.88,
Department of Health,Salisbury NHS Foundation Trust,02/10/2020,OTHER MEDICAL SUPPLIES,Surgery,NHS LOGISTICS,1121102380,41,
Department of Health,Salisbury NHS Foundation Trust,02/10/2020,DRESSINGS - PRE STERILE,Surgery,NHS LOGISTICS,1121102380,7.83,
Department of Health,Salisbury NHS Foundation Trust,02/10/2020,DRESSINGS - PRE STERILE,Surgery,NHS LOGISTICS,1121102380,7,
Department of Health,Salisbury NHS Foundation Trust,02/10/2020,MEDSURGCONS-OTHER,Surgery,NHS LOGISTICS,1121102380,6.76,
Department of Health,Salisbury NHS Foundation Trust,02/10/2020,MEDSURGCONS-OTHER,Surgery,NHS LOGISTICS,1121102380,4.78,
Department of Health,Salisbury NHS Foundation Trust,02/10/2020,ANAESTHETIC EQUIPMENT ACCESSORIES,Surgery,NHS LOGISTICS,1121102380,2.88,
Department of Health,Salisbury NHS Foundation Trust,02/10/2020,DRESSINGS  -  PROCEDURE PACKS,Surgery,NHS LOGISTICS,1121102380,4.8,
Department of Health,Salisbury NHS Foundation Trust,02/10/2020,DRESSINGS  -  PROCEDURE PACKS,Surgery,NHS LOGISTICS,1121102380,1.75,
Department of Health,Salisbury NHS Foundation Trust,02/10/2020,SURGICAL INSTRUMENTS - DISPOSABLE,Surgery,NHS LOGISTICS,1121102380,4.5,
Department of Health,Salisbury NHS Foundation Trust,02/10/2020,TISSUES HAND TOWELS & TOILET PAPER,Clinical Support,NHS LOGISTICS,1121102380,53.82,
Department of Health,Salisbury NHS Foundation Trust,02/10/2020,DRESSINGS - PRE STERILE,Clinical Support,NHS LOGISTICS,1121102380,1.48,
Department of Health,Salisbury NHS Foundation Trust,02/10/2020,DRESSINGS - PRE STERILE,Clinical Support,NHS LOGISTICS,1121102380,11.64,
Department of Health,Salisbury NHS Foundation Trust,02/10/2020,DRESSINGS - PRE STERILE,Clinical Support,NHS LOGISTICS,1121102380,0.68,
Department of Health,Salisbury NHS Foundation Trust,02/10/2020,TISSUES HAND TOWELS & TOILET PAPER,Clinical Support,NHS LOGISTICS,1121102380,2.44,
Department of Health,Salisbury NHS Foundation Trust,02/10/2020,MEDSURGCONS-OTHER,Clinical Support,NHS LOGISTICS,1121102380,0.48,
Department of Health,Salisbury NHS Foundation Trust,02/10/2020,DRESSINGS  -  PROCEDURE PACKS,Clinical Support,NHS LOGISTICS,1121102380,2,
Department of Health,Salisbury NHS Foundation Trust,02/10/2020,DRESSINGS - PRE STERILE,Clinical Support,NHS LOGISTICS,1121102380,7.96,
Department of Health,Salisbury NHS Foundation Trust,02/10/2020,M & S EQUIPELECTEQUIPINST - OTHER,Clinical Support,NHS LOGISTICS,1121102380,118,
Department of Health,Salisbury NHS Foundation Trust,02/10/2020,DRESSINGS - PRE STERILE,Clinical Support,NHS LOGISTICS,1121102380,2.04,
Department of Health,Salisbury NHS Foundation Trust,02/10/2020,MEDSURGCONS-OTHER,Clinical Support,NHS LOGISTICS,1121102380,4.38,
Department of Health,Salisbury NHS Foundation Trust,02/10/2020,DRESSINGS - PRE STERILE,Clinical Support,NHS LOGISTICS,1121102380,2.16,
Department of Health,Salisbury NHS Foundation Trust,02/10/2020,MEDSURGCONS-OTHER,Clinical Support,NHS LOGISTICS,1121102380,11.2,
Department of Health,Salisbury NHS Foundation Trust,02/10/2020,M & S EQUIPELECTEQUIPINST - OTHER,Clinical Support,NHS LOGISTICS,1121102380,1.42,
Department of Health,Salisbury NHS Foundation Trust,02/10/2020,MEDSURGCONS-OTHER,Clinical Support,NHS LOGISTICS,1121102380,1.55,
Department of Health,Salisbury NHS Foundation Trust,02/10/2020,OTHER MEDICAL SUPPLIES,Medicine,NHS LOGISTICS,1121102380,23,
Department of Health,Salisbury NHS Foundation Trust,02/10/2020,DRESSINGS - PRE STERILE,Medicine,NHS LOGISTICS,1121102380,1.46,
Department of Health,Salisbury NHS Foundation Trust,02/10/2020,DRESSINGS - PRE STERILE,Medicine,NHS LOGISTICS,1121102380,3.82,
Department of Health,Salisbury NHS Foundation Trust,02/10/2020,MEDSURGCONS-OTHER,Medicine,NHS LOGISTICS,1121102380,22.44,
Department of Health,Salisbury NHS Foundation Trust,02/10/2020,DRESSINGS - PRE STERILE,Medicine,NHS LOGISTICS,1121102380,11.9,
Department of Health,Salisbury NHS Foundation Trust,02/10/2020,PATIENTS INCONTINENCE,Medicine,NHS LOGISTICS,1121102380,4.72,
Department of Health,Salisbury NHS Foundation Trust,02/10/2020,M & S EQUIPELECTEQUIPINST - OTHER,Medicine,NHS LOGISTICS,1121102380,8.1,
Department of Health,Salisbury NHS Foundation Trust,02/10/2020,MEDSURGCONS-OTHER,Medicine,NHS LOGISTICS,1121102380,3.38,
Department of Health,Salisbury NHS Foundation Trust,02/10/2020,MEDSURGCONS-OTHER,Medicine,NHS LOGISTICS,1121102380,12.76,
Department of Health,Salisbury NHS Foundation Trust,02/10/2020,MEDSURGCONS-OTHER,Medicine,NHS LOGISTICS,1121102380,2.39,
Department of Health,Salisbury NHS Foundation Trust,02/10/2020,DRESSINGS - PRE STERILE,Medicine,NHS LOGISTICS,1121102380,1.42,
Department of Health,Salisbury NHS Foundation Trust,02/10/2020,DRESSINGS  -  PROCEDURE PACKS,Medicine,NHS LOGISTICS,1121102380,1.6,
Department of Health,Salisbury NHS Foundation Trust,02/10/2020,MEDSURGCONS-OTHER,Medicine,NHS LOGISTICS,1121102380,10,
Department of Health,Salisbury NHS Foundation Trust,02/10/2020,OTHER MEDICAL SUPPLIES,Medicine,NHS LOGISTICS,1121102380,7.12,
Department of Health,Salisbury NHS Foundation Trust,02/10/2020,OTHER MEDICAL SUPPLIES,Medicine,NHS LOGISTICS,1121102380,6.63,
Department of Health,Salisbury NHS Foundation Trust,02/10/2020,OTHER MEDICAL SUPPLIES,Medicine,NHS LOGISTICS,1121102380,2.68,
Department of Health,Salisbury NHS Foundation Trust,02/10/2020,PATIENTS INCONTINENCE,Medicine,NHS LOGISTICS,1121102380,11.24,
Department of Health,Salisbury NHS Foundation Trust,02/10/2020,MEDSURGCONS-OTHER,Medicine,NHS LOGISTICS,1121102380,5.6,
Department of Health,Salisbury NHS Foundation Trust,02/10/2020,TISSUES HAND TOWELS & TOILET PAPER,Medicine,NHS LOGISTICS,1121102380,0.6,
Department of Health,Salisbury NHS Foundation Trust,02/10/2020,DENTAL SURGERY SUNDRIES,Medicine,NHS LOGISTICS,1121102380,2.52,
Department of Health,Salisbury NHS Foundation Trust,02/10/2020,MEDSURGCONS-OTHER,Medicine,NHS LOGISTICS,1121102380,0.78,
Department of Health,Salisbury NHS Foundation Trust,02/10/2020,DRESSINGS - PRE STERILE,Medicine,NHS LOGISTICS,1121102380,3.83,
Department of Health,Salisbury NHS Foundation Trust,02/10/2020,NON DISPOSABLE BED LINEN,Medicine,NHS LOGISTICS,1121102380,2.82,
Department of Health,Salisbury NHS Foundation Trust,02/10/2020,DISPOSABLE THEATRE DRAPES WIPES,Medicine,NHS LOGISTICS,1121102380,19.51,
Department of Health,Salisbury NHS Foundation Trust,02/10/2020,M & S EQUIPELECTEQUIPINST - OTHER,Clinical Support,NHS LOGISTICS,1121102380,43.1,
Department of Health,Salisbury NHS Foundation Trust,02/10/2020,PATIENT APPLIANCES,Clinical Support,NHS LOGISTICS,1121102380,2.38,
Department of Health,Salisbury NHS Foundation Trust,02/10/2020,BAGS SACKS - OTHER,Clinical Support,NHS LOGISTICS,1121102380,0.67,
Department of Health,Salisbury NHS Foundation Trust,02/10/2020,DRESSINGS - PRE STERILE,Clinical Support,NHS LOGISTICS,1121102380,1.36,
Department of Health,Salisbury NHS Foundation Trust,02/10/2020,OTHER MEDICAL SUPPLIES,Clinical Support,NHS LOGISTICS,1121102380,2.76,
Department of Health,Salisbury NHS Foundation Trust,02/10/2020,MEDSURGCONS-OTHER,Clinical Support,NHS LOGISTICS,1121102380,41.5,
Department of Health,Salisbury NHS Foundation Trust,02/10/2020,DRESSINGS - PRE STERILE,Clinical Support,NHS LOGISTICS,1121102380,5,
Department of Health,Salisbury NHS Foundation Trust,02/10/2020,MEDSURGCONS-OTHER,Clinical Support,NHS LOGISTICS,1121102380,5.09,
Department of Health,Salisbury NHS Foundation Trust,02/10/2020,DRESSINGS - PRE STERILE,Clinical Support,NHS LOGISTICS,1121102380,0.71,
Department of Health,Salisbury NHS Foundation Trust,02/10/2020,MEDSURGCONS-OTHER,Clinical Support,NHS LOGISTICS,1121102380,0.48,
Department of Health,Salisbury NHS Foundation Trust,02/10/2020,BABY TEXTURE MODIFIED FOODS,Clinical Support,NHS LOGISTICS,1121102380,19.68,
Department of Health,Salisbury NHS Foundation Trust,02/10/2020,OTHER MEDICAL SUPPLIES,Clinical Support,NHS LOGISTICS,1121102380,3,
Department of Health,Salisbury NHS Foundation Trust,02/10/2020,OTHER MEDICAL SUPPLIES,Clinical Support,NHS LOGISTICS,1121102380,1.34,
Department of Health,Salisbury NHS Foundation Trust,02/10/2020,SURGICAL INSTRUMENTS - DISPOSABLE,Clinical Support,NHS LOGISTICS,1121102380,2.25,
Department of Health,Salisbury NHS Foundation Trust,02/10/2020,MEDSURGCONS-OTHER,Clinical Support,NHS LOGISTICS,1121102380,39.38,
Department of Health,Salisbury NHS Foundation Trust,02/10/2020,MEDSURGCONS-OTHER,Clinical Support,NHS LOGISTICS,1121102380,5.78,
Department of Health,Salisbury NHS Foundation Trust,02/10/2020,MEDSURGCONS-OTHER,Clinical Support,NHS LOGISTICS,1121102380,6.84,
Department of Health,Salisbury NHS Foundation Trust,02/10/2020,MEDSURGCONS-OTHER,Clinical Support,NHS LOGISTICS,1121102380,10.64,
Department of Health,Salisbury NHS Foundation Trust,02/10/2020,MEDSURGCONS-OTHER,Clinical Support,NHS LOGISTICS,1121102380,5.6,
Department of Health,Salisbury NHS Foundation Trust,02/10/2020,OTHER MEDICAL SUPPLIES,Clinical Support,NHS LOGISTICS,1121102380,390,
Department of Health,Salisbury NHS Foundation Trust,02/10/2020,TOILETRIES PERSONAL HYGIENE PRODUCT,Medicine,NHS LOGISTICS,1121102380,7.98,
Department of Health,Salisbury NHS Foundation Trust,02/10/2020,MEDSURGCONS-OTHER,Medicine,NHS LOGISTICS,1121102380,2.39,
Department of Health,Salisbury NHS Foundation Trust,02/10/2020,PATIENTS INCONTINENCE,Medicine,NHS LOGISTICS,1121102380,16.86,
Department of Health,Salisbury NHS Foundation Trust,02/10/2020,PATIENT APPLIANCES,Medicine,NHS LOGISTICS,1121102380,4,
Department of Health,Salisbury NHS Foundation Trust,02/10/2020,MEDSURGCONS-OTHER,Medicine,NHS LOGISTICS,1121102380,5.6,
Department of Health,Salisbury NHS Foundation Trust,02/10/2020,MEDSURGCONS-OTHER,Medicine,NHS LOGISTICS,1121102380,0.78,
Department of Health,Salisbury NHS Foundation Trust,02/10/2020,DISPOSABLE THEATRE DRAPES WIPES,Medicine,NHS LOGISTICS,1121102380,19.51,
Department of Health,Salisbury NHS Foundation Trust,02/10/2020,DRESSINGS - PRE STERILE,Surgery,NHS LOGISTICS,1121102380,38.61,
Department of Health,Salisbury NHS Foundation Trust,02/10/2020,MEDSURGCONS-OTHER,Surgery,NHS LOGISTICS,1121102380,25.31,
Department of Health,Salisbury NHS Foundation Trust,02/10/2020,TOILETRIES PERSONAL HYGIENE PRODUCT,Surgery,NHS LOGISTICS,1121102380,7.98,
Department of Health,Salisbury NHS Foundation Trust,02/10/2020,MEDSURGCONS-LAPAROSCOPIC EQUIPMENT,Surgery,NHS LOGISTICS,1121102380,114,
Department of Health,Salisbury NHS Foundation Trust,02/10/2020,DRESSINGS - PRE STERILE,Surgery,NHS LOGISTICS,1121102380,2.72,
Department of Health,Salisbury NHS Foundation Trust,02/10/2020,M & S EQUIPELECTEQUIPINST - OTHER,Surgery,NHS LOGISTICS,1121102380,8.1,
Department of Health,Salisbury NHS Foundation Trust,02/10/2020,DRUGS,Surgery,NHS LOGISTICS,1121102380,161.62,
Department of Health,Salisbury NHS Foundation Trust,02/10/2020,MEDSURGCONS-SUTURES,Surgery,NHS LOGISTICS,1121102380,29.22,
Department of Health,Salisbury NHS Foundation Trust,02/10/2020,MEDSURGCONS-SUTURES,Surgery,NHS LOGISTICS,1121102380,21.6,
Department of Health,Salisbury NHS Foundation Trust,02/10/2020,NON DISPOSABLE BED LINEN,Surgery,NHS LOGISTICS,1121102380,11.28,
Department of Health,Salisbury NHS Foundation Trust,02/10/2020,DISPOSABLE THEATRE DRAPES WIPES,Surgery,NHS LOGISTICS,1121102380,19.51,
Department of Health,Salisbury NHS Foundation Trust,02/10/2020,MEDSURGCONS-SUTURES,Surgery,NHS LOGISTICS,1121102380,121.3,
Department of Health,Salisbury NHS Foundation Trust,02/10/2020,MEDSURGCONS-OTHER,Clinical Support,NHS LOGISTICS,1121102380,13,
Department of Health,Salisbury NHS Foundation Trust,02/10/2020,MEDSURGCONS-OTHER,Medicine,NHS LOGISTICS,1121102380,25,
Department of Health,Salisbury NHS Foundation Trust,02/10/2020,MEDSURGCONS-OTHER,Medicine,NHS LOGISTICS,1121102380,25,
Department of Health,Salisbury NHS Foundation Trust,02/10/2020,MEDSURGCONS-OTHER,Medicine,NHS LOGISTICS,1121102380,25,
Department of Health,Salisbury NHS Foundation Trust,02/10/2020,MEDSURGCONS-OTHER,Medicine,NHS LOGISTICS,1121102380,320,
Department of Health,Salisbury NHS Foundation Trust,02/10/2020,MEDSURGCONS-OTHER,Medicine,NHS LOGISTICS,1121102380,185,
Department of Health,Salisbury NHS Foundation Trust,02/10/2020,MEDSURGCONS-OTHER,Medicine,NHS LOGISTICS,1121102380,35,
Department of Health,Salisbury NHS Foundation Trust,02/10/2020,MEDSURGCONS-OTHER,Medicine,NHS LOGISTICS,1121102380,21,
Department of Health,Salisbury NHS Foundation Trust,02/10/2020,SURGICAL INSTRUMENTS - GENERAL,Musculo-Skeletal,NHS LOGISTICS,1121102380,201.7,
Department of Health,Salisbury NHS Foundation Trust,02/10/2020,MEDSURGCONS-OTHER,Clinical Support,NHS LOGISTICS,1121102380,120,
Department of Health,Salisbury NHS Foundation Trust,02/10/2020,MEDSURGCONS-OTHER,Medicine,NHS LOGISTICS,1121102380,67,
Department of Health,Salisbury NHS Foundation Trust,02/10/2020,MEDSURGCONS-OTHER,Medicine,NHS LOGISTICS,1121102380,89.75,
Department of Health,Salisbury NHS Foundation Trust,02/10/2020,TUBES,Clinical Support,NHS LOGISTICS,1121102380,5.24,
Department of Health,Salisbury NHS Foundation Trust,02/10/2020,MEDSURGCONS-OTHER,Clinical Support,NHS LOGISTICS,1121102380,5.43,
Department of Health,Salisbury NHS Foundation Trust,02/10/2020,OTHER MEDICAL SUPPLIES,Clinical Support,NHS LOGISTICS,1121102380,3,
Department of Health,Salisbury NHS Foundation Trust,02/10/2020,MEDSURGCONS-OTHER,Clinical Support,NHS LOGISTICS,1121102380,22.5,
Department of Health,Salisbury NHS Foundation Trust,02/10/2020,NON DISPOSABLE BED LINEN,Clinical Support,NHS LOGISTICS,1121102380,5.64,
Department of Health,Salisbury NHS Foundation Trust,02/10/2020,DISPOSABLE THEATRE DRAPES WIPES,Clinical Support,NHS LOGISTICS,1121102380,19.51,
Department of Health,Salisbury NHS Foundation Trust,02/10/2020,MEDSURGCONS-OTHER,Clinical Support,NHS LOGISTICS,1121102380,102,
Department of Health,Salisbury NHS Foundation Trust,02/10/2020,M & S EQUIPELECTEQUIPINST - OTHER,Clinical Support,NHS LOGISTICS,1121102380,110,
Department of Health,Salisbury NHS Foundation Trust,02/10/2020,M & S EQUIPELECTEQUIPINST - OTHER,Clinical Support,NHS LOGISTICS,1121102380,125,
Department of Health,Salisbury NHS Foundation Trust,02/10/2020,M & S EQUIPELECTEQUIPINST - OTHER,Clinical Support,NHS LOGISTICS,1121102380,79.8,
Department of Health,Salisbury NHS Foundation Trust,02/10/2020,M & S EQUIPELECTEQUIPINST - OTHER,Clinical Support,NHS LOGISTICS,1121102380,63,
Department of Health,Salisbury NHS Foundation Trust,02/10/2020,OTHER MEDICAL SUPPLIES,Surgery,NHS LOGISTICS,1121102380,1.8,
Department of Health,Salisbury NHS Foundation Trust,02/10/2020,ANAESTHETIC EQUIPMENT ACCESSORIES,Surgery,NHS LOGISTICS,1121102380,37.8,
Department of Health,Salisbury NHS Foundation Trust,02/10/2020,ANAESTHETIC EQUIPMENT ACCESSORIES,Surgery,NHS LOGISTICS,1121102380,31.25,
Department of Health,Salisbury NHS Foundation Trust,02/10/2020,MEDSURGCONS-OTHER,Surgery,NHS LOGISTICS,1121102380,15.33,
Department of Health,Salisbury NHS Foundation Trust,02/10/2020,MEDSURGCONS-OTHER,Surgery,NHS LOGISTICS,1121102380,5.17,
Department of Health,Salisbury NHS Foundation Trust,02/10/2020,MEDSURGCONS-OTHER,Surgery,NHS LOGISTICS,1121102380,143.5,
Department of Health,Salisbury NHS Foundation Trust,02/10/2020,OTHER MEDICAL SUPPLIES,Surgery,NHS LOGISTICS,1121102380,10.35,
Department of Health,Salisbury NHS Foundation Trust,02/10/2020,MEDSURGCONS-OTHER,Surgery,NHS LOGISTICS,1121102380,3.38,
Department of Health,Salisbury NHS Foundation Trust,02/10/2020,MEDSURGCONS-OTHER,Surgery,NHS LOGISTICS,1121102380,5.43,
Department of Health,Salisbury NHS Foundation Trust,02/10/2020,MEDSURGCONS-OTHER,Surgery,NHS LOGISTICS,1121102380,1.53,
Department of Health,Salisbury NHS Foundation Trust,02/10/2020,M & S EQUIPELECTEQUIPINST - OTHER,Surgery,NHS LOGISTICS,1121102380,24.5,
Department of Health,Salisbury NHS Foundation Trust,02/10/2020,MEDSURGCONS-OTHER,Surgery,NHS LOGISTICS,1121102380,96.32,
Department of Health,Salisbury NHS Foundation Trust,02/10/2020,MEDSURGCONS-OTHER,Surgery,NHS LOGISTICS,1121102380,2.5,
Department of Health,Salisbury NHS Foundation Trust,02/10/2020,MEDSURGCONS-OTHER,Surgery,NHS LOGISTICS,1121102380,2.55,
Department of Health,Salisbury NHS Foundation Trust,02/10/2020,SURGICAL INSTRUMENTS - GENERAL,Surgery,NHS LOGISTICS,1121102380,9.5,
Department of Health,Salisbury NHS Foundation Trust,02/10/2020,OTHER MEDICAL SUPPLIES,Surgery,NHS LOGISTICS,1121102380,410,
Department of Health,Salisbury NHS Foundation Trust,02/10/2020,MEDSURGCONS-OTHER,Surgery,NHS LOGISTICS,1121102380,745,
Department of Health,Salisbury NHS Foundation Trust,02/10/2020,DRESSINGS - PRE STERILE,Surgery,NHS LOGISTICS,1121102380,89,
Department of Health,Salisbury NHS Foundation Trust,02/10/2020,MEDSURGCONS-SUTURES,Musculo-Skeletal,NHS LOGISTICS,1121102380,68.38,
Department of Health,Salisbury NHS Foundation Trust,02/10/2020,MEDSURGCONS-SUTURES,Musculo-Skeletal,NHS LOGISTICS,1121102380,65.45,
Department of Health,Salisbury NHS Foundation Trust,02/10/2020,DRESSINGS - PRE STERILE,Musculo-Skeletal,NHS LOGISTICS,1121102380,237.6,
Department of Health,Salisbury NHS Foundation Trust,02/10/2020,DRESSINGS - PRE STERILE,Musculo-Skeletal,NHS LOGISTICS,1121102380,237.6,
Department of Health,Salisbury NHS Foundation Trust,02/10/2020,DRESSINGS - PRE STERILE,Musculo-Skeletal,NHS LOGISTICS,1121102380,128.04,
Department of Health,Salisbury NHS Foundation Trust,02/10/2020,OTHER MEDICAL SUPPLIES,Musculo-Skeletal,NHS LOGISTICS,1121102380,9.2,
Department of Health,Salisbury NHS Foundation Trust,02/10/2020,DRESSINGS - PRE STERILE,Musculo-Skeletal,NHS LOGISTICS,1121102380,15.28,
Department of Health,Salisbury NHS Foundation Trust,02/10/2020,DRESSINGS - PRE STERILE,Musculo-Skeletal,NHS LOGISTICS,1121102380,12.6,
Department of Health,Salisbury NHS Foundation Trust,02/10/2020,DRESSINGS - PRE STERILE,Musculo-Skeletal,NHS LOGISTICS,1121102380,8.4,
Department of Health,Salisbury NHS Foundation Trust,02/10/2020,CLEANING MATERIAL PRODUCTS SUNDRIES,Musculo-Skeletal,NHS LOGISTICS,1121102380,6.6,
Department of Health,Salisbury NHS Foundation Trust,02/10/2020,M & S EQUIPELECTEQUIPINST - OTHER,Musculo-Skeletal,NHS LOGISTICS,1121102380,4.05,
Department of Health,Salisbury NHS Foundation Trust,02/10/2020,MEDSURGCONS-OTHER,Musculo-Skeletal,NHS LOGISTICS,1121102380,3.38,
Department of Health,Salisbury NHS Foundation Trust,02/10/2020,M & S EQUIPELECTEQUIPINST - OTHER,Musculo-Skeletal,NHS LOGISTICS,1121102380,4.75,
Department of Health,Salisbury NHS Foundation Trust,02/10/2020,DRESSINGS - PRE STERILE,Musculo-Skeletal,NHS LOGISTICS,1121102380,0.71,
Department of Health,Salisbury NHS Foundation Trust,02/10/2020,DRESSINGS  -  PROCEDURE PACKS,Musculo-Skeletal,NHS LOGISTICS,1121102380,29,
Department of Health,Salisbury NHS Foundation Trust,02/10/2020,DRESSINGS  -  PROCEDURE PACKS,Musculo-Skeletal,NHS LOGISTICS,1121102380,1.4,
Department of Health,Salisbury NHS Foundation Trust,02/10/2020,MEDSURGCONS-OTHER,Musculo-Skeletal,NHS LOGISTICS,1121102380,10,
Department of Health,Salisbury NHS Foundation Trust,02/10/2020,MEDSURGCONS-OTHER,Musculo-Skeletal,NHS LOGISTICS,1121102380,12.75,
Department of Health,Salisbury NHS Foundation Trust,02/10/2020,DRESSINGS - PRE STERILE,Musculo-Skeletal,NHS LOGISTICS,1121102380,9.85,
Department of Health,Salisbury NHS Foundation Trust,02/10/2020,MEDSURGCONS-OTHER,Musculo-Skeletal,NHS LOGISTICS,1121102380,17.2,
Department of Health,Salisbury NHS Foundation Trust,02/10/2020,DRESSINGS - PRE STERILE,Musculo-Skeletal,NHS LOGISTICS,1121102380,2.04,
Department of Health,Salisbury NHS Foundation Trust,02/10/2020,DRESSINGS - PRE STERILE,Musculo-Skeletal,NHS LOGISTICS,1121102380,3.44,
Department of Health,Salisbury NHS Foundation Trust,02/10/2020,DRESSINGS - PRE STERILE,Musculo-Skeletal,NHS LOGISTICS,1121102380,5.68,
Department of Health,Salisbury NHS Foundation Trust,02/10/2020,DRESSINGS - PRE STERILE,Musculo-Skeletal,NHS LOGISTICS,1121102380,1.12,
Department of Health,Salisbury NHS Foundation Trust,02/10/2020,MEDSURGCONS-OTHER,Musculo-Skeletal,NHS LOGISTICS,1121102380,0.78,
Department of Health,Salisbury NHS Foundation Trust,02/10/2020,NON DISPOSABLE BED LINEN,Musculo-Skeletal,NHS LOGISTICS,1121102380,2.82,
Department of Health,Salisbury NHS Foundation Trust,02/10/2020,PATIENT APPLIANCES,Musculo-Skeletal,NHS LOGISTICS,1121102380,8.08,
Department of Health,Salisbury NHS Foundation Trust,02/10/2020,DISPOSABLE THEATRE DRAPES WIPES,Musculo-Skeletal,NHS LOGISTICS,1121102380,3.74,
Department of Health,Salisbury NHS Foundation Trust,02/10/2020,DISPOSABLE THEATRE DRAPES WIPES,Musculo-Skeletal,NHS LOGISTICS,1121102380,19.51,
Department of Health,Salisbury NHS Foundation Trust,02/10/2020,OTHER MEDICAL SUPPLIES,Musculo-Skeletal,NHS LOGISTICS,1121102380,41,
Department of Health,Salisbury NHS Foundation Trust,02/10/2020,M & S EQUIPELECTEQUIPINST - OTHER,Musculo-Skeletal,NHS LOGISTICS,1121102380,12.52,
Department of Health,Salisbury NHS Foundation Trust,02/10/2020,TUBES,Musculo-Skeletal,NHS LOGISTICS,1121102380,0.75,
Department of Health,Salisbury NHS Foundation Trust,02/10/2020,DISPOSABLE THEATRE DRAPES WIPES,Musculo-Skeletal,NHS LOGISTICS,1121102380,1.73,
Department of Health,Salisbury NHS Foundation Trust,02/10/2020,TOILETRIES PERSONAL HYGIENE PRODUCT,Musculo-Skeletal,NHS LOGISTICS,1121102380,25.76,
Department of Health,Salisbury NHS Foundation Trust,02/10/2020,MEDSURGCONS-OTHER,Musculo-Skeletal,NHS LOGISTICS,1121102380,6.76,
Department of Health,Salisbury NHS Foundation Trust,02/10/2020,TOILETRIES PERSONAL HYGIENE PRODUCT,Musculo-Skeletal,NHS LOGISTICS,1121102380,1.77,
Department of Health,Salisbury NHS Foundation Trust,02/10/2020,MEDSURGCONS-OTHER,Musculo-Skeletal,NHS LOGISTICS,1121102380,7.5,
Department of Health,Salisbury NHS Foundation Trust,02/10/2020,MEDSURGCONS-OTHER,Musculo-Skeletal,NHS LOGISTICS,1121102380,7.65,
Department of Health,Salisbury NHS Foundation Trust,02/10/2020,OTHER MEDICAL SUPPLIES,Musculo-Skeletal,NHS LOGISTICS,1121102380,14.24,
Department of Health,Salisbury NHS Foundation Trust,02/10/2020,SURGICAL INSTRUMENTS - DISPOSABLE,Musculo-Skeletal,NHS LOGISTICS,1121102380,4.5,
Department of Health,Salisbury NHS Foundation Trust,02/10/2020,PATIENTS INCONTINENCE,Musculo-Skeletal,NHS LOGISTICS,1121102380,50.58,
Department of Health,Salisbury NHS Foundation Trust,02/10/2020,MEDSURGCONS-OTHER,Musculo-Skeletal,NHS LOGISTICS,1121102380,11.2,
Department of Health,Salisbury NHS Foundation Trust,02/10/2020,MEDSURGCONS-OTHER,Musculo-Skeletal,NHS LOGISTICS,1121102380,22.37,
Department of Health,Salisbury NHS Foundation Trust,02/10/2020,M & S EQUIPELECTEQUIPINST - OTHER,Musculo-Skeletal,NHS LOGISTICS,1121102380,2.84,
Department of Health,Salisbury NHS Foundation Trust,02/10/2020,NON DISPOSABLE BED LINEN,Musculo-Skeletal,NHS LOGISTICS,1121102380,11.28,
Department of Health,Salisbury NHS Foundation Trust,02/10/2020,TOILETRIES PERSONAL HYGIENE PRODUCT,Musculo-Skeletal,NHS LOGISTICS,1121102380,6.24,
Department of Health,Salisbury NHS Foundation Trust,02/10/2020,DISPOSABLE THEATRE DRAPES WIPES,Musculo-Skeletal,NHS LOGISTICS,1121102380,39.02,
Department of Health,Salisbury NHS Foundation Trust,02/10/2020,DRESSINGS - PRE STERILE,Musculo-Skeletal,NHS LOGISTICS,1121102380,30.85,
Department of Health,Salisbury NHS Foundation Trust,02/10/2020,OTHER MEDICAL SUPPLIES,Medicine,NHS LOGISTICS,1121102380,214.4,
Department of Health,Salisbury NHS Foundation Trust,02/10/2020,MEDSURGCONS-OTHER,Medicine,NHS LOGISTICS,1121102380,95,
Department of Health,Salisbury NHS Foundation Trust,02/10/2020,PAPER GENERAL STATIONERY SUNDRIES,Clinical Support,NHS LOGISTICS,1121102380,62,
Department of Health,Salisbury NHS Foundation Trust,02/10/2020,MEDSURGCONS-OTHER,Medicine,NHS LOGISTICS,1121102380,248,
Department of Health,Salisbury NHS Foundation Trust,02/10/2020,MEDSURGCONS-OTHER,Medicine,NHS LOGISTICS,1121102380,400,
Department of Health,Salisbury NHS Foundation Trust,02/10/2020,DRESSINGS - PRE STERILE,Musculo-Skeletal,NHS LOGISTICS,1121102380,392,
Department of Health,Salisbury NHS Foundation Trust,02/10/2020,DENTAL SURGERY EQUIPMENT,Musculo-Skeletal,NHS LOGISTICS,1121102380,271.68,
Department of Health,Salisbury NHS Foundation Trust,02/10/2020,BAGS SACKS - OTHER,Clinical Support,NHS LOGISTICS,1121102380,2.04,
Department of Health,Salisbury NHS Foundation Trust,02/10/2020,BAGS SACKS - OTHER,Clinical Support,NHS LOGISTICS,1121102380,18.18,
Department of Health,Salisbury NHS Foundation Trust,02/10/2020,OTHER MEDICAL SUPPLIES,Clinical Support,NHS LOGISTICS,1121102380,1.38,
Department of Health,Salisbury NHS Foundation Trust,02/10/2020,OTHER MEDICAL SUPPLIES,Clinical Support,NHS LOGISTICS,1121102380,32.64,
Department of Health,Salisbury NHS Foundation Trust,02/10/2020,DI & RADIO-RADIOLOGY EQUIPMENT,Clinical Support,NHS LOGISTICS,1121102380,950,
Department of Health,Salisbury NHS Foundation Trust,02/10/2020,MEDSURGCONS-OTHER,Clinical Support,NHS LOGISTICS,1121102380,64,
Department of Health,Salisbury NHS Foundation Trust,02/10/2020,MEDSURGCONS-OTHER,Clinical Support,NHS LOGISTICS,1121102380,255.92,
Department of Health,Salisbury NHS Foundation Trust,02/10/2020,OTHER MEDICAL SUPPLIES,Medicine,NHS LOGISTICS,1121102380,41,
Department of Health,Salisbury NHS Foundation Trust,02/10/2020,OTHER MEDICAL SUPPLIES,Medicine,NHS LOGISTICS,1121102380,53.04,
Department of Health,Salisbury NHS Foundation Trust,02/10/2020,OTHER MEDICAL SUPPLIES,Medicine,NHS LOGISTICS,1121102380,23,
Department of Health,Salisbury NHS Foundation Trust,02/10/2020,PATIENTS INCONTINENCE,Medicine,NHS LOGISTICS,1121102380,6.56,
Department of Health,Salisbury NHS Foundation Trust,02/10/2020,PATIENTS INCONTINENCE,Medicine,NHS LOGISTICS,1121102380,5.94,
Department of Health,Salisbury NHS Foundation Trust,02/10/2020,BAGS SACKS - OTHER,Medicine,NHS LOGISTICS,1121102380,3.2,
Department of Health,Salisbury NHS Foundation Trust,02/10/2020,TOILETRIES PERSONAL HYGIENE PRODUCT,Medicine,NHS LOGISTICS,1121102380,13.4,
Department of Health,Salisbury NHS Foundation Trust,02/10/2020,PATIENTS INCONTINENCE,Medicine,NHS LOGISTICS,1121102380,2.36,
Department of Health,Salisbury NHS Foundation Trust,02/10/2020,MEDSURGCONS-OTHER,Medicine,NHS LOGISTICS,1121102380,3.38,
Department of Health,Salisbury NHS Foundation Trust,02/10/2020,DRESSINGS - PRE STERILE,Medicine,NHS LOGISTICS,1121102380,1.42,
Department of Health,Salisbury NHS Foundation Trust,02/10/2020,DRESSINGS  -  PROCEDURE PACKS,Medicine,NHS LOGISTICS,1121102380,3.2,
Department of Health,Salisbury NHS Foundation Trust,02/10/2020,DRESSINGS  -  PROCEDURE PACKS,Medicine,NHS LOGISTICS,1121102380,1.75,
Department of Health,Salisbury NHS Foundation Trust,02/10/2020,MEDSURGCONS-OTHER,Medicine,NHS LOGISTICS,1121102380,5,
Department of Health,Salisbury NHS Foundation Trust,02/10/2020,OTHER MEDICAL SUPPLIES,Medicine,NHS LOGISTICS,1121102380,2.68,
Department of Health,Salisbury NHS Foundation Trust,02/10/2020,SURGICAL INSTRUMENTS - DISPOSABLE,Medicine,NHS LOGISTICS,1121102380,4.5,
Department of Health,Salisbury NHS Foundation Trust,02/10/2020,DRESSINGS - PRE STERILE,Medicine,NHS LOGISTICS,1121102380,2.04,
Department of Health,Salisbury NHS Foundation Trust,02/10/2020,MEDSURGCONS-OTHER,Medicine,NHS LOGISTICS,1121102380,3.53,
Department of Health,Salisbury NHS Foundation Trust,02/10/2020,DRESSINGS - PRE STERILE,Medicine,NHS LOGISTICS,1121102380,1.72,
Department of Health,Salisbury NHS Foundation Trust,02/10/2020,MEDSURGCONS-OTHER,Medicine,NHS LOGISTICS,1121102380,5.6,
Department of Health,Salisbury NHS Foundation Trust,02/10/2020,TISSUES HAND TOWELS & TOILET PAPER,Medicine,NHS LOGISTICS,1121102380,0.6,
Department of Health,Salisbury NHS Foundation Trust,02/10/2020,MEDSURGCONS-OTHER,Medicine,NHS LOGISTICS,1121102380,0.78,
Department of Health,Salisbury NHS Foundation Trust,02/10/2020,TUBES,Medicine,NHS LOGISTICS,1121102380,3,
Department of Health,Salisbury NHS Foundation Trust,02/10/2020,MEDSURGCONS-OTHER,Medicine,NHS LOGISTICS,1121102380,0.4,
Department of Health,Salisbury NHS Foundation Trust,02/10/2020,MEDSURGCONS-OTHER,Medicine,NHS LOGISTICS,1121102380,0.32,
Department of Health,Salisbury NHS Foundation Trust,02/10/2020,DISPOSABLE THEATRE DRAPES WIPES,Medicine,NHS LOGISTICS,1121102380,19.51,
Department of Health,Salisbury NHS Foundation Trust,02/10/2020,LAB EQUIP-LABORATORY APPARATUS,Clinical Support,NHS LOGISTICS,1121102380,116.8,
Department of Health,Salisbury NHS Foundation Trust,02/10/2020,LAB EQUIP-LABORATORY APPARATUS,Clinical Support,NHS LOGISTICS,1121102380,13.98,
Department of Health,Salisbury NHS Foundation Trust,02/10/2020,LAB EQUIP-LABORATORY APPARATUS,Clinical Support,NHS LOGISTICS,1121102380,27.04,
Department of Health,Salisbury NHS Foundation Trust,02/10/2020,DRESSINGS - PRE STERILE,Clinical Support,NHS LOGISTICS,1121102380,3.82,
Department of Health,Salisbury NHS Foundation Trust,02/10/2020,TUBES,Clinical Support,NHS LOGISTICS,1121102380,10.48,
Department of Health,Salisbury NHS Foundation Trust,02/10/2020,MEDSURGCONS-OTHER,Clinical Support,NHS LOGISTICS,1121102380,4.78,
Department of Health,Salisbury NHS Foundation Trust,02/10/2020,OTHER MEDICAL SUPPLIES,Clinical Support,NHS LOGISTICS,1121102380,2.68,
Department of Health,Salisbury NHS Foundation Trust,02/10/2020,DRESSINGS - PRE STERILE,Clinical Support,NHS LOGISTICS,1121102380,45.55,
Department of Health,Salisbury NHS Foundation Trust,02/10/2020,DRESSINGS - PRE STERILE,Clinical Support,NHS LOGISTICS,1121102380,2.16,
Department of Health,Salisbury NHS Foundation Trust,02/10/2020,OTHER MEDICAL SUPPLIES,Surgery,NHS LOGISTICS,1121102380,41,
Department of Health,Salisbury NHS Foundation Trust,02/10/2020,DRESSINGS - PRE STERILE,Surgery,NHS LOGISTICS,1121102380,1.36,
Department of Health,Salisbury NHS Foundation Trust,02/10/2020,DRESSINGS - PRE STERILE,Surgery,NHS LOGISTICS,1121102380,1.46,
Department of Health,Salisbury NHS Foundation Trust,02/10/2020,DRESSINGS - PRE STERILE,Surgery,NHS LOGISTICS,1121102380,1.18,
Department of Health,Salisbury NHS Foundation Trust,02/10/2020,DRESSINGS - PRE STERILE,Surgery,NHS LOGISTICS,1121102380,2.75,
Department of Health,Salisbury NHS Foundation Trust,02/10/2020,DRESSINGS - PRE STERILE,Surgery,NHS LOGISTICS,1121102380,1,
Department of Health,Salisbury NHS Foundation Trust,02/10/2020,DRESSINGS - PRE STERILE,Surgery,NHS LOGISTICS,1121102380,11.9,
Department of Health,Salisbury NHS Foundation Trust,02/10/2020,MEDSURGCONS-OTHER,Surgery,NHS LOGISTICS,1121102380,42.75,
Department of Health,Salisbury NHS Foundation Trust,02/10/2020,M & S EQUIPELECTEQUIPINST - OTHER,Surgery,NHS LOGISTICS,1121102380,11.76,
Department of Health,Salisbury NHS Foundation Trust,02/10/2020,MEDSURGCONS-OTHER,Surgery,NHS LOGISTICS,1121102380,13.52,
Department of Health,Salisbury NHS Foundation Trust,02/10/2020,MEDSURGCONS-OTHER,Surgery,NHS LOGISTICS,1121102380,5.43,
Department of Health,Salisbury NHS Foundation Trust,02/10/2020,M & S EQUIPELECTEQUIPINST - OTHER,Surgery,NHS LOGISTICS,1121102380,9.5,
Department of Health,Salisbury NHS Foundation Trust,02/10/2020,ANAESTHETIC EQUIPMENT ACCESSORIES,Surgery,NHS LOGISTICS,1121102380,3.36,
Department of Health,Salisbury NHS Foundation Trust,02/10/2020,OTHER MEDICAL SUPPLIES,Surgery,NHS LOGISTICS,1121102380,3,
Department of Health,Salisbury NHS Foundation Trust,02/10/2020,MEDSURGCONS-OTHER,Surgery,NHS LOGISTICS,1121102380,22.5,
Department of Health,Salisbury NHS Foundation Trust,02/10/2020,OTHER MEDICAL SUPPLIES,Surgery,NHS LOGISTICS,1121102380,7.12,
Department of Health,Salisbury NHS Foundation Trust,02/10/2020,OTHER MEDICAL SUPPLIES,Surgery,NHS LOGISTICS,1121102380,1.34,
Department of Health,Salisbury NHS Foundation Trust,02/10/2020,SURGICAL INSTRUMENTS - DISPOSABLE,Surgery,NHS LOGISTICS,1121102380,6.75,
Department of Health,Salisbury NHS Foundation Trust,02/10/2020,DRESSINGS - PRE STERILE,Surgery,NHS LOGISTICS,1121102380,2.04,
Department of Health,Salisbury NHS Foundation Trust,02/10/2020,MEDSURGCONS-OTHER,Surgery,NHS LOGISTICS,1121102380,4.38,
Department of Health,Salisbury NHS Foundation Trust,02/10/2020,MEDSURGCONS-OTHER,Surgery,NHS LOGISTICS,1121102380,3.53,
Department of Health,Salisbury NHS Foundation Trust,02/10/2020,DRESSINGS - PRE STERILE,Surgery,NHS LOGISTICS,1121102380,1.72,
Department of Health,Salisbury NHS Foundation Trust,02/10/2020,DRESSINGS - PRE STERILE,Surgery,NHS LOGISTICS,1121102380,2.84,
Department of Health,Salisbury NHS Foundation Trust,02/10/2020,MEDSURGCONS-OTHER,Surgery,NHS LOGISTICS,1121102380,11.2,
Department of Health,Salisbury NHS Foundation Trust,02/10/2020,TISSUES HAND TOWELS & TOILET PAPER,Surgery,NHS LOGISTICS,1121102380,0.6,
Department of Health,Salisbury NHS Foundation Trust,02/10/2020,MEDSURGCONS-OTHER,Surgery,NHS LOGISTICS,1121102380,1.55,
Department of Health,Salisbury NHS Foundation Trust,02/10/2020,NON DISPOSABLE BED LINEN,Surgery,NHS LOGISTICS,1121102380,2.82,
Department of Health,Salisbury NHS Foundation Trust,02/10/2020,M & S EQUIPELECTEQUIPINST - OTHER,Clinical Support,NHS LOGISTICS,1121102380,150,
Department of Health,Salisbury NHS Foundation Trust,02/10/2020,DRESSINGS  -  PROCEDURE PACKS,Surgery,NHS LOGISTICS,1121102380,0.35,
Department of Health,Salisbury NHS Foundation Trust,02/10/2020,MEDSURGCONS-OTHER,Surgery,NHS LOGISTICS,1121102380,1.55,
Department of Health,Salisbury NHS Foundation Trust,02/10/2020,DISPOSABLE THEATRE DRAPES WIPES,Surgery,NHS LOGISTICS,1121102380,19.51,
Department of Health,Salisbury NHS Foundation Trust,02/10/2020,OTHER MEDICAL SUPPLIES,Medicine,NHS LOGISTICS,1121102380,13.8,
Department of Health,Salisbury NHS Foundation Trust,02/10/2020,TUBES,Medicine,NHS LOGISTICS,1121102380,5.24,
Department of Health,Salisbury NHS Foundation Trust,02/10/2020,DRESSINGS - PRE STERILE,Medicine,NHS LOGISTICS,1121102380,17.1,
Department of Health,Salisbury NHS Foundation Trust,02/10/2020,DRESSINGS  -  PROCEDURE PACKS,Medicine,NHS LOGISTICS,1121102380,0.5,
Department of Health,Salisbury NHS Foundation Trust,02/10/2020,MEDSURGCONS-OTHER,Medicine,NHS LOGISTICS,1121102380,6.76,
Department of Health,Salisbury NHS Foundation Trust,02/10/2020,MEDSURGCONS-OTHER,Medicine,NHS LOGISTICS,1121102380,5.43,
Department of Health,Salisbury NHS Foundation Trust,02/10/2020,MEDSURGCONS-OTHER,Medicine,NHS LOGISTICS,1121102380,1.53,
Department of Health,Salisbury NHS Foundation Trust,02/10/2020,DRESSINGS  -  PROCEDURE PACKS,Medicine,NHS LOGISTICS,1121102380,2.1,
Department of Health,Salisbury NHS Foundation Trust,02/10/2020,OTHER MEDICAL SUPPLIES,Medicine,NHS LOGISTICS,1121102380,3,
Department of Health,Salisbury NHS Foundation Trust,02/10/2020,OTHER MEDICAL SUPPLIES,Medicine,NHS LOGISTICS,1121102380,214.4,
Department of Health,Salisbury NHS Foundation Trust,02/10/2020,MEDSURGCONS-OTHER,Medicine,NHS LOGISTICS,1121102380,7.5,
Department of Health,Salisbury NHS Foundation Trust,02/10/2020,MEDSURGCONS-OTHER,Medicine,NHS LOGISTICS,1121102380,23,
Department of Health,Salisbury NHS Foundation Trust,02/10/2020,OTHER MEDICAL SUPPLIES,Medicine,NHS LOGISTICS,1121102380,6.63,
Department of Health,Salisbury NHS Foundation Trust,02/10/2020,OTHER MEDICAL SUPPLIES,Medicine,NHS LOGISTICS,1121102380,1.34,
Department of Health,Salisbury NHS Foundation Trust,02/10/2020,MEDSURGCONS-OTHER,Medicine,NHS LOGISTICS,1121102380,78.76,
Department of Health,Salisbury NHS Foundation Trust,02/10/2020,DRESSINGS - PRE STERILE,Medicine,NHS LOGISTICS,1121102380,18.8,
Department of Health,Salisbury NHS Foundation Trust,02/10/2020,TUBES,Medicine,NHS LOGISTICS,1121102380,2,
Department of Health,Salisbury NHS Foundation Trust,02/10/2020,M & S EQUIPELECTEQUIPINST - OTHER,Medicine,NHS LOGISTICS,1121102380,399.98,
Department of Health,Salisbury NHS Foundation Trust,02/10/2020,MEDSURGCONS-OTHER,Medicine,NHS LOGISTICS,1121102380,350,
Department of Health,Salisbury NHS Foundation Trust,02/10/2020,MEDSURGCONS-OTHER,Medicine,NHS LOGISTICS,1121102380,70,
Department of Health,Salisbury NHS Foundation Trust,02/10/2020,PATIENTS INCONTINENCE,Facilities,NHS LOGISTICS,1121102380,5.94,
Department of Health,Salisbury NHS Foundation Trust,02/10/2020,TUBES,Facilities,NHS LOGISTICS,1121102380,15.72,
Department of Health,Salisbury NHS Foundation Trust,02/10/2020,ANAESTHETIC EQUIPMENT ACCESSORIES,Facilities,NHS LOGISTICS,1121102380,2.4,
Department of Health,Salisbury NHS Foundation Trust,02/10/2020,DRESSINGS  -  PROCEDURE PACKS,Facilities,NHS LOGISTICS,1121102380,1.75,
Department of Health,Salisbury NHS Foundation Trust,02/10/2020,PATIENT APPLIANCES,Facilities,NHS LOGISTICS,1121102380,4,
Department of Health,Salisbury NHS Foundation Trust,02/10/2020,PATIENT APPLIANCES,Facilities,NHS LOGISTICS,1121102380,2.5,
Department of Health,Salisbury NHS Foundation Trust,02/10/2020,PATIENT APPLIANCES,Facilities,NHS LOGISTICS,1121102380,4,
Department of Health,Salisbury NHS Foundation Trust,02/10/2020,NON DISPOSABLE BED LINEN,Facilities,NHS LOGISTICS,1121102380,11.28,
Department of Health,Salisbury NHS Foundation Trust,02/10/2020,PATIENT APPLIANCES,Facilities,NHS LOGISTICS,1121102380,12.12,
Department of Health,Salisbury NHS Foundation Trust,02/10/2020,OTHER MEDICAL SUPPLIES,Surgery,NHS LOGISTICS,1121102380,41,
Department of Health,Salisbury NHS Foundation Trust,02/10/2020,MEDSURGCONS-OTHER,Surgery,NHS LOGISTICS,1121102380,124.2,
Department of Health,Salisbury NHS Foundation Trust,02/10/2020,DISPOSABLE THEATRE DRAPES WIPES,Surgery,NHS LOGISTICS,1121102380,1.73,
Department of Health,Salisbury NHS Foundation Trust,02/10/2020,TOILETRIES PERSONAL HYGIENE PRODUCT,Surgery,NHS LOGISTICS,1121102380,13.4,
Department of Health,Salisbury NHS Foundation Trust,02/10/2020,DRESSINGS  -  PROCEDURE PACKS,Surgery,NHS LOGISTICS,1121102380,3.94,
Department of Health,Salisbury NHS Foundation Trust,02/10/2020,MEDSURGCONS-OTHER,Surgery,NHS LOGISTICS,1121102380,4.78,
Department of Health,Salisbury NHS Foundation Trust,02/10/2020,DRESSINGS - PRE STERILE,Surgery,NHS LOGISTICS,1121102380,3.55,
Department of Health,Salisbury NHS Foundation Trust,02/10/2020,MED SURG EQUIP REP MAINT CLEANING,Surgery,NHS LOGISTICS,1121102380,25.23,
Department of Health,Salisbury NHS Foundation Trust,02/10/2020,OTHER MEDICAL SUPPLIES,Surgery,NHS LOGISTICS,1121102380,52.9,
Department of Health,Salisbury NHS Foundation Trust,02/10/2020,DRESSINGS  -  PROCEDURE PACKS,Surgery,NHS LOGISTICS,1121102380,14.5,
Department of Health,Salisbury NHS Foundation Trust,02/10/2020,DRESSINGS  -  PROCEDURE PACKS,Surgery,NHS LOGISTICS,1121102380,7.7,
Department of Health,Salisbury NHS Foundation Trust,02/10/2020,DRESSINGS - PRE STERILE,Surgery,NHS LOGISTICS,1121102380,22.33,
Department of Health,Salisbury NHS Foundation Trust,02/10/2020,MEDSURGCONS-OTHER,Surgery,NHS LOGISTICS,1121102380,4,
Department of Health,Salisbury NHS Foundation Trust,02/10/2020,MEDSURGCONS-OTHER,Surgery,NHS LOGISTICS,1121102380,10.2,
Department of Health,Salisbury NHS Foundation Trust,02/10/2020,OTHER MEDICAL SUPPLIES,Surgery,NHS LOGISTICS,1121102380,6.63,
Department of Health,Salisbury NHS Foundation Trust,02/10/2020,SURGICAL INSTRUMENTS - DISPOSABLE,Surgery,NHS LOGISTICS,1121102380,6.75,
Department of Health,Salisbury NHS Foundation Trust,02/10/2020,DRESSINGS - PRE STERILE,Surgery,NHS LOGISTICS,1121102380,59.1,
Department of Health,Salisbury NHS Foundation Trust,02/10/2020,OTHER MEDICAL SUPPLIES,Surgery,NHS LOGISTICS,1121102380,49.98,
Department of Health,Salisbury NHS Foundation Trust,02/10/2020,MEDSURGCONS-OTHER,Surgery,NHS LOGISTICS,1121102380,44,
Department of Health,Salisbury NHS Foundation Trust,02/10/2020,DRESSINGS - PRE STERILE,Surgery,NHS LOGISTICS,1121102380,1.72,
Department of Health,Salisbury NHS Foundation Trust,02/10/2020,NON DISPOSABLE BED LINEN,Surgery,NHS LOGISTICS,1121102380,22.56,
Department of Health,Salisbury NHS Foundation Trust,02/10/2020,MEDSURGCONS-OTHER,Surgery,NHS LOGISTICS,1121102380,2.63,
Department of Health,Salisbury NHS Foundation Trust,02/10/2020,MEDSURGCONS-OTHER,Surgery,NHS LOGISTICS,1121102380,20.93,
Department of Health,Salisbury NHS Foundation Trust,02/10/2020,DISPOSABLE THEATRE DRAPES WIPES,Surgery,NHS LOGISTICS,1121102380,78.04,
Department of Health,Salisbury NHS Foundation Trust,02/10/2020,DISPOSABLE THEATRE DRAPES WIPES,Surgery,NHS LOGISTICS,1121102380,10,
Department of Health,Salisbury NHS Foundation Trust,02/10/2020,M & S EQUIPELECTEQUIPINST - OTHER,Surgery,NHS LOGISTICS,1121102380,270,
Department of Health,Salisbury NHS Foundation Trust,02/10/2020,DRESSINGS - PRE STERILE,Surgery,NHS LOGISTICS,1121102380,69.99,
Department of Health,Salisbury NHS Foundation Trust,02/10/2020,OTHER MEDICAL SUPPLIES,Medicine,NHS LOGISTICS,1121102380,18.4,
Department of Health,Salisbury NHS Foundation Trust,02/10/2020,PATIENTS INCONTINENCE,Medicine,NHS LOGISTICS,1121102380,6.56,
Department of Health,Salisbury NHS Foundation Trust,02/10/2020,DISPOSABLE THEATRE DRAPES WIPES,Medicine,NHS LOGISTICS,1121102380,1.73,
Department of Health,Salisbury NHS Foundation Trust,02/10/2020,TISSUES HAND TOWELS & TOILET PAPER,Medicine,NHS LOGISTICS,1121102380,1.22,
Department of Health,Salisbury NHS Foundation Trust,02/10/2020,MEDSURGCONS-OTHER,Medicine,NHS LOGISTICS,1121102380,4.55,
Department of Health,Salisbury NHS Foundation Trust,02/10/2020,PATIENTS INCONTINENCE,Medicine,NHS LOGISTICS,1121102380,2.29,
Department of Health,Salisbury NHS Foundation Trust,02/10/2020,MEDSURGCONS-OTHER,Medicine,NHS LOGISTICS,1121102380,6.76,
Department of Health,Salisbury NHS Foundation Trust,02/10/2020,MEDSURGCONS-OTHER,Medicine,NHS LOGISTICS,1121102380,5.43,
Department of Health,Salisbury NHS Foundation Trust,02/10/2020,DRESSINGS - PRE STERILE,Medicine,NHS LOGISTICS,1121102380,1.42,
Department of Health,Salisbury NHS Foundation Trust,02/10/2020,M & S EQUIPELECTEQUIPINST - OTHER,Medicine,NHS LOGISTICS,1121102380,0.1,
Department of Health,Salisbury NHS Foundation Trust,02/10/2020,DRESSINGS  -  PROCEDURE PACKS,Medicine,NHS LOGISTICS,1121102380,4.8,
Department of Health,Salisbury NHS Foundation Trust,02/10/2020,DRESSINGS  -  PROCEDURE PACKS,Medicine,NHS LOGISTICS,1121102380,1.75,
Department of Health,Salisbury NHS Foundation Trust,02/10/2020,TOILETRIES PERSONAL HYGIENE PRODUCT,Medicine,NHS LOGISTICS,1121102380,1.77,
Department of Health,Salisbury NHS Foundation Trust,02/10/2020,OTHER MEDICAL SUPPLIES,Medicine,NHS LOGISTICS,1121102380,23.25,
Department of Health,Salisbury NHS Foundation Trust,02/10/2020,MEDSURGCONS-OTHER,Medicine,NHS LOGISTICS,1121102380,10,
Department of Health,Salisbury NHS Foundation Trust,02/10/2020,MEDSURGCONS-OTHER,Medicine,NHS LOGISTICS,1121102380,12.75,
Department of Health,Salisbury NHS Foundation Trust,02/10/2020,OTHER MEDICAL SUPPLIES,Medicine,NHS LOGISTICS,1121102380,7.12,
Department of Health,Salisbury NHS Foundation Trust,02/10/2020,OTHER MEDICAL SUPPLIES,Medicine,NHS LOGISTICS,1121102380,2.68,
Department of Health,Salisbury NHS Foundation Trust,02/10/2020,TOILETRIES PERSONAL HYGIENE PRODUCT,Medicine,NHS LOGISTICS,1121102380,3.26,
Department of Health,Salisbury NHS Foundation Trust,02/10/2020,DRESSINGS - PRE STERILE,Medicine,NHS LOGISTICS,1121102380,2.04,
Department of Health,Salisbury NHS Foundation Trust,02/10/2020,MEDSURGCONS-OTHER,Medicine,NHS LOGISTICS,1121102380,11.2,
Department of Health,Salisbury NHS Foundation Trust,02/10/2020,M & S EQUIPELECTEQUIPINST - OTHER,Medicine,NHS LOGISTICS,1121102380,1.42,
Department of Health,Salisbury NHS Foundation Trust,02/10/2020,MEDSURGCONS-OTHER,Medicine,NHS LOGISTICS,1121102380,1.55,
Department of Health,Salisbury NHS Foundation Trust,02/10/2020,DRESSINGS - PRE STERILE,Medicine,NHS LOGISTICS,1121102380,3.83,
Department of Health,Salisbury NHS Foundation Trust,02/10/2020,PATIENT APPLIANCES,Medicine,NHS LOGISTICS,1121102380,8.08,
Department of Health,Salisbury NHS Foundation Trust,02/10/2020,MEDSURGCONS-OTHER,Medicine,NHS LOGISTICS,1121102380,0.16,
Department of Health,Salisbury NHS Foundation Trust,02/10/2020,MEDSURGCONS-OTHER,Medicine,NHS LOGISTICS,1121102380,0.16,
Department of Health,Salisbury NHS Foundation Trust,02/10/2020,TOILETRIES PERSONAL HYGIENE PRODUCT,Medicine,NHS LOGISTICS,1121102380,3.24,
Department of Health,Salisbury NHS Foundation Trust,02/10/2020,MEDSURGCONS-OTHER,Medicine,NHS LOGISTICS,1121102380,0.78,
Department of Health,Salisbury NHS Foundation Trust,02/10/2020,DISPOSABLE THEATRE DRAPES WIPES,Medicine,NHS LOGISTICS,1121102380,39.02,
Department of Health,Salisbury NHS Foundation Trust,02/10/2020,TISSUES HAND TOWELS & TOILET PAPER,Surgery,NHS LOGISTICS,1121102380,2.44,
Department of Health,Salisbury NHS Foundation Trust,02/10/2020,DRESSINGS - PRE STERILE,Surgery,NHS LOGISTICS,1121102380,4.8,
Department of Health,Salisbury NHS Foundation Trust,02/10/2020,MEDSURGCONS-OTHER,Surgery,NHS LOGISTICS,1121102380,6.76,
Department of Health,Salisbury NHS Foundation Trust,02/10/2020,MEDSURGCONS-OTHER,Surgery,NHS LOGISTICS,1121102380,16.29,
Department of Health,Salisbury NHS Foundation Trust,02/10/2020,MEDSURGCONS-OTHER,Surgery,NHS LOGISTICS,1121102380,3.06,
Department of Health,Salisbury NHS Foundation Trust,02/10/2020,MEDSURGCONS-OTHER,Surgery,NHS LOGISTICS,1121102380,2.39,
Department of Health,Salisbury NHS Foundation Trust,02/10/2020,SURGICAL INSTRUMENTS - GENERAL,Surgery,NHS LOGISTICS,1121102380,29,
Department of Health,Salisbury NHS Foundation Trust,02/10/2020,OTHER MEDICAL SUPPLIES,Surgery,NHS LOGISTICS,1121102380,5.36,
Department of Health,Salisbury NHS Foundation Trust,02/10/2020,SURGICAL INSTRUMENTS - DISPOSABLE,Surgery,NHS LOGISTICS,1121102380,6.75,
Department of Health,Salisbury NHS Foundation Trust,02/10/2020,MEDSURGCONS-OTHER,Surgery,NHS LOGISTICS,1121102380,157.52,
Department of Health,Salisbury NHS Foundation Trust,02/10/2020,MEDSURGCONS-OTHER,Surgery,NHS LOGISTICS,1121102380,157.52,
Department of Health,Salisbury NHS Foundation Trust,02/10/2020,MEDSURGCONS-SUTURES,Surgery,NHS LOGISTICS,1121102380,56.82,
Department of Health,Salisbury NHS Foundation Trust,02/10/2020,MEDSURGCONS-SUTURES,Surgery,NHS LOGISTICS,1121102380,39.09,
Department of Health,Salisbury NHS Foundation Trust,02/10/2020,MEDSURGCONS-SUTURES,Surgery,NHS LOGISTICS,1121102380,64.46,
Department of Health,Salisbury NHS Foundation Trust,02/10/2020,MEDSURGCONS-SUTURES,Surgery,NHS LOGISTICS,1121102380,135.05,
Department of Health,Salisbury NHS Foundation Trust,02/10/2020,MEDSURGCONS-SUTURES,Surgery,NHS LOGISTICS,1121102380,90.34,
Department of Health,Salisbury NHS Foundation Trust,02/10/2020,BEVERAGES & AMBIENT FOOD,Surgery,NHS LOGISTICS,1121102380,5.76,
Department of Health,Salisbury NHS Foundation Trust,02/10/2020,MEDSURGCONS-OTHER,Surgery,NHS LOGISTICS,1121102380,3.53,
Department of Health,Salisbury NHS Foundation Trust,02/10/2020,NON DISPOSABLE BED LINEN,Surgery,NHS LOGISTICS,1121102380,22.56,
Department of Health,Salisbury NHS Foundation Trust,02/10/2020,DISPOSABLE THEATRE DRAPES WIPES,Surgery,NHS LOGISTICS,1121102380,78.04,
Department of Health,Salisbury NHS Foundation Trust,02/10/2020,DRESSINGS - PRE STERILE,Surgery,NHS LOGISTICS,1121102380,194,
Department of Health,Salisbury NHS Foundation Trust,02/10/2020,DRESSINGS - PRE STERILE,Surgery,NHS LOGISTICS,1121102380,279.96,
Department of Health,Salisbury NHS Foundation Trust,02/10/2020,M & S EQUIPELECTEQUIPINST - OTHER,Surgery,NHS LOGISTICS,1121102380,63,
Department of Health,Salisbury NHS Foundation Trust,02/10/2020,MEDSURGCONS-SUTURES,Surgery,NHS LOGISTICS,1121102380,112.27,
Department of Health,Salisbury NHS Foundation Trust,02/10/2020,OTHER MEDICAL SUPPLIES,Surgery,NHS LOGISTICS,1121102380,210.4,
Department of Health,Salisbury NHS Foundation Trust,02/10/2020,MEDSURGCONS-LAPAROSCOPIC EQUIPMENT,Surgery,NHS LOGISTICS,1121102380,120,
Department of Health,Salisbury NHS Foundation Trust,02/10/2020,M & S EQUIPELECTEQUIPINST - OTHER,Surgery,NHS LOGISTICS,1121102380,340,
Department of Health,Salisbury NHS Foundation Trust,02/10/2020,M & S EQUIPELECTEQUIPINST - OTHER,Surgery,NHS LOGISTICS,1121102380,170,
Department of Health,Salisbury NHS Foundation Trust,02/10/2020,MEDSURGCONS-OTHER,Surgery,NHS LOGISTICS,1121102380,182,
Department of Health,Salisbury NHS Foundation Trust,02/10/2020,OTHER MEDICAL SUPPLIES,Surgery,NHS LOGISTICS,1121102380,41,
Department of Health,Salisbury NHS Foundation Trust,02/10/2020,ANAESTHETIC EQUIPMENT ACCESSORIES,Surgery,NHS LOGISTICS,1121102380,75.6,
Department of Health,Salisbury NHS Foundation Trust,02/10/2020,OTHER MEDICAL SUPPLIES,Surgery,NHS LOGISTICS,1121102380,20.6,
Department of Health,Salisbury NHS Foundation Trust,02/10/2020,DRESSINGS  -  PROCEDURE PACKS,Corporate - Finance & Procurement,NHS LOGISTICS,1121102380,161,
Department of Health,Salisbury NHS Foundation Trust,02/10/2020,DRESSINGS  -  PROCEDURE PACKS,Corporate - Finance & Procurement,NHS LOGISTICS,1121102380,207.96,
Department of Health,Salisbury NHS Foundation Trust,02/10/2020,DRESSINGS  -  PROCEDURE PACKS,Corporate - Finance & Procurement,NHS LOGISTICS,1121102380,84.97,
Department of Health,Salisbury NHS Foundation Trust,02/10/2020,DRESSINGS  -  PROCEDURE PACKS,Corporate - Finance & Procurement,NHS LOGISTICS,1121102380,149.7,
Department of Health,Salisbury NHS Foundation Trust,02/10/2020,DRESSINGS  -  PROCEDURE PACKS,Corporate - Finance & Procurement,NHS LOGISTICS,1121102380,65.03,
Department of Health,Salisbury NHS Foundation Trust,02/10/2020,DRESSINGS  -  PROCEDURE PACKS,Corporate - Finance & Procurement,NHS LOGISTICS,1121102380,127.8,
Department of Health,Salisbury NHS Foundation Trust,02/10/2020,DRESSINGS  -  PROCEDURE PACKS,Corporate - Finance & Procurement,NHS LOGISTICS,1121102380,483,
Department of Health,Salisbury NHS Foundation Trust,02/10/2020,TISSUES HAND TOWELS & TOILET PAPER,Clinical Support,NHS LOGISTICS,1121102380,31.59,
Department of Health,Salisbury NHS Foundation Trust,02/10/2020,DISPOSABLE THEATRE DRAPES WIPES,Clinical Support,NHS LOGISTICS,1121102380,62.8,
Department of Health,Salisbury NHS Foundation Trust,02/10/2020,MEDSURGCONS-OTHER,Clinical Support,NHS LOGISTICS,1121102380,6.76,
Department of Health,Salisbury NHS Foundation Trust,02/10/2020,OTHER MEDICAL SUPPLIES,Clinical Support,NHS LOGISTICS,1121102380,6,
Department of Health,Salisbury NHS Foundation Trust,02/10/2020,MEDSURGCONS-SUTURES,Clinical Support,NHS LOGISTICS,1121102380,41.21,
Department of Health,Salisbury NHS Foundation Trust,02/10/2020,DRESSINGS - PRE STERILE,Clinical Support,NHS LOGISTICS,1121102380,4.4,
Department of Health,Salisbury NHS Foundation Trust,02/10/2020,MEDSURGCONS-OTHER,Clinical Support,NHS LOGISTICS,1121102380,1.55,
Department of Health,Salisbury NHS Foundation Trust,02/10/2020,MEDSURGCONS-OTHER,Clinical Support,NHS LOGISTICS,1121102380,15.56,
Department of Health,Salisbury NHS Foundation Trust,02/10/2020,MEDSURGCONS-OTHER,Clinical Support,NHS LOGISTICS,1121102380,5.4,
Department of Health,Salisbury NHS Foundation Trust,02/10/2020,DISPOSABLE THEATRE DRAPES WIPES,Clinical Support,NHS LOGISTICS,1121102380,58.53,
Department of Health,Salisbury NHS Foundation Trust,02/10/2020,OTHER MEDICAL SUPPLIES,Clinical Support,NHS LOGISTICS,1121102380,126,
Department of Health,Salisbury NHS Foundation Trust,02/10/2020,DISPOSABLE THEATRE DRAPES WIPES,Clinical Support,NHS LOGISTICS,1121102380,66.25,
Department of Health,Salisbury NHS Foundation Trust,02/10/2020,TISSUES HAND TOWELS & TOILET PAPER,Medicine,NHS LOGISTICS,1121102380,1.35,
Department of Health,Salisbury NHS Foundation Trust,02/10/2020,OTHER MEDICAL SUPPLIES,Medicine,NHS LOGISTICS,1121102380,7.12,
Department of Health,Salisbury NHS Foundation Trust,02/10/2020,SURGICAL INSTRUMENTS - GENERAL,Medicine,NHS LOGISTICS,1121102380,2.07,
Department of Health,Salisbury NHS Foundation Trust,02/10/2020,MEDSURGCONS-OTHER,Medicine,NHS LOGISTICS,1121102380,3.53,
Department of Health,Salisbury NHS Foundation Trust,02/10/2020,MEDSURGCONS-OTHER,Medicine,NHS LOGISTICS,1121102380,0.78,
Department of Health,Salisbury NHS Foundation Trust,02/10/2020,MEDSURGCONS-OTHER,Medicine,NHS LOGISTICS,1121102380,2.4,
Department of Health,Salisbury NHS Foundation Trust,02/10/2020,DISPOSABLE THEATRE DRAPES WIPES,Medicine,NHS LOGISTICS,1121102380,19.51,
Department of Health,Salisbury NHS Foundation Trust,02/10/2020,OTHER MEDICAL SUPPLIES,Medicine,NHS LOGISTICS,1121102380,41,
Department of Health,Salisbury NHS Foundation Trust,02/10/2020,BAGS SACKS - OTHER,Medicine,NHS LOGISTICS,1121102380,6.4,
Department of Health,Salisbury NHS Foundation Trust,02/10/2020,DRESSINGS - PRE STERILE,Medicine,NHS LOGISTICS,1121102380,2.21,
Department of Health,Salisbury NHS Foundation Trust,02/10/2020,DRESSINGS - PRE STERILE,Medicine,NHS LOGISTICS,1121102380,2,
Department of Health,Salisbury NHS Foundation Trust,02/10/2020,DRESSINGS - PRE STERILE,Medicine,NHS LOGISTICS,1121102380,1.18,
Department of Health,Salisbury NHS Foundation Trust,02/10/2020,DRESSINGS - PRE STERILE,Medicine,NHS LOGISTICS,1121102380,23.28,
Department of Health,Salisbury NHS Foundation Trust,02/10/2020,DRESSINGS - PRE STERILE,Medicine,NHS LOGISTICS,1121102380,3.18,
Department of Health,Salisbury NHS Foundation Trust,02/10/2020,DRESSINGS - PRE STERILE,Medicine,NHS LOGISTICS,1121102380,3.48,
Department of Health,Salisbury NHS Foundation Trust,02/10/2020,DRESSINGS - PRE STERILE,Medicine,NHS LOGISTICS,1121102380,3.82,
Department of Health,Salisbury NHS Foundation Trust,02/10/2020,DRESSINGS - PRE STERILE,Medicine,NHS LOGISTICS,1121102380,6.3,
Department of Health,Salisbury NHS Foundation Trust,02/10/2020,ANAESTHETIC EQUIPMENT ACCESSORIES,Medicine,NHS LOGISTICS,1121102380,37.8,
Department of Health,Salisbury NHS Foundation Trust,02/10/2020,ANAESTHETIC EQUIPMENT ACCESSORIES,Medicine,NHS LOGISTICS,1121102380,185.65,
Department of Health,Salisbury NHS Foundation Trust,02/10/2020,MEDSURGCONS-OTHER,Medicine,NHS LOGISTICS,1121102380,7.94,
Department of Health,Salisbury NHS Foundation Trust,02/10/2020,TOILETRIES PERSONAL HYGIENE PRODUCT,Medicine,NHS LOGISTICS,1121102380,20.1,
Department of Health,Salisbury NHS Foundation Trust,02/10/2020,MEDSURGCONS-OTHER,Medicine,NHS LOGISTICS,1121102380,18.2,
Department of Health,Salisbury NHS Foundation Trust,02/10/2020,PATIENT APPLIANCES,Medicine,NHS LOGISTICS,1121102380,93.61,
Department of Health,Salisbury NHS Foundation Trust,02/10/2020,DRESSINGS - PRE STERILE,Medicine,NHS LOGISTICS,1121102380,1,
Department of Health,Salisbury NHS Foundation Trust,02/10/2020,DRESSINGS - PRE STERILE,Medicine,NHS LOGISTICS,1121102380,3.38,
Department of Health,Salisbury NHS Foundation Trust,02/10/2020,DRESSINGS - PRE STERILE,Medicine,NHS LOGISTICS,1121102380,23.8,
Department of Health,Salisbury NHS Foundation Trust,02/10/2020,M & S EQUIPELECTEQUIPINST - OTHER,Medicine,NHS LOGISTICS,1121102380,3.4,
Department of Health,Salisbury NHS Foundation Trust,02/10/2020,TISSUES HAND TOWELS & TOILET PAPER,Medicine,NHS LOGISTICS,1121102380,4.5,
Department of Health,Salisbury NHS Foundation Trust,02/10/2020,MEDSURGCONS-OTHER,Medicine,NHS LOGISTICS,1121102380,25.4,
Department of Health,Salisbury NHS Foundation Trust,02/10/2020,MEDSURGCONS-OTHER,Medicine,NHS LOGISTICS,1121102380,128.25,
Department of Health,Salisbury NHS Foundation Trust,02/10/2020,MEDSURGCONS-OTHER,Medicine,NHS LOGISTICS,1121102380,10.14,
Department of Health,Salisbury NHS Foundation Trust,02/10/2020,TUBES,Medicine,NHS LOGISTICS,1121102380,5.82,
Department of Health,Salisbury NHS Foundation Trust,02/10/2020,COOKING & KITCHEN UTENSILS,Facilities,NHS LOGISTICS,1121102380,29.67,
Department of Health,Salisbury NHS Foundation Trust,02/10/2020,DISPOSABLE THEATRE DRAPES WIPES,Clinical Support,NHS LOGISTICS,1121102380,19.51,
Department of Health,Salisbury NHS Foundation Trust,02/10/2020,NON DISPOSABLE BED LINEN,Clinical Support,NHS LOGISTICS,1121102380,105,
Department of Health,Salisbury NHS Foundation Trust,02/10/2020,NON DISPOSABLE BED LINEN,Clinical Support,NHS LOGISTICS,1121102380,52.5,
Department of Health,Salisbury NHS Foundation Trust,02/10/2020,NON DISPOSABLE BED LINEN,Clinical Support,NHS LOGISTICS,1121102380,11.28,
Department of Health,Salisbury NHS Foundation Trust,02/10/2020,NON DISPOSABLE BED LINEN,Musculo-Skeletal,NHS LOGISTICS,1121102380,2.32,
Department of Health,Salisbury NHS Foundation Trust,02/10/2020,OPTICAL - OTHER,Surgery,NHS LOGISTICS,1121102380,282.5,
Department of Health,Salisbury NHS Foundation Trust,02/10/2020,DRESSINGS  -  PROCEDURE PACKS,Clinical Support,NHS LOGISTICS,1121102380,153.32,
Department of Health,Salisbury NHS Foundation Trust,02/10/2020,COOKING & KITCHEN UTENSILS,Medicine,NHS LOGISTICS,1121102380,15.28,
Department of Health,Salisbury NHS Foundation Trust,02/10/2020,SURGICAL INSTRUMENTS - DISPOSABLE,Medicine,NHS LOGISTICS,1121102380,2.25,
Department of Health,Salisbury NHS Foundation Trust,02/10/2020,DISPOSABLE THEATRE DRAPES WIPES,Clinical Support,NHS LOGISTICS,1121102380,19.51,
Department of Health,Salisbury NHS Foundation Trust,02/10/2020,DISPOSABLE THEATRE DRAPES WIPES,Clinical Support,NHS LOGISTICS,1121102380,3.46,
Department of Health,Salisbury NHS Foundation Trust,02/10/2020,SURGICAL INSTRUMENTS - DISPOSABLE,Medicine,NHS LOGISTICS,1121102380,4.5,
Department of Health,Salisbury NHS Foundation Trust,02/10/2020,DISPOSABLE THEATRE DRAPES WIPES,Medicine,NHS LOGISTICS,1121102380,19.51,
Department of Health,Salisbury NHS Foundation Trust,02/10/2020,ANAESTHETIC EQUIPMENT ACCESSORIES,Clinical Support,NHS LOGISTICS,1121102380,69.6,
Department of Health,Salisbury NHS Foundation Trust,02/10/2020,ANAESTHETIC EQUIPMENT ACCESSORIES,Clinical Support,NHS LOGISTICS,1121102380,27.89,
Department of Health,Salisbury NHS Foundation Trust,02/10/2020,DRESSINGS  -  PROCEDURE PACKS,Clinical Support,NHS LOGISTICS,1121102380,0.25,
Department of Health,Salisbury NHS Foundation Trust,02/10/2020,DRESSINGS  -  PROCEDURE PACKS,Clinical Support,NHS LOGISTICS,1121102380,1.6,
Department of Health,Salisbury NHS Foundation Trust,02/10/2020,SERVICES FROM NHS BODIES,Clinical Support,NHS LOGISTICS,1121102380,14.91,
Department of Health,Salisbury NHS Foundation Trust,02/10/2020,SERVICES FROM NHS BODIES,Clinical Support,NHS LOGISTICS,1121102380,8.64,
Department of Health,Salisbury NHS Foundation Trust,02/10/2020,PATIENTS BABY WEAR,Medicine,NHS LOGISTICS,1121102380,26.64,
Department of Health,Salisbury NHS Foundation Trust,02/10/2020,PATIENTS BABY WEAR,Medicine,NHS LOGISTICS,1121102380,24.68,
Department of Health,Salisbury NHS Foundation Trust,02/10/2020,PATIENTS BABY WEAR,Medicine,NHS LOGISTICS,1121102380,5.94,
Department of Health,Salisbury NHS Foundation Trust,02/10/2020,TUBES,Surgery,NHS LOGISTICS,1121102380,48.4,
Department of Health,Salisbury NHS Foundation Trust,02/10/2020,TUBES,Surgery,NHS LOGISTICS,1121102380,2.3,
Department of Health,Salisbury NHS Foundation Trust,02/10/2020,NON DISPOSABLE BED LINEN,Medicine,NHS LOGISTICS,1121102380,11.28,
Department of Health,Salisbury NHS Foundation Trust,02/10/2020,DISPOSABLE THEATRE DRAPES WIPES,Medicine,NHS LOGISTICS,1121102380,19.51,
Department of Health,Salisbury NHS Foundation Trust,02/10/2020,HEARING AIDS SPARES,Surgery,NHS LOGISTICS,1121102380,41.6,
Department of Health,Salisbury NHS Foundation Trust,02/10/2020,DISPOSABLE THEATRE DRAPES WIPES,Clinical Support,NHS LOGISTICS,1121102380,39.02,
Department of Health,Salisbury NHS Foundation Trust,02/10/2020,ELECTRICAL EQUIPMENT,Surgery,NHS LOGISTICS,1121102380,0.85,
Department of Health,Salisbury NHS Foundation Trust,02/10/2020,DRESSINGS - PRE STERILE,Clinical Support,NHS LOGISTICS,1121102380,4.4,
Department of Health,Salisbury NHS Foundation Trust,02/10/2020,X-RAY FILM PROCESSING CHEMICALS,Clinical Support,NHS LOGISTICS,1121102380,252,
Department of Health,Salisbury NHS Foundation Trust,02/10/2020,DRESSINGS  -  PROCEDURE PACKS,Surgery,NHS LOGISTICS,1121102380,252,
Department of Health,Salisbury NHS Foundation Trust,02/10/2020,COOKING & KITCHEN UTENSILS,Corporate - Finance & Procurement,NHS LOGISTICS,1121102380,43.8,
Department of Health,Salisbury NHS Foundation Trust,02/10/2020,TUBES,Surgery,NHS LOGISTICS,1121102380,5.24,
Department of Health,Salisbury NHS Foundation Trust,02/10/2020,TUBES,Surgery,NHS LOGISTICS,1121102380,6,
Department of Health,Salisbury NHS Foundation Trust,02/10/2020,PATIENTS INCONTINENCE,Musculo-Skeletal,NHS LOGISTICS,1121102380,2.29,
Department of Health,Salisbury NHS Foundation Trust,02/10/2020,PATIENTS INCONTINENCE,Musculo-Skeletal,NHS LOGISTICS,1121102380,2.36,
Department of Health,Salisbury NHS Foundation Trust,02/10/2020,TUBES,Musculo-Skeletal,NHS LOGISTICS,1121102380,2,
Department of Health,Salisbury NHS Foundation Trust,02/10/2020,DISPOSABLE THEATRE DRAPES WIPES,Medicine,NHS LOGISTICS,1121102380,19.51,
Department of Health,Salisbury NHS Foundation Trust,02/10/2020,SURGICAL INSTRUMENTS - GENERAL,Medicine,NHS LOGISTICS,1121102380,85.5,
Department of Health,Salisbury NHS Foundation Trust,02/10/2020,DRESSINGS - PRE STERILE,Musculo-Skeletal,NHS LOGISTICS,1121102380,3.38,
Department of Health,Salisbury NHS Foundation Trust,02/10/2020,DRESSINGS - PRE STERILE,Musculo-Skeletal,NHS LOGISTICS,1121102380,5.68,
Department of Health,Salisbury NHS Foundation Trust,02/10/2020,RENAL CONSUMEABLES,Medicine,NHS LOGISTICS,1121102380,33,
Department of Health,Salisbury NHS Foundation Trust,02/10/2020,TUBES,Medicine,NHS LOGISTICS,1121102380,5.94,
Department of Health,Salisbury NHS Foundation Trust,02/10/2020,TUBES,Medicine,NHS LOGISTICS,1121102380,0.8,
Department of Health,Salisbury NHS Foundation Trust,02/10/2020,MEDSURGCONS-SUTURES,Musculo-Skeletal,NHS LOGISTICS,1121102380,114.54,
Department of Health,Salisbury NHS Foundation Trust,02/10/2020,TUBES,Surgery,NHS LOGISTICS,1121102380,2,
Department of Health,Salisbury NHS Foundation Trust,02/10/2020,TOILETRIES PERSONAL HYGIENE PRODUCT,Medicine,NHS LOGISTICS,1121102380,3.35,
Department of Health,Salisbury NHS Foundation Trust,02/10/2020,DRUGS,Medicine,NHS LOGISTICS,1121102380,72.36,
Department of Health,Salisbury NHS Foundation Trust,02/10/2020,MEDSURGCONS-SUTURES,Medicine,NHS LOGISTICS,1121102380,49.8,
Department of Health,Salisbury NHS Foundation Trust,02/10/2020,BEVERAGES & AMBIENT FOOD,Medicine,NHS LOGISTICS,1121102380,2.88,
Department of Health,Salisbury NHS Foundation Trust,02/10/2020,NON DISPOSABLE BED LINEN,Medicine,NHS LOGISTICS,1121102380,10.5,
Department of Health,Salisbury NHS Foundation Trust,02/10/2020,NON DISPOSABLE BED LINEN,Medicine,NHS LOGISTICS,1121102380,5.64,
Department of Health,Salisbury NHS Foundation Trust,02/10/2020,M & S EQUIPELECTEQUIPINST - OTHER,Facilities,NHS LOGISTICS,1121102380,11.76,
Department of Health,Salisbury NHS Foundation Trust,02/10/2020,M & S EQUIPELECTEQUIPINST - OTHER,Facilities,NHS LOGISTICS,1121102380,29.6,
Department of Health,Salisbury NHS Foundation Trust,02/10/2020,M & S EQUIPELECTEQUIPINST - OTHER,Facilities,NHS LOGISTICS,1121102380,2.84,
Department of Health,Salisbury NHS Foundation Trust,02/10/2020,HEALTHCARE - WEAR,Medicine,NHS LOGISTICS,1121102380,165,
Department of Health,Salisbury NHS Foundation Trust,02/10/2020,PATIENTS BABY WEAR,Facilities,NHS LOGISTICS,1121102380,19.98,
Department of Health,Salisbury NHS Foundation Trust,02/10/2020,PATIENTS BABY WEAR,Facilities,NHS LOGISTICS,1121102380,18.51,
Department of Health,Salisbury NHS Foundation Trust,02/10/2020,DENTAL SURGERY SUNDRIES,Facilities,NHS LOGISTICS,1121102380,2.52,
Department of Health,Salisbury NHS Foundation Trust,02/10/2020,OTHER MEDICAL SUPPLIES,Facilities,NHS LOGISTICS,1121102380,41,
Department of Health,Salisbury NHS Foundation Trust,02/10/2020,OTHER MEDICAL SUPPLIES,Facilities,NHS LOGISTICS,1121102380,7.12,
Department of Health,Salisbury NHS Foundation Trust,02/10/2020,OTHER MEDICAL SUPPLIES,Facilities,NHS LOGISTICS,1121102380,6.7,
Department of Health,Salisbury NHS Foundation Trust,02/10/2020,BAGS SACKS - OTHER,Facilities,NHS LOGISTICS,1121102380,3.2,
Department of Health,Salisbury NHS Foundation Trust,02/10/2020,TOILETRIES PERSONAL HYGIENE PRODUCT,Facilities,NHS LOGISTICS,1121102380,13.4,
Department of Health,Salisbury NHS Foundation Trust,02/10/2020,MEDSURGCONS-OTHER,Facilities,NHS LOGISTICS,1121102380,13.52,
Department of Health,Salisbury NHS Foundation Trust,02/10/2020,TOILETRIES PERSONAL HYGIENE PRODUCT,Facilities,NHS LOGISTICS,1121102380,1.77,
Department of Health,Salisbury NHS Foundation Trust,02/10/2020,TOILETRIES PERSONAL HYGIENE PRODUCT,Facilities,NHS LOGISTICS,1121102380,9.72,
Department of Health,Salisbury NHS Foundation Trust,02/10/2020,MEDSURGCONS-OTHER,Facilities,NHS LOGISTICS,1121102380,16.8,
Department of Health,Salisbury NHS Foundation Trust,02/10/2020,DISPOSABLE THEATRE DRAPES WIPES,Facilities,NHS LOGISTICS,1121102380,39.02,
Department of Health,Salisbury NHS Foundation Trust,02/10/2020,ELECTRICAL EQUIPMENT,Medicine,NHS LOGISTICS,1121102380,9.8,
Department of Health,Salisbury NHS Foundation Trust,02/10/2020,TUBES,Medicine,NHS LOGISTICS,1121102380,0.6,
Department of Health,Salisbury NHS Foundation Trust,02/10/2020,NON DISPOSABLE BED LINEN,Medicine,NHS LOGISTICS,1121102380,8.46,
Department of Health,Salisbury NHS Foundation Trust,02/10/2020,TUBES,Medicine,NHS LOGISTICS,1121102380,10.48,
Department of Health,Salisbury NHS Foundation Trust,02/10/2020,TUBES,Medicine,NHS LOGISTICS,1121102380,5.94,
Department of Health,Salisbury NHS Foundation Trust,02/10/2020,DRESSINGS - PRE STERILE,Medicine,NHS LOGISTICS,1121102380,5.68,
Department of Health,Salisbury NHS Foundation Trust,02/10/2020,OTHER MEDICAL SUPPLIES,Medicine,NHS LOGISTICS,1121102380,2.8,
Department of Health,Salisbury NHS Foundation Trust,02/10/2020,PATIENT APPLIANCES,Medicine,NHS LOGISTICS,1121102380,10.5,
Department of Health,Salisbury NHS Foundation Trust,02/10/2020,DRESSINGS  -  PROCEDURE PACKS,Medicine,NHS LOGISTICS,1121102380,3.5,
Department of Health,Salisbury NHS Foundation Trust,02/10/2020,MEDSURGCONS-OTHER,Medicine,NHS LOGISTICS,1121102380,90,
Department of Health,Salisbury NHS Foundation Trust,02/10/2020,OTHER MEDICAL SUPPLIES,Medicine,NHS LOGISTICS,1121102380,1.34,
Department of Health,Salisbury NHS Foundation Trust,02/10/2020,PATIENTS INCONTINENCE,Medicine,NHS LOGISTICS,1121102380,6.78,
Department of Health,Salisbury NHS Foundation Trust,02/10/2020,DRUGS,Medicine,NHS LOGISTICS,1121102380,24.06,
Department of Health,Salisbury NHS Foundation Trust,02/10/2020,MEDSURGCONS-OTHER,Medicine,NHS LOGISTICS,1121102380,18,
Department of Health,Salisbury NHS Foundation Trust,02/10/2020,MEDSURGCONS-OTHER,Medicine,NHS LOGISTICS,1121102380,3.53,
Department of Health,Salisbury NHS Foundation Trust,02/10/2020,DRESSINGS - PRE STERILE,Medicine,NHS LOGISTICS,1121102380,5.52,
Department of Health,Salisbury NHS Foundation Trust,02/10/2020,DRESSINGS - PRE STERILE,Medicine,NHS LOGISTICS,1121102380,0.93,
Department of Health,Salisbury NHS Foundation Trust,02/10/2020,DRESSINGS - PRE STERILE,Medicine,NHS LOGISTICS,1121102380,9,
Department of Health,Salisbury NHS Foundation Trust,02/10/2020,DRESSINGS - PRE STERILE,Medicine,NHS LOGISTICS,1121102380,9,
Department of Health,Salisbury NHS Foundation Trust,02/10/2020,MEDSURGCONS-OTHER,Medicine,NHS LOGISTICS,1121102380,15.5,
Department of Health,Salisbury NHS Foundation Trust,02/10/2020,NON DISPOSABLE BED LINEN,Medicine,NHS LOGISTICS,1121102380,5.64,
Department of Health,Salisbury NHS Foundation Trust,02/10/2020,MEDSURGCONS-OTHER,Medicine,NHS LOGISTICS,1121102380,0.64,
Department of Health,Salisbury NHS Foundation Trust,02/10/2020,TOILETRIES PERSONAL HYGIENE PRODUCT,Medicine,NHS LOGISTICS,1121102380,5.75,
Department of Health,Salisbury NHS Foundation Trust,02/10/2020,DISPOSABLE THEATRE DRAPES WIPES,Medicine,NHS LOGISTICS,1121102380,78.04,
Department of Health,Salisbury NHS Foundation Trust,02/10/2020,DRESSINGS - PRE STERILE,Medicine,NHS LOGISTICS,1121102380,2.79,
Department of Health,Salisbury NHS Foundation Trust,02/10/2020,OTHER MEDICAL SUPPLIES,Medicine,NHS LOGISTICS,1121102380,55,
Department of Health,Salisbury NHS Foundation Trust,02/10/2020,PATIENT APPLIANCES,Medicine,NHS LOGISTICS,1121102380,29.95,
Department of Health,Salisbury NHS Foundation Trust,02/10/2020,PATIENT APPLIANCES,Medicine,NHS LOGISTICS,1121102380,29.95,
Department of Health,Salisbury NHS Foundation Trust,02/10/2020,MEDSURGCONS-SUTURES,Medicine,NHS LOGISTICS,1121102380,42.72,
Department of Health,Salisbury NHS Foundation Trust,02/10/2020,MEDSURGCONS-SUTURES,Medicine,NHS LOGISTICS,1121102380,56.6,
Department of Health,Salisbury NHS Foundation Trust,02/10/2020,TUBES,Surgery,NHS LOGISTICS,1121102380,349.13,
Department of Health,Salisbury NHS Foundation Trust,02/10/2020,MEDSURGCONS-LAPAROSCOPIC EQUIPMENT,Surgery,NHS LOGISTICS,1121102380,114,
Department of Health,Salisbury NHS Foundation Trust,02/10/2020,MEDSURGCONS-LAPAROSCOPIC EQUIPMENT,Surgery,NHS LOGISTICS,1121102380,72,
Department of Health,Salisbury NHS Foundation Trust,02/10/2020,MEDSURGCONS-LAPAROSCOPIC EQUIPMENT,Surgery,NHS LOGISTICS,1121102380,144,
Department of Health,Salisbury NHS Foundation Trust,02/10/2020,M & S EQUIPELECTEQUIPINST - OTHER,Surgery,NHS LOGISTICS,1121102380,4.55,
Department of Health,Salisbury NHS Foundation Trust,02/10/2020,DRESSINGS - PRE STERILE,Surgery,NHS LOGISTICS,1121102380,2.72,
Department of Health,Salisbury NHS Foundation Trust,02/10/2020,DRESSINGS - PRE STERILE,Surgery,NHS LOGISTICS,1121102380,35.19,
Department of Health,Salisbury NHS Foundation Trust,02/10/2020,DRESSINGS - PRE STERILE,Surgery,NHS LOGISTICS,1121102380,5.86,
Department of Health,Salisbury NHS Foundation Trust,02/10/2020,SURGICAL INSTRUMENTS - GENERAL,Surgery,NHS LOGISTICS,1121102380,14.5,
Department of Health,Salisbury NHS Foundation Trust,02/10/2020,DRUGS,Surgery,NHS LOGISTICS,1121102380,161.62,
Department of Health,Salisbury NHS Foundation Trust,02/10/2020,MEDSURGCONS-OTHER,Surgery,NHS LOGISTICS,1121102380,18,
Department of Health,Salisbury NHS Foundation Trust,02/10/2020,MEDSURGCONS-SUTURES,Surgery,NHS LOGISTICS,1121102380,27.67,
Department of Health,Salisbury NHS Foundation Trust,02/10/2020,MEDSURGCONS-SUTURES,Surgery,NHS LOGISTICS,1121102380,63.95,
Department of Health,Salisbury NHS Foundation Trust,02/10/2020,MEDSURGCONS-SUTURES,Surgery,NHS LOGISTICS,1121102380,39.97,
Department of Health,Salisbury NHS Foundation Trust,02/10/2020,MEDSURGCONS-SUTURES,Surgery,NHS LOGISTICS,1121102380,18.89,
Department of Health,Salisbury NHS Foundation Trust,02/10/2020,MEDSURGCONS-SUTURES,Surgery,NHS LOGISTICS,1121102380,39.01,
Department of Health,Salisbury NHS Foundation Trust,02/10/2020,MEDSURGCONS-SUTURES,Surgery,NHS LOGISTICS,1121102380,21.6,
Department of Health,Salisbury NHS Foundation Trust,02/10/2020,MEDSURGCONS-SUTURES,Surgery,NHS LOGISTICS,1121102380,45.17,
Department of Health,Salisbury NHS Foundation Trust,02/10/2020,MEDSURGCONS-SUTURES,Surgery,NHS LOGISTICS,1121102380,104.42,
Department of Health,Salisbury NHS Foundation Trust,02/10/2020,DRESSINGS - PRE STERILE,Surgery,NHS LOGISTICS,1121102380,5.16,
Department of Health,Salisbury NHS Foundation Trust,02/10/2020,NON DISPOSABLE BED LINEN,Surgery,NHS LOGISTICS,1121102380,16.92,
Department of Health,Salisbury NHS Foundation Trust,02/10/2020,DISPOSABLE THEATRE DRAPES WIPES,Surgery,NHS LOGISTICS,1121102380,39.02,
Department of Health,Salisbury NHS Foundation Trust,02/10/2020,LAB EQUIP-LABORATORY APPARATUS,Surgery,NHS LOGISTICS,1121102380,4.45,
Department of Health,Salisbury NHS Foundation Trust,02/10/2020,MEDPROST-TRAUMA PRODUCTS,Surgery,NHS LOGISTICS,1121102380,135.38,
Department of Health,Salisbury NHS Foundation Trust,02/10/2020,MEDPROST-TRAUMA PRODUCTS,Surgery,NHS LOGISTICS,1121102380,126.83,
Department of Health,Salisbury NHS Foundation Trust,02/10/2020,DRESSINGS - PRE STERILE,Surgery,NHS LOGISTICS,1121102380,97,
Department of Health,Salisbury NHS Foundation Trust,02/10/2020,DRESSINGS - PRE STERILE,Surgery,NHS LOGISTICS,1121102380,139.98,
Department of Health,Salisbury NHS Foundation Trust,02/10/2020,MEDSURGCONS-SUTURES,Surgery,NHS LOGISTICS,1121102380,101.62,
Department of Health,Salisbury NHS Foundation Trust,02/10/2020,MEDSURGCONS-OTHER,Surgery,NHS LOGISTICS,1121102380,177.7,
Department of Health,Salisbury NHS Foundation Trust,02/10/2020,MEDSURGCONS-OTHER,Surgery,NHS LOGISTICS,1121102380,177.7,
Department of Health,Salisbury NHS Foundation Trust,02/10/2020,MEDSURGCONS-OTHER,Surgery,NHS LOGISTICS,1121102380,457.6,
Department of Health,Salisbury NHS Foundation Trust,02/10/2020,MEDSURGCONS-OTHER,Surgery,NHS LOGISTICS,1121102380,429.44,
Department of Health,Salisbury NHS Foundation Trust,02/10/2020,MEDSURGCONS-OTHER,Surgery,NHS LOGISTICS,1121102380,429.44,
Department of Health,Salisbury NHS Foundation Trust,02/10/2020,MEDSURGCONS-OTHER,Surgery,NHS LOGISTICS,1121102380,721.6,
Department of Health,Salisbury NHS Foundation Trust,02/10/2020,MEDSURGCONS-OTHER,Surgery,NHS LOGISTICS,1121102380,107.36,
Department of Health,Salisbury NHS Foundation Trust,02/10/2020,M & S EQUIPELECTEQUIPINST - OTHER,Surgery,NHS LOGISTICS,1121102380,270,
Department of Health,Salisbury NHS Foundation Trust,02/10/2020,M & S EQUIPELECTEQUIPINST - OTHER,Surgery,NHS LOGISTICS,1121102380,270,
Department of Health,Salisbury NHS Foundation Trust,02/10/2020,MEDSURGCONS-OTHER,Clinical Support,NHS LOGISTICS,1121102380,39.38,
Department of Health,Salisbury NHS Foundation Trust,02/10/2020,MEDSURGCONS-OTHER,Clinical Support,NHS LOGISTICS,1121102380,77.87,
Department of Health,Salisbury NHS Foundation Trust,02/10/2020,MEDSURGCONS-OTHER,Medicine,NHS LOGISTICS,1121102380,1700,
Department of Health,Salisbury NHS Foundation Trust,02/10/2020,MEDSURGCONS-OTHER,Medicine,NHS LOGISTICS,1121102380,50,
Department of Health,Salisbury NHS Foundation Trust,02/10/2020,MEDSURGCONS-OTHER,Medicine,NHS LOGISTICS,1121102380,25,
Department of Health,Salisbury NHS Foundation Trust,02/10/2020,MEDSURGCONS-OTHER,Medicine,NHS LOGISTICS,1121102380,185,
Department of Health,Salisbury NHS Foundation Trust,02/10/2020,MEDSURGCONS-OTHER,Medicine,NHS LOGISTICS,1121102380,185,
Department of Health,Salisbury NHS Foundation Trust,02/10/2020,MEDSURGCONS-OTHER,Medicine,NHS LOGISTICS,1121102380,42,
Department of Health,Salisbury NHS Foundation Trust,02/10/2020,MEDSURGCONS-OTHER,Medicine,NHS LOGISTICS,1121102380,42,
Department of Health,Salisbury NHS Foundation Trust,02/10/2020,MEDSURGCONS-OTHER,Medicine,NHS LOGISTICS,1121102380,21,
Department of Health,Salisbury NHS Foundation Trust,02/10/2020,MEDSURGCONS-OTHER,Medicine,NHS LOGISTICS,1121102380,47.5,
Department of Health,Salisbury NHS Foundation Trust,02/10/2020,MEDSURGCONS-OTHER,Medicine,NHS LOGISTICS,1121102380,500,
Department of Health,Salisbury NHS Foundation Trust,02/10/2020,MEDSURGCONS-OTHER,Medicine,NHS LOGISTICS,1121102380,67,
Department of Health,Salisbury NHS Foundation Trust,02/10/2020,MEDSURGCONS-OTHER,Medicine,NHS LOGISTICS,1121102380,175,
Department of Health,Salisbury NHS Foundation Trust,02/10/2020,MEDSURGCONS-OTHER,Medicine,NHS LOGISTICS,1121102380,87.5,
Department of Health,Salisbury NHS Foundation Trust,02/10/2020,MEDSURGCONS-OTHER,Medicine,NHS LOGISTICS,1121102380,160,
Department of Health,Salisbury NHS Foundation Trust,02/10/2020,MED PROSTH - PACEMAKERS,Medicine,NHS LOGISTICS,1121102380,80,
Department of Health,Salisbury NHS Foundation Trust,02/10/2020,MED PROSTH - PACEMAKERS,Medicine,NHS LOGISTICS,1121102380,80,
Department of Health,Salisbury NHS Foundation Trust,02/10/2020,MED PROSTH - PACEMAKERS,Medicine,NHS LOGISTICS,1121102380,800,
Department of Health,Salisbury NHS Foundation Trust,02/10/2020,MED PROSTH - PACEMAKERS,Medicine,NHS LOGISTICS,1121102380,660,
Department of Health,Salisbury NHS Foundation Trust,02/10/2020,MEDSURGCONS-OTHER,Medicine,NHS LOGISTICS,1121102380,215,
Department of Health,Salisbury NHS Foundation Trust,02/10/2020,MEDSURGCONS-OTHER,Medicine,NHS LOGISTICS,1121102380,215,
Department of Health,Salisbury NHS Foundation Trust,02/10/2020,MEDSURGCONS-OTHER,Medicine,NHS LOGISTICS,1121102380,1200,
Department of Health,Salisbury NHS Foundation Trust,02/10/2020,MEDSURGCONS-OTHER,Medicine,NHS LOGISTICS,1121102380,10,
Department of Health,Salisbury NHS Foundation Trust,02/10/2020,DRESSINGS  -  PROCEDURE PACKS,Clinical Support,NHS LOGISTICS,1121102380,7.77,
Department of Health,Salisbury NHS Foundation Trust,02/10/2020,TISSUES HAND TOWELS & TOILET PAPER,Surgery,NHS LOGISTICS,1121102380,2.44,
Department of Health,Salisbury NHS Foundation Trust,02/10/2020,DISPOSABLE THEATRE DRAPES WIPES,Surgery,NHS LOGISTICS,1121102380,4.2,
Department of Health,Salisbury NHS Foundation Trust,02/10/2020,BAGS SACKS - OTHER,Clinical Support,NHS LOGISTICS,1121102380,3.2,
Department of Health,Salisbury NHS Foundation Trust,02/10/2020,TISSUES HAND TOWELS & TOILET PAPER,Clinical Support,NHS LOGISTICS,1121102380,3.66,
Department of Health,Salisbury NHS Foundation Trust,02/10/2020,MEDSURGCONS-OTHER,Clinical Support,NHS LOGISTICS,1121102380,6.76,
Department of Health,Salisbury NHS Foundation Trust,02/10/2020,MEDSURGCONS-OTHER,Clinical Support,NHS LOGISTICS,1121102380,5.43,
Department of Health,Salisbury NHS Foundation Trust,02/10/2020,MEDSURGCONS-OTHER,Clinical Support,NHS LOGISTICS,1121102380,25.17,
Department of Health,Salisbury NHS Foundation Trust,02/10/2020,OTHER MEDICAL SUPPLIES,Clinical Support,NHS LOGISTICS,1121102380,3,
Department of Health,Salisbury NHS Foundation Trust,02/10/2020,MEDSURGCONS-OTHER,Clinical Support,NHS LOGISTICS,1121102380,22.5,
Department of Health,Salisbury NHS Foundation Trust,02/10/2020,SERVICES FROM NHS BODIES,Clinical Support,NHS LOGISTICS,1121102380,8.64,
Department of Health,Salisbury NHS Foundation Trust,02/10/2020,DRESSINGS - PRE STERILE,Clinical Support,NHS LOGISTICS,1121102380,8.8,
Department of Health,Salisbury NHS Foundation Trust,02/10/2020,MEDSURGCONS-OTHER,Clinical Support,NHS LOGISTICS,1121102380,7.78,
Department of Health,Salisbury NHS Foundation Trust,02/10/2020,TUBES,Clinical Support,NHS LOGISTICS,1121102380,12,
Department of Health,Salisbury NHS Foundation Trust,02/10/2020,TUBES,Clinical Support,NHS LOGISTICS,1121102380,3,
Department of Health,Salisbury NHS Foundation Trust,02/10/2020,X-RAY FILM PROCESSING CHEMICALS,Clinical Support,NHS LOGISTICS,1121102380,63,
Department of Health,Salisbury NHS Foundation Trust,02/10/2020,NON DISPOSABLE BED LINEN,Clinical Support,NHS LOGISTICS,1121102380,2.82,
Department of Health,Salisbury NHS Foundation Trust,02/10/2020,DISPOSABLE THEATRE DRAPES WIPES,Clinical Support,NHS LOGISTICS,1121102380,19.51,
Department of Health,Salisbury NHS Foundation Trust,02/10/2020,M & S EQUIPELECTEQUIPINST - OTHER,Clinical Support,NHS LOGISTICS,1121102380,110,
Department of Health,Salisbury NHS Foundation Trust,02/10/2020,M & S EQUIPELECTEQUIPINST - OTHER,Clinical Support,NHS LOGISTICS,1121102380,159.6,
Department of Health,Salisbury NHS Foundation Trust,02/10/2020,M & S EQUIPELECTEQUIPINST - OTHER,Clinical Support,NHS LOGISTICS,1121102380,173.4,
Department of Health,Salisbury NHS Foundation Trust,02/10/2020,M & S EQUIPELECTEQUIPINST - OTHER,Clinical Support,NHS LOGISTICS,1121102380,63,
Department of Health,Salisbury NHS Foundation Trust,02/10/2020,M & S EQUIPELECTEQUIPINST - OTHER,Clinical Support,NHS LOGISTICS,1121102380,343,
Department of Health,Salisbury NHS Foundation Trust,02/10/2020,OTHER MEDICAL SUPPLIES,Surgery,NHS LOGISTICS,1121102380,41,
Department of Health,Salisbury NHS Foundation Trust,02/10/2020,BAGS SACKS - OTHER,Surgery,NHS LOGISTICS,1121102380,3.2,
Department of Health,Salisbury NHS Foundation Trust,02/10/2020,DRESSINGS - PRE STERILE,Surgery,NHS LOGISTICS,1121102380,0.68,
Department of Health,Salisbury NHS Foundation Trust,02/10/2020,DRESSINGS - PRE STERILE,Surgery,NHS LOGISTICS,1121102380,1.46,
Department of Health,Salisbury NHS Foundation Trust,02/10/2020,MEDSURGCONS-OTHER,Surgery,NHS LOGISTICS,1121102380,7.94,
Department of Health,Salisbury NHS Foundation Trust,02/10/2020,TOILETRIES PERSONAL HYGIENE PRODUCT,Surgery,NHS LOGISTICS,1121102380,7.98,
Department of Health,Salisbury NHS Foundation Trust,02/10/2020,MEDSURGCONS-OTHER,Surgery,NHS LOGISTICS,1121102380,4.55,
Department of Health,Salisbury NHS Foundation Trust,02/10/2020,DRESSINGS - PRE STERILE,Surgery,NHS LOGISTICS,1121102380,2.38,
Department of Health,Salisbury NHS Foundation Trust,02/10/2020,MED SURG EQUIP REP MAINT CLEANING,Surgery,NHS LOGISTICS,1121102380,43.05,
Department of Health,Salisbury NHS Foundation Trust,02/10/2020,MEDSURGCONS-OTHER,Surgery,NHS LOGISTICS,1121102380,6.76,
Department of Health,Salisbury NHS Foundation Trust,02/10/2020,MEDSURGCONS-OTHER,Surgery,NHS LOGISTICS,1121102380,5.43,
Department of Health,Salisbury NHS Foundation Trust,02/10/2020,M & S EQUIPELECTEQUIPINST - OTHER,Surgery,NHS LOGISTICS,1121102380,4.75,
Department of Health,Salisbury NHS Foundation Trust,02/10/2020,DRESSINGS  -  PROCEDURE PACKS,Surgery,NHS LOGISTICS,1121102380,1.4,
Department of Health,Salisbury NHS Foundation Trust,02/10/2020,DRESSINGS  -  PROCEDURE PACKS,Surgery,NHS LOGISTICS,1121102380,6.4,
Department of Health,Salisbury NHS Foundation Trust,02/10/2020,OTHER MEDICAL SUPPLIES,Surgery,NHS LOGISTICS,1121102380,4.02,
Department of Health,Salisbury NHS Foundation Trust,02/10/2020,SURGICAL INSTRUMENTS - DISPOSABLE,Surgery,NHS LOGISTICS,1121102380,4.5,
Department of Health,Salisbury NHS Foundation Trust,02/10/2020,PATIENT APPLIANCES,Surgery,NHS LOGISTICS,1121102380,4,
Department of Health,Salisbury NHS Foundation Trust,02/10/2020,PATIENT APPLIANCES,Surgery,NHS LOGISTICS,1121102380,2.5,
Department of Health,Salisbury NHS Foundation Trust,02/10/2020,PATIENT APPLIANCES,Surgery,NHS LOGISTICS,1121102380,4,
Department of Health,Salisbury NHS Foundation Trust,02/10/2020,TOILETRIES PERSONAL HYGIENE PRODUCT,Surgery,NHS LOGISTICS,1121102380,3.26,
Department of Health,Salisbury NHS Foundation Trust,02/10/2020,DRESSINGS - PRE STERILE,Surgery,NHS LOGISTICS,1121102380,2.76,
Department of Health,Salisbury NHS Foundation Trust,02/10/2020,SURGICAL INSTRUMENTS - GENERAL,Surgery,NHS LOGISTICS,1121102380,0.21,
Department of Health,Salisbury NHS Foundation Trust,02/10/2020,DRESSINGS - PRE STERILE,Surgery,NHS LOGISTICS,1121102380,4.08,
Department of Health,Salisbury NHS Foundation Trust,02/10/2020,DRESSINGS - PRE STERILE,Surgery,NHS LOGISTICS,1121102380,2.84,
Department of Health,Salisbury NHS Foundation Trust,02/10/2020,M & S EQUIPELECTEQUIPINST - OTHER,Surgery,NHS LOGISTICS,1121102380,0.61,
Department of Health,Salisbury NHS Foundation Trust,02/10/2020,MEDSURGCONS-OTHER,Surgery,NHS LOGISTICS,1121102380,1.55,
Department of Health,Salisbury NHS Foundation Trust,02/10/2020,TUBES,Surgery,NHS LOGISTICS,1121102380,2,
Department of Health,Salisbury NHS Foundation Trust,02/10/2020,NON DISPOSABLE BED LINEN,Surgery,NHS LOGISTICS,1121102380,5.64,
Department of Health,Salisbury NHS Foundation Trust,02/10/2020,PATIENT APPLIANCES,Surgery,NHS LOGISTICS,1121102380,12.28,
Department of Health,Salisbury NHS Foundation Trust,02/10/2020,DISPOSABLE THEATRE DRAPES WIPES,Surgery,NHS LOGISTICS,1121102380,19.51,
Department of Health,Salisbury NHS Foundation Trust,02/10/2020,TISSUES HAND TOWELS & TOILET PAPER,Musculo-Skeletal,NHS LOGISTICS,1121102380,2.44,
Department of Health,Salisbury NHS Foundation Trust,02/10/2020,PATIENT APPLIANCES,Musculo-Skeletal,NHS LOGISTICS,1121102380,13.95,
Department of Health,Salisbury NHS Foundation Trust,02/10/2020,TISSUES HAND TOWELS & TOILET PAPER,Musculo-Skeletal,NHS LOGISTICS,1121102380,0.27,
Department of Health,Salisbury NHS Foundation Trust,02/10/2020,MEDSURGCONS-OTHER,Musculo-Skeletal,NHS LOGISTICS,1121102380,3.38,
Department of Health,Salisbury NHS Foundation Trust,02/10/2020,PATIENT APPLIANCES,Musculo-Skeletal,NHS LOGISTICS,1121102380,7,
Department of Health,Salisbury NHS Foundation Trust,02/10/2020,PATIENT APPLIANCES,Musculo-Skeletal,NHS LOGISTICS,1121102380,3.5,
Department of Health,Salisbury NHS Foundation Trust,02/10/2020,PATIENT APPLIANCES,Musculo-Skeletal,NHS LOGISTICS,1121102380,3.5,
Department of Health,Salisbury NHS Foundation Trust,02/10/2020,OTHER MEDICAL SUPPLIES,Musculo-Skeletal,NHS LOGISTICS,1121102380,1.34,
Department of Health,Salisbury NHS Foundation Trust,02/10/2020,MEDSURGCONS-OTHER,Musculo-Skeletal,NHS LOGISTICS,1121102380,7.78,
Department of Health,Salisbury NHS Foundation Trust,02/10/2020,DISPOSABLE THEATRE DRAPES WIPES,Musculo-Skeletal,NHS LOGISTICS,1121102380,19.51,
Department of Health,Salisbury NHS Foundation Trust,02/10/2020,MEDSURGCONS-OTHER,Medicine,NHS LOGISTICS,1121102380,33.5,
Department of Health,Salisbury NHS Foundation Trust,02/10/2020,MEDSURGCONS-OTHER,Medicine,NHS LOGISTICS,1121102380,33.5,
Department of Health,Salisbury NHS Foundation Trust,02/10/2020,MEDSURGCONS-OTHER,Medicine,NHS LOGISTICS,1121102380,33.5,
Department of Health,Salisbury NHS Foundation Trust,02/10/2020,MEDSURGCONS-OTHER,Medicine,NHS LOGISTICS,1121102380,33.5,
Department of Health,Salisbury NHS Foundation Trust,02/10/2020,MEDSURGCONS-OTHER,Medicine,NHS LOGISTICS,1121102380,152.5,
Department of Health,Salisbury NHS Foundation Trust,02/10/2020,MEDSURGCONS-OTHER,Medicine,NHS LOGISTICS,1121102380,550,
Department of Health,Salisbury NHS Foundation Trust,02/10/2020,SURGICAL INSTRUMENTS - GENERAL,Medicine,NHS LOGISTICS,1121102380,181.25,
Department of Health,Salisbury NHS Foundation Trust,02/10/2020,TISSUES HAND TOWELS & TOILET PAPER,Surgery,NHS LOGISTICS,1121102380,3.6,
Department of Health,Salisbury NHS Foundation Trust,02/10/2020,MEDSURGCONS-OTHER,Surgery,NHS LOGISTICS,1121102380,39.38,
Department of Health,Salisbury NHS Foundation Trust,02/10/2020,MEDSURGCONS-OTHER,Surgery,NHS LOGISTICS,1121102380,39.38,
Department of Health,Salisbury NHS Foundation Trust,02/10/2020,OTHER MEDICAL SUPPLIES,Medicine,NHS LOGISTICS,1121102380,101,
Department of Health,Salisbury NHS Foundation Trust,02/10/2020,OTHER MEDICAL SUPPLIES,Medicine,NHS LOGISTICS,1121102380,13.8,
Department of Health,Salisbury NHS Foundation Trust,02/10/2020,DRESSINGS - PRE STERILE,Medicine,NHS LOGISTICS,1121102380,0.68,
Department of Health,Salisbury NHS Foundation Trust,02/10/2020,TISSUES HAND TOWELS & TOILET PAPER,Medicine,NHS LOGISTICS,1121102380,1.22,
Department of Health,Salisbury NHS Foundation Trust,02/10/2020,CLEANING MATERIAL PRODUCTS SUNDRIES,Medicine,NHS LOGISTICS,1121102380,6.6,
Department of Health,Salisbury NHS Foundation Trust,02/10/2020,TISSUES HAND TOWELS & TOILET PAPER,Medicine,NHS LOGISTICS,1121102380,0.27,
Department of Health,Salisbury NHS Foundation Trust,02/10/2020,M & S EQUIPELECTEQUIPINST - OTHER,Medicine,NHS LOGISTICS,1121102380,11.76,
Department of Health,Salisbury NHS Foundation Trust,02/10/2020,MEDSURGCONS-OTHER,Medicine,NHS LOGISTICS,1121102380,6.76,
Department of Health,Salisbury NHS Foundation Trust,02/10/2020,MEDSURGCONS-OTHER,Medicine,NHS LOGISTICS,1121102380,5.43,
Department of Health,Salisbury NHS Foundation Trust,02/10/2020,DRESSINGS - PRE STERILE,Medicine,NHS LOGISTICS,1121102380,0.71,
Department of Health,Salisbury NHS Foundation Trust,02/10/2020,DRESSINGS - PRE STERILE,Medicine,NHS LOGISTICS,1121102380,22.33,
Department of Health,Salisbury NHS Foundation Trust,02/10/2020,MEDSURGCONS-OTHER,Medicine,NHS LOGISTICS,1121102380,4,
Department of Health,Salisbury NHS Foundation Trust,02/10/2020,MEDSURGCONS-OTHER,Medicine,NHS LOGISTICS,1121102380,3.06,
Department of Health,Salisbury NHS Foundation Trust,02/10/2020,OTHER MEDICAL SUPPLIES,Medicine,NHS LOGISTICS,1121102380,7.12,
Department of Health,Salisbury NHS Foundation Trust,02/10/2020,OTHER MEDICAL SUPPLIES,Medicine,NHS LOGISTICS,1121102380,1.34,
Department of Health,Salisbury NHS Foundation Trust,02/10/2020,SURGICAL INSTRUMENTS - DISPOSABLE,Medicine,NHS LOGISTICS,1121102380,2.25,
Department of Health,Salisbury NHS Foundation Trust,02/10/2020,MEDSURGCONS-OTHER,Medicine,NHS LOGISTICS,1121102380,3.53,
Department of Health,Salisbury NHS Foundation Trust,02/10/2020,MEDSURGCONS-OTHER,Medicine,NHS LOGISTICS,1121102380,11.2,
Department of Health,Salisbury NHS Foundation Trust,02/10/2020,NON DISPOSABLE BED LINEN,Medicine,NHS LOGISTICS,1121102380,2.82,
Department of Health,Salisbury NHS Foundation Trust,02/10/2020,PATIENT APPLIANCES,Medicine,NHS LOGISTICS,1121102380,16.16,
Department of Health,Salisbury NHS Foundation Trust,02/10/2020,DISPOSABLE THEATRE DRAPES WIPES,Medicine,NHS LOGISTICS,1121102380,39.02,
Department of Health,Salisbury NHS Foundation Trust,02/10/2020,OTHER MEDICAL SUPPLIES,Medicine,NHS LOGISTICS,1121102380,101,
Department of Health,Salisbury NHS Foundation Trust,02/10/2020,OTHER MEDICAL SUPPLIES,Medicine,NHS LOGISTICS,1121102380,48.5,
Department of Health,Salisbury NHS Foundation Trust,02/10/2020,DRESSINGS  -  PROCEDURE PACKS,Medicine,NHS LOGISTICS,1121102380,14.5,
Department of Health,Salisbury NHS Foundation Trust,02/10/2020,OTHER MEDICAL SUPPLIES,Medicine,NHS LOGISTICS,1121102380,6.63,
Department of Health,Salisbury NHS Foundation Trust,02/10/2020,OTHER MEDICAL SUPPLIES,Medicine,NHS LOGISTICS,1121102380,2.68,
Department of Health,Salisbury NHS Foundation Trust,02/10/2020,OTHER MEDICAL SUPPLIES,Medicine,NHS LOGISTICS,1121102380,3.42,
Department of Health,Salisbury NHS Foundation Trust,02/10/2020,DRESSINGS - PRE STERILE,Medicine,NHS LOGISTICS,1121102380,2.04,
Department of Health,Salisbury NHS Foundation Trust,02/10/2020,DRESSINGS - PRE STERILE,Medicine,NHS LOGISTICS,1121102380,2.16,
Department of Health,Salisbury NHS Foundation Trust,02/10/2020,MEDSURGCONS-OTHER,Medicine,NHS LOGISTICS,1121102380,7.78,
Department of Health,Salisbury NHS Foundation Trust,02/10/2020,DISPOSABLE THEATRE DRAPES WIPES,Medicine,NHS LOGISTICS,1121102380,19.51,
Department of Health,Salisbury NHS Foundation Trust,02/10/2020,MEDSURGCONS-OTHER,Clinical Support,NHS LOGISTICS,1121102380,95,
Department of Health,Salisbury NHS Foundation Trust,02/10/2020,TISSUES HAND TOWELS & TOILET PAPER,Facilities,NHS LOGISTICS,1121102380,2.16,
Department of Health,Salisbury NHS Foundation Trust,02/10/2020,DISPOSABLE THEATRE DRAPES WIPES,Facilities,NHS LOGISTICS,1121102380,19.51,
Department of Health,Salisbury NHS Foundation Trust,02/10/2020,ELECTRICAL EQUIPMENT,Medicine,NHS LOGISTICS,1121102380,5.92,
Department of Health,Salisbury NHS Foundation Trust,02/10/2020,PAPER GENERAL STATIONERY SUNDRIES,Medicine,NHS LOGISTICS,1121102380,16.06,
Department of Health,Salisbury NHS Foundation Trust,02/10/2020,PAPER GENERAL STATIONERY SUNDRIES,Medicine,NHS LOGISTICS,1121102380,64.16,
Department of Health,Salisbury NHS Foundation Trust,02/10/2020,M & S EQUIPELECTEQUIPINST - OTHER,Medicine,NHS LOGISTICS,1121102380,5.68,
Department of Health,Salisbury NHS Foundation Trust,02/10/2020,PATIENTS BABY WEAR,Medicine,NHS LOGISTICS,1121102380,26.64,
Department of Health,Salisbury NHS Foundation Trust,02/10/2020,PATIENTS BABY WEAR,Medicine,NHS LOGISTICS,1121102380,12.34,
Department of Health,Salisbury NHS Foundation Trust,02/10/2020,DRESSINGS - PRE STERILE,Medicine,NHS LOGISTICS,1121102380,1.46,
Department of Health,Salisbury NHS Foundation Trust,02/10/2020,ELECTRICAL EQUIPMENT,Medicine,NHS LOGISTICS,1121102380,1.7,
Department of Health,Salisbury NHS Foundation Trust,02/10/2020,ELECTRICAL EQUIPMENT,Medicine,NHS LOGISTICS,1121102380,2.96,
Department of Health,Salisbury NHS Foundation Trust,02/10/2020,MEDSURGCONS-OTHER,Medicine,NHS LOGISTICS,1121102380,4.55,
Department of Health,Salisbury NHS Foundation Trust,02/10/2020,DRESSINGS - PRE STERILE,Medicine,NHS LOGISTICS,1121102380,11.9,
Department of Health,Salisbury NHS Foundation Trust,02/10/2020,MED SURG EQUIP REP MAINT CLEANING,Medicine,NHS LOGISTICS,1121102380,51.66,
Department of Health,Salisbury NHS Foundation Trust,02/10/2020,MEDSURGCONS-OTHER,Medicine,NHS LOGISTICS,1121102380,5.43,
Department of Health,Salisbury NHS Foundation Trust,02/10/2020,DRESSINGS - PRE STERILE,Medicine,NHS LOGISTICS,1121102380,1.42,
Department of Health,Salisbury NHS Foundation Trust,02/10/2020,MEDSURGCONS-OTHER,Medicine,NHS LOGISTICS,1121102380,22.5,
Department of Health,Salisbury NHS Foundation Trust,02/10/2020,OTHER MEDICAL SUPPLIES,Medicine,NHS LOGISTICS,1121102380,7.12,
Department of Health,Salisbury NHS Foundation Trust,02/10/2020,MEDSURGCONS-OTHER,Medicine,NHS LOGISTICS,1121102380,39,
Department of Health,Salisbury NHS Foundation Trust,02/10/2020,OTHER MEDICAL SUPPLIES,Medicine,NHS LOGISTICS,1121102380,1.34,
Department of Health,Salisbury NHS Foundation Trust,02/10/2020,OTHER MEDICAL SUPPLIES,Medicine,NHS LOGISTICS,1121102380,3.58,
Department of Health,Salisbury NHS Foundation Trust,02/10/2020,DRESSINGS - PRE STERILE,Medicine,NHS LOGISTICS,1121102380,9.85,
Department of Health,Salisbury NHS Foundation Trust,02/10/2020,PATIENTS INCONTINENCE,Medicine,NHS LOGISTICS,1121102380,84.3,
Department of Health,Salisbury NHS Foundation Trust,02/10/2020,SERVICES FROM NHS BODIES,Medicine,NHS LOGISTICS,1121102380,3.56,
Department of Health,Salisbury NHS Foundation Trust,02/10/2020,DRESSINGS - PRE STERILE,Medicine,NHS LOGISTICS,1121102380,4.6,
Department of Health,Salisbury NHS Foundation Trust,02/10/2020,DRESSINGS - PRE STERILE,Medicine,NHS LOGISTICS,1121102380,2.04,
Department of Health,Salisbury NHS Foundation Trust,02/10/2020,MEDSURGCONS-OTHER,Medicine,NHS LOGISTICS,1121102380,5.32,
Department of Health,Salisbury NHS Foundation Trust,02/10/2020,MEDSURGCONS-OTHER,Medicine,NHS LOGISTICS,1121102380,6.16,
Department of Health,Salisbury NHS Foundation Trust,02/10/2020,MEDSURGCONS-OTHER,Medicine,NHS LOGISTICS,1121102380,16.8,
Department of Health,Salisbury NHS Foundation Trust,02/10/2020,MEDSURGCONS-OTHER,Medicine,NHS LOGISTICS,1121102380,1.55,
Department of Health,Salisbury NHS Foundation Trust,02/10/2020,NON DISPOSABLE BED LINEN,Medicine,NHS LOGISTICS,1121102380,22.56,
Department of Health,Salisbury NHS Foundation Trust,02/10/2020,PATIENT APPLIANCES,Medicine,NHS LOGISTICS,1121102380,40.4,
Department of Health,Salisbury NHS Foundation Trust,02/10/2020,DISPOSABLE THEATRE DRAPES WIPES,Medicine,NHS LOGISTICS,1121102380,19.51,
Department of Health,Salisbury NHS Foundation Trust,02/10/2020,DRESSINGS - PRE STERILE,Medicine,NHS LOGISTICS,1121102380,120,
Department of Health,Salisbury NHS Foundation Trust,02/10/2020,MEDSURGCONS-SUTURES,Surgery,NHS LOGISTICS,1121102380,179.82,
Department of Health,Salisbury NHS Foundation Trust,02/10/2020,MEDSURGCONS-SUTURES,Surgery,NHS LOGISTICS,1121102380,43.2,
Department of Health,Salisbury NHS Foundation Trust,02/10/2020,LAB EQUIP-LABORATORY APPARATUS,Surgery,NHS LOGISTICS,1121102380,17.8,
Department of Health,Salisbury NHS Foundation Trust,02/10/2020,MEDSURGCONS-SUTURES,Surgery,NHS LOGISTICS,1121102380,81.7,
Department of Health,Salisbury NHS Foundation Trust,02/10/2020,MEDSURGCONS-OTHER,Surgery,NHS LOGISTICS,1121102380,12.6,
Department of Health,Salisbury NHS Foundation Trust,02/10/2020,MEDSURGCONS-SUTURES,Musculo-Skeletal,NHS LOGISTICS,1121102380,114.54,
Department of Health,Salisbury NHS Foundation Trust,02/10/2020,DISPOSABLE THEATRE DRAPES WIPES,Surgery,NHS LOGISTICS,1121102380,25.2,
Department of Health,Salisbury NHS Foundation Trust,02/10/2020,OTHER MEDICAL SUPPLIES,Medicine,NHS LOGISTICS,1121102380,2.28,
Department of Health,Salisbury NHS Foundation Trust,02/10/2020,OTHER MEDICAL SUPPLIES,Medicine,NHS LOGISTICS,1121102380,0.85,
Department of Health,Salisbury NHS Foundation Trust,02/10/2020,OTHER MEDICAL SUPPLIES,Medicine,NHS LOGISTICS,1121102380,13.8,
Department of Health,Salisbury NHS Foundation Trust,02/10/2020,OTHER MEDICAL SUPPLIES,Medicine,NHS LOGISTICS,1121102380,41,
Department of Health,Salisbury NHS Foundation Trust,02/10/2020,PATIENTS INCONTINENCE,Medicine,NHS LOGISTICS,1121102380,19.68,
Department of Health,Salisbury NHS Foundation Trust,02/10/2020,DRESSINGS - PRE STERILE,Medicine,NHS LOGISTICS,1121102380,1.36,
Department of Health,Salisbury NHS Foundation Trust,02/10/2020,DRESSINGS - PRE STERILE,Medicine,NHS LOGISTICS,1121102380,3.82,
Department of Health,Salisbury NHS Foundation Trust,02/10/2020,M & S EQUIPELECTEQUIPINST - OTHER,Medicine,NHS LOGISTICS,1121102380,6.76,
Department of Health,Salisbury NHS Foundation Trust,02/10/2020,ELECTRICAL EQUIPMENT,Medicine,NHS LOGISTICS,1121102380,5.92,
Department of Health,Salisbury NHS Foundation Trust,02/10/2020,MEDSURGCONS-OTHER,Medicine,NHS LOGISTICS,1121102380,9.1,
Department of Health,Salisbury NHS Foundation Trust,02/10/2020,TISSUES HAND TOWELS & TOILET PAPER,Medicine,NHS LOGISTICS,1121102380,1.2,
Department of Health,Salisbury NHS Foundation Trust,02/10/2020,M & S EQUIPELECTEQUIPINST - OTHER,Medicine,NHS LOGISTICS,1121102380,23.52,
Department of Health,Salisbury NHS Foundation Trust,02/10/2020,MEDSURGCONS-OTHER,Medicine,NHS LOGISTICS,1121102380,13.52,
Department of Health,Salisbury NHS Foundation Trust,02/10/2020,MEDSURGCONS-OTHER,Medicine,NHS LOGISTICS,1121102380,5.43,
Department of Health,Salisbury NHS Foundation Trust,02/10/2020,DRESSINGS  -  PROCEDURE PACKS,Medicine,NHS LOGISTICS,1121102380,1.68,
Department of Health,Salisbury NHS Foundation Trust,02/10/2020,DRESSINGS - PRE STERILE,Medicine,NHS LOGISTICS,1121102380,0.71,
Department of Health,Salisbury NHS Foundation Trust,02/10/2020,M & S EQUIPELECTEQUIPINST - OTHER,Medicine,NHS LOGISTICS,1121102380,0.2,
Department of Health,Salisbury NHS Foundation Trust,02/10/2020,ANAESTHETIC EQUIPMENT ACCESSORIES,Medicine,NHS LOGISTICS,1121102380,2.4,
Department of Health,Salisbury NHS Foundation Trust,02/10/2020,DRESSINGS  -  PROCEDURE PACKS,Medicine,NHS LOGISTICS,1121102380,9.6,
Department of Health,Salisbury NHS Foundation Trust,02/10/2020,COOKING & KITCHEN UTENSILS,Medicine,NHS LOGISTICS,1121102380,8.28,
Department of Health,Salisbury NHS Foundation Trust,02/10/2020,M & S EQUIPELECTEQUIPINST - OTHER,Medicine,NHS LOGISTICS,1121102380,4.65,
Department of Health,Salisbury NHS Foundation Trust,02/10/2020,NON DISPOSABLE BED LINEN,Medicine,NHS LOGISTICS,1121102380,29.28,
Department of Health,Salisbury NHS Foundation Trust,02/10/2020,NON DISPOSABLE BED LINEN,Medicine,NHS LOGISTICS,1121102380,47.5,
Department of Health,Salisbury NHS Foundation Trust,02/10/2020,MEDSURGCONS-OTHER,Medicine,NHS LOGISTICS,1121102380,22.5,
Department of Health,Salisbury NHS Foundation Trust,02/10/2020,MEDSURGCONS-OTHER,Medicine,NHS LOGISTICS,1121102380,1,
Department of Health,Salisbury NHS Foundation Trust,02/10/2020,MEDSURGCONS-OTHER,Medicine,NHS LOGISTICS,1121102380,46,
Department of Health,Salisbury NHS Foundation Trust,02/10/2020,OTHER MEDICAL SUPPLIES,Medicine,NHS LOGISTICS,1121102380,7.12,
Department of Health,Salisbury NHS Foundation Trust,02/10/2020,OTHER MEDICAL SUPPLIES,Medicine,NHS LOGISTICS,1121102380,7.12,
Department of Health,Salisbury NHS Foundation Trust,02/10/2020,OTHER MEDICAL SUPPLIES,Medicine,NHS LOGISTICS,1121102380,2.68,
Department of Health,Salisbury NHS Foundation Trust,02/10/2020,PATIENT APPLIANCES,Medicine,NHS LOGISTICS,1121102380,4,
Department of Health,Salisbury NHS Foundation Trust,02/10/2020,DRESSINGS - PRE STERILE,Medicine,NHS LOGISTICS,1121102380,4.08,
Department of Health,Salisbury NHS Foundation Trust,02/10/2020,DRESSINGS - PRE STERILE,Medicine,NHS LOGISTICS,1121102380,1.72,
Department of Health,Salisbury NHS Foundation Trust,02/10/2020,MEDSURGCONS-OTHER,Medicine,NHS LOGISTICS,1121102380,16.8,
Department of Health,Salisbury NHS Foundation Trust,02/10/2020,TISSUES HAND TOWELS & TOILET PAPER,Medicine,NHS LOGISTICS,1121102380,0.6,
Department of Health,Salisbury NHS Foundation Trust,02/10/2020,MEDSURGCONS-OTHER,Medicine,NHS LOGISTICS,1121102380,4.65,
Department of Health,Salisbury NHS Foundation Trust,02/10/2020,NON DISPOSABLE BED LINEN,Medicine,NHS LOGISTICS,1121102380,21,
Department of Health,Salisbury NHS Foundation Trust,02/10/2020,TUBES,Medicine,NHS LOGISTICS,1121102380,0.8,
Department of Health,Salisbury NHS Foundation Trust,02/10/2020,NON DISPOSABLE BED LINEN,Medicine,NHS LOGISTICS,1121102380,5.64,
Department of Health,Salisbury NHS Foundation Trust,02/10/2020,PATIENT APPLIANCES,Medicine,NHS LOGISTICS,1121102380,6.14,
Department of Health,Salisbury NHS Foundation Trust,02/10/2020,MEDSURGCONS-OTHER,Medicine,NHS LOGISTICS,1121102380,0.32,
Department of Health,Salisbury NHS Foundation Trust,02/10/2020,MEDSURGCONS-OTHER,Medicine,NHS LOGISTICS,1121102380,0.16,
Department of Health,Salisbury NHS Foundation Trust,02/10/2020,MEDSURGCONS-OTHER,Medicine,NHS LOGISTICS,1121102380,0.16,
Department of Health,Salisbury NHS Foundation Trust,02/10/2020,DISPOSABLE THEATRE DRAPES WIPES,Medicine,NHS LOGISTICS,1121102380,39.02,
Department of Health,Salisbury NHS Foundation Trust,02/10/2020,DISPOSABLE THEATRE DRAPES WIPES,Medicine,NHS LOGISTICS,1121102380,5.88,
Department of Health,Salisbury NHS Foundation Trust,02/10/2020,SURGICAL INSTRUMENTS - GENERAL,Medicine,NHS LOGISTICS,1121102380,77.5,
Department of Health,Salisbury NHS Foundation Trust,02/10/2020,PATIENTS BABY WEAR,Medicine,NHS LOGISTICS,1121102380,37.02,
Department of Health,Salisbury NHS Foundation Trust,02/10/2020,DRESSINGS - PRE STERILE,Medicine,NHS LOGISTICS,1121102380,2.36,
Department of Health,Salisbury NHS Foundation Trust,02/10/2020,TOILETRIES PERSONAL HYGIENE PRODUCT,Medicine,NHS LOGISTICS,1121102380,10.05,
Department of Health,Salisbury NHS Foundation Trust,02/10/2020,CLEANING MATERIAL PRODUCTS SUNDRIES,Medicine,NHS LOGISTICS,1121102380,6.6,
Department of Health,Salisbury NHS Foundation Trust,02/10/2020,DRESSINGS - PRE STERILE,Medicine,NHS LOGISTICS,1121102380,11.9,
Department of Health,Salisbury NHS Foundation Trust,02/10/2020,PATIENTS INCONTINENCE,Medicine,NHS LOGISTICS,1121102380,9.44,
Department of Health,Salisbury NHS Foundation Trust,02/10/2020,MEDSURGCONS-OTHER,Medicine,NHS LOGISTICS,1121102380,25.4,
Department of Health,Salisbury NHS Foundation Trust,02/10/2020,MEDSURGCONS-OTHER,Medicine,NHS LOGISTICS,1121102380,42.75,
Department of Health,Salisbury NHS Foundation Trust,02/10/2020,MEDSURGCONS-OTHER,Medicine,NHS LOGISTICS,1121102380,6.76,
Department of Health,Salisbury NHS Foundation Trust,02/10/2020,MEDSURGCONS-OTHER,Medicine,NHS LOGISTICS,1121102380,5.43,
Department of Health,Salisbury NHS Foundation Trust,02/10/2020,MEDSURGCONS-OTHER,Medicine,NHS LOGISTICS,1121102380,2.39,
Department of Health,Salisbury NHS Foundation Trust,02/10/2020,DRESSINGS - PRE STERILE,Medicine,NHS LOGISTICS,1121102380,0.71,
Department of Health,Salisbury NHS Foundation Trust,02/10/2020,DRESSINGS  -  PROCEDURE PACKS,Medicine,NHS LOGISTICS,1121102380,5.25,
Department of Health,Salisbury NHS Foundation Trust,02/10/2020,MEDSURGCONS-OTHER,Medicine,NHS LOGISTICS,1121102380,12.5,
Department of Health,Salisbury NHS Foundation Trust,02/10/2020,MEDSURGCONS-OTHER,Medicine,NHS LOGISTICS,1121102380,5.1,
Department of Health,Salisbury NHS Foundation Trust,02/10/2020,MEDSURGCONS-OTHER,Medicine,NHS LOGISTICS,1121102380,44.63,
Department of Health,Salisbury NHS Foundation Trust,02/10/2020,SURGICAL INSTRUMENTS - DISPOSABLE,Medicine,NHS LOGISTICS,1121102380,6.75,
Department of Health,Salisbury NHS Foundation Trust,02/10/2020,DRESSINGS - PRE STERILE,Medicine,NHS LOGISTICS,1121102380,4.08,
Department of Health,Salisbury NHS Foundation Trust,02/10/2020,MEDSURGCONS-OTHER,Medicine,NHS LOGISTICS,1121102380,4.38,
Department of Health,Salisbury NHS Foundation Trust,02/10/2020,MEDSURGCONS-OTHER,Medicine,NHS LOGISTICS,1121102380,3.53,
Department of Health,Salisbury NHS Foundation Trust,02/10/2020,MEDSURGCONS-OTHER,Medicine,NHS LOGISTICS,1121102380,22.37,
Department of Health,Salisbury NHS Foundation Trust,02/10/2020,TISSUES HAND TOWELS & TOILET PAPER,Medicine,NHS LOGISTICS,1121102380,0.6,
Department of Health,Salisbury NHS Foundation Trust,02/10/2020,MEDSURGCONS-OTHER,Medicine,NHS LOGISTICS,1121102380,0.78,
Department of Health,Salisbury NHS Foundation Trust,02/10/2020,DRESSINGS - PRE STERILE,Medicine,NHS LOGISTICS,1121102380,3.83,
Department of Health,Salisbury NHS Foundation Trust,02/10/2020,PATIENT APPLIANCES,Medicine,NHS LOGISTICS,1121102380,16.16,
Department of Health,Salisbury NHS Foundation Trust,02/10/2020,TOILETRIES PERSONAL HYGIENE PRODUCT,Medicine,NHS LOGISTICS,1121102380,5.75,
Department of Health,Salisbury NHS Foundation Trust,02/10/2020,DISPOSABLE THEATRE DRAPES WIPES,Medicine,NHS LOGISTICS,1121102380,19.51,
Department of Health,Salisbury NHS Foundation Trust,02/10/2020,DISPOSABLE THEATRE DRAPES WIPES,Medicine,NHS LOGISTICS,1121102380,1.81,
Department of Health,Salisbury NHS Foundation Trust,02/10/2020,OTHER MEDICAL SUPPLIES,Medicine,NHS LOGISTICS,1121102380,13.8,
Department of Health,Salisbury NHS Foundation Trust,02/10/2020,MEDSURGCONS-OTHER,Medicine,NHS LOGISTICS,1121102380,44.88,
Department of Health,Salisbury NHS Foundation Trust,02/10/2020,M & S EQUIPELECTEQUIPINST - OTHER,Medicine,NHS LOGISTICS,1121102380,1.7,
Department of Health,Salisbury NHS Foundation Trust,02/10/2020,MEDSURGCONS-OTHER,Medicine,NHS LOGISTICS,1121102380,3.38,
Department of Health,Salisbury NHS Foundation Trust,02/10/2020,MEDSURGCONS-OTHER,Medicine,NHS LOGISTICS,1121102380,2.39,
Department of Health,Salisbury NHS Foundation Trust,02/10/2020,DRESSINGS  -  PROCEDURE PACKS,Medicine,NHS LOGISTICS,1121102380,3.2,
Department of Health,Salisbury NHS Foundation Trust,02/10/2020,TOILETRIES PERSONAL HYGIENE PRODUCT,Medicine,NHS LOGISTICS,1121102380,1.77,
Department of Health,Salisbury NHS Foundation Trust,02/10/2020,MEDSURGCONS-OTHER,Medicine,NHS LOGISTICS,1121102380,10,
Department of Health,Salisbury NHS Foundation Trust,02/10/2020,MEDSURGCONS-OTHER,Medicine,NHS LOGISTICS,1121102380,5.1,
Department of Health,Salisbury NHS Foundation Trust,02/10/2020,OTHER MEDICAL SUPPLIES,Medicine,NHS LOGISTICS,1121102380,1.34,
Department of Health,Salisbury NHS Foundation Trust,02/10/2020,OTHER MEDICAL SUPPLIES,Medicine,NHS LOGISTICS,1121102380,3.58,
Department of Health,Salisbury NHS Foundation Trust,02/10/2020,TOILETRIES PERSONAL HYGIENE PRODUCT,Medicine,NHS LOGISTICS,1121102380,4.86,
Department of Health,Salisbury NHS Foundation Trust,02/10/2020,PATIENT APPLIANCES,Medicine,NHS LOGISTICS,1121102380,2.5,
Department of Health,Salisbury NHS Foundation Trust,02/10/2020,DRESSINGS - PRE STERILE,Medicine,NHS LOGISTICS,1121102380,2.04,
Department of Health,Salisbury NHS Foundation Trust,02/10/2020,MEDSURGCONS-OTHER,Medicine,NHS LOGISTICS,1121102380,5.6,
Department of Health,Salisbury NHS Foundation Trust,02/10/2020,TISSUES HAND TOWELS & TOILET PAPER,Medicine,NHS LOGISTICS,1121102380,0.6,
Department of Health,Salisbury NHS Foundation Trust,02/10/2020,MEDSURGCONS-OTHER,Medicine,NHS LOGISTICS,1121102380,0.78,
Department of Health,Salisbury NHS Foundation Trust,02/10/2020,NON DISPOSABLE BED LINEN,Medicine,NHS LOGISTICS,1121102380,8.46,
Department of Health,Salisbury NHS Foundation Trust,02/10/2020,DISPOSABLE THEATRE DRAPES WIPES,Medicine,NHS LOGISTICS,1121102380,19.51,
Department of Health,Salisbury NHS Foundation Trust,02/10/2020,MEDSURGCONS-OTHER,Clinical Support,NHS LOGISTICS,1121102380,22.5,
Department of Health,Salisbury NHS Foundation Trust,02/10/2020,MEDSURGCONS-OTHER,Clinical Support,NHS LOGISTICS,1121102380,0.78,
Department of Health,Salisbury NHS Foundation Trust,02/10/2020,MEDSURGCONS-OTHER,Clinical Support,NHS LOGISTICS,1121102380,155.6,
Department of Health,Salisbury NHS Foundation Trust,02/10/2020,DRUGS,Clinical Support,NHS LOGISTICS,1121102380,5.5,
Department of Health,Salisbury NHS Foundation Trust,02/10/2020,SURGICAL INSTRUMENTS - DISPOSABLE,Medicine,NHS LOGISTICS,1121102380,6.75,
Department of Health,Salisbury NHS Foundation Trust,02/10/2020,SERVICES FROM NHS BODIES,Medicine,NHS LOGISTICS,1121102380,7.12,
Department of Health,Salisbury NHS Foundation Trust,02/10/2020,OTHER MEDICAL SUPPLIES,Clinical Support,NHS LOGISTICS,1121102380,36.84,
Department of Health,Salisbury NHS Foundation Trust,02/10/2020,OTHER MEDICAL SUPPLIES,Clinical Support,NHS LOGISTICS,1121102380,142.48,
Department of Health,Salisbury NHS Foundation Trust,02/10/2020,TOILETRIES PERSONAL HYGIENE PRODUCT,Clinical Support,NHS LOGISTICS,1121102380,3.35,
Department of Health,Salisbury NHS Foundation Trust,02/10/2020,M & S EQUIPELECTEQUIPINST - OTHER,Clinical Support,NHS LOGISTICS,1121102380,11.76,
Department of Health,Salisbury NHS Foundation Trust,02/10/2020,OTHER MEDICAL SUPPLIES,Clinical Support,NHS LOGISTICS,1121102380,7.12,
Department of Health,Salisbury NHS Foundation Trust,02/10/2020,DRUGS,Clinical Support,NHS LOGISTICS,1121102380,3.73,
Department of Health,Salisbury NHS Foundation Trust,02/10/2020,DRUGS,Medicine,NHS LOGISTICS,1121102380,12.56,
Department of Health,Salisbury NHS Foundation Trust,02/10/2020,CLEANING MATERIAL PRODUCTS SUNDRIES,Surgery,NHS LOGISTICS,1121102380,59,
Department of Health,Salisbury NHS Foundation Trust,02/10/2020,TUBES,Surgery,NHS LOGISTICS,1121102380,5.24,
Department of Health,Salisbury NHS Foundation Trust,02/10/2020,TUBES,Medicine,NHS LOGISTICS,1121102380,5.24,
Department of Health,Salisbury NHS Foundation Trust,02/10/2020,TUBES,Medicine,NHS LOGISTICS,1121102380,3,
Department of Health,Salisbury NHS Foundation Trust,02/10/2020,DENTAL SURGERY SUNDRIES,Surgery,NHS LOGISTICS,1121102380,2.52,
Department of Health,Salisbury NHS Foundation Trust,02/10/2020,DISPOSABLE THEATRE DRAPES WIPES,Surgery,NHS LOGISTICS,1121102380,19.51,
Department of Health,Salisbury NHS Foundation Trust,02/10/2020,HABERDASHERY,Surgery,NHS LOGISTICS,1121102380,9.3,
Department of Health,Salisbury NHS Foundation Trust,02/10/2020,SURGICAL INSTRUMENTS - DISPOSABLE,Medicine,NHS LOGISTICS,1121102380,2.25,
Department of Health,Salisbury NHS Foundation Trust,02/10/2020,OTHER MEDICAL SUPPLIES,Medicine,NHS LOGISTICS,1121102380,82,
Department of Health,Salisbury NHS Foundation Trust,02/10/2020,OTHER MEDICAL SUPPLIES,Medicine,NHS LOGISTICS,1121102380,14.24,
Department of Health,Salisbury NHS Foundation Trust,02/10/2020,OTHER MEDICAL SUPPLIES,Medicine,NHS LOGISTICS,1121102380,1.34,
Department of Health,Salisbury NHS Foundation Trust,02/10/2020,OTHER MEDICAL SUPPLIES,Medicine,NHS LOGISTICS,1121102380,3.58,
Department of Health,Salisbury NHS Foundation Trust,02/10/2020,ELECTRICAL EQUIPMENT,Medicine,NHS LOGISTICS,1121102380,2.96,
Department of Health,Salisbury NHS Foundation Trust,02/10/2020,MED SURG EQUIP REP MAINT CLEANING,Medicine,NHS LOGISTICS,1121102380,25.83,
Department of Health,Salisbury NHS Foundation Trust,02/10/2020,M & S EQUIPELECTEQUIPINST - OTHER,Medicine,NHS LOGISTICS,1121102380,23.52,
Department of Health,Salisbury NHS Foundation Trust,02/10/2020,M & S EQUIPELECTEQUIPINST - OTHER,Medicine,NHS LOGISTICS,1121102380,1,
Department of Health,Salisbury NHS Foundation Trust,02/10/2020,TUBES,Medicine,NHS LOGISTICS,1121102380,3,
Department of Health,Salisbury NHS Foundation Trust,02/10/2020,NON DISPOSABLE BED LINEN,Medicine,NHS LOGISTICS,1121102380,11.28,
Department of Health,Salisbury NHS Foundation Trust,02/10/2020,BAGS SACKS - OTHER,Clinical Support,NHS LOGISTICS,1121102380,10.24,
Department of Health,Salisbury NHS Foundation Trust,02/10/2020,DRESSINGS - PRE STERILE,Clinical Support,NHS LOGISTICS,1121102380,9.52,
Department of Health,Salisbury NHS Foundation Trust,02/10/2020,DRESSINGS - PRE STERILE,Clinical Support,NHS LOGISTICS,1121102380,11.9,
Department of Health,Salisbury NHS Foundation Trust,02/10/2020,DRESSINGS - PRE STERILE,Clinical Support,NHS LOGISTICS,1121102380,21.75,
Department of Health,Salisbury NHS Foundation Trust,02/10/2020,DRESSINGS - PRE STERILE,Clinical Support,NHS LOGISTICS,1121102380,2.72,
Department of Health,Salisbury NHS Foundation Trust,02/10/2020,COOKING & KITCHEN UTENSILS,Clinical Support,NHS LOGISTICS,1121102380,2.02,
Department of Health,Salisbury NHS Foundation Trust,02/10/2020,DRUGS,Clinical Support,NHS LOGISTICS,1121102380,9.42,
Department of Health,Salisbury NHS Foundation Trust,02/10/2020,DISPOSABLE THEATRE DRAPES WIPES,Clinical Support,NHS LOGISTICS,1121102380,19.51,
Department of Health,Salisbury NHS Foundation Trust,02/10/2020,OTHER MEDICAL SUPPLIES,Musculo-Skeletal,NHS LOGISTICS,1121102380,1.14,
Department of Health,Salisbury NHS Foundation Trust,02/10/2020,OTHER MEDICAL SUPPLIES,Musculo-Skeletal,NHS LOGISTICS,1121102380,41,
Department of Health,Salisbury NHS Foundation Trust,02/10/2020,DRESSINGS - PRE STERILE,Musculo-Skeletal,NHS LOGISTICS,1121102380,3.42,
Department of Health,Salisbury NHS Foundation Trust,02/10/2020,M & S EQUIPELECTEQUIPINST - OTHER,Musculo-Skeletal,NHS LOGISTICS,1121102380,6.76,
Department of Health,Salisbury NHS Foundation Trust,02/10/2020,DISPOSABLE THEATRE DRAPES WIPES,Musculo-Skeletal,NHS LOGISTICS,1121102380,3.46,
Department of Health,Salisbury NHS Foundation Trust,02/10/2020,TOILETRIES PERSONAL HYGIENE PRODUCT,Musculo-Skeletal,NHS LOGISTICS,1121102380,13.4,
Department of Health,Salisbury NHS Foundation Trust,02/10/2020,DRESSINGS - PRE STERILE,Musculo-Skeletal,NHS LOGISTICS,1121102380,11.9,
Department of Health,Salisbury NHS Foundation Trust,02/10/2020,TISSUES HAND TOWELS & TOILET PAPER,Musculo-Skeletal,NHS LOGISTICS,1121102380,1.2,
Department of Health,Salisbury NHS Foundation Trust,02/10/2020,MEDSURGCONS-OTHER,Musculo-Skeletal,NHS LOGISTICS,1121102380,25.4,
Department of Health,Salisbury NHS Foundation Trust,02/10/2020,MEDSURGCONS-OTHER,Musculo-Skeletal,NHS LOGISTICS,1121102380,42.75,
Department of Health,Salisbury NHS Foundation Trust,02/10/2020,MEDSURGCONS-OTHER,Musculo-Skeletal,NHS LOGISTICS,1121102380,13.52,
Department of Health,Salisbury NHS Foundation Trust,02/10/2020,MEDSURGCONS-OTHER,Musculo-Skeletal,NHS LOGISTICS,1121102380,10.86,
Department of Health,Salisbury NHS Foundation Trust,02/10/2020,MEDSURGCONS-OTHER,Musculo-Skeletal,NHS LOGISTICS,1121102380,1.53,
Department of Health,Salisbury NHS Foundation Trust,02/10/2020,M & S EQUIPELECTEQUIPINST - OTHER,Musculo-Skeletal,NHS LOGISTICS,1121102380,44.4,
Department of Health,Salisbury NHS Foundation Trust,02/10/2020,DRESSINGS - PRE STERILE,Musculo-Skeletal,NHS LOGISTICS,1121102380,2.13,
Department of Health,Salisbury NHS Foundation Trust,02/10/2020,DRESSINGS  -  PROCEDURE PACKS,Musculo-Skeletal,NHS LOGISTICS,1121102380,2.8,
Department of Health,Salisbury NHS Foundation Trust,02/10/2020,MEDSURGCONS-OTHER,Musculo-Skeletal,NHS LOGISTICS,1121102380,7.5,
Department of Health,Salisbury NHS Foundation Trust,02/10/2020,MEDSURGCONS-OTHER,Musculo-Skeletal,NHS LOGISTICS,1121102380,7.65,
Department of Health,Salisbury NHS Foundation Trust,02/10/2020,OTHER MEDICAL SUPPLIES,Musculo-Skeletal,NHS LOGISTICS,1121102380,2.68,
Department of Health,Salisbury NHS Foundation Trust,02/10/2020,TOILETRIES PERSONAL HYGIENE PRODUCT,Musculo-Skeletal,NHS LOGISTICS,1121102380,2.15,
Department of Health,Salisbury NHS Foundation Trust,02/10/2020,OTHER MEDICAL SUPPLIES,Musculo-Skeletal,NHS LOGISTICS,1121102380,6.5,
Department of Health,Salisbury NHS Foundation Trust,02/10/2020,TOILETRIES PERSONAL HYGIENE PRODUCT,Musculo-Skeletal,NHS LOGISTICS,1121102380,2.88,
Department of Health,Salisbury NHS Foundation Trust,02/10/2020,MEDSURGCONS-OTHER,Musculo-Skeletal,NHS LOGISTICS,1121102380,7.06,
Department of Health,Salisbury NHS Foundation Trust,02/10/2020,TOILETRIES PERSONAL HYGIENE PRODUCT,Musculo-Skeletal,NHS LOGISTICS,1121102380,2.96,
Department of Health,Salisbury NHS Foundation Trust,02/10/2020,MEDSURGCONS-OTHER,Musculo-Skeletal,NHS LOGISTICS,1121102380,22.37,
Department of Health,Salisbury NHS Foundation Trust,02/10/2020,DENTAL SURGERY SUNDRIES,Musculo-Skeletal,NHS LOGISTICS,1121102380,5.04,
Department of Health,Salisbury NHS Foundation Trust,02/10/2020,NON DISPOSABLE BED LINEN,Musculo-Skeletal,NHS LOGISTICS,1121102380,22.56,
Department of Health,Salisbury NHS Foundation Trust,02/10/2020,PATIENT APPLIANCES,Musculo-Skeletal,NHS LOGISTICS,1121102380,16.16,
Department of Health,Salisbury NHS Foundation Trust,02/10/2020,TOILETRIES PERSONAL HYGIENE PRODUCT,Musculo-Skeletal,NHS LOGISTICS,1121102380,24.96,
Department of Health,Salisbury NHS Foundation Trust,02/10/2020,DISPOSABLE THEATRE DRAPES WIPES,Musculo-Skeletal,NHS LOGISTICS,1121102380,19.51,
Department of Health,Salisbury NHS Foundation Trust,02/10/2020,DRESSINGS - PRE STERILE,Musculo-Skeletal,NHS LOGISTICS,1121102380,237.6,
Department of Health,Salisbury NHS Foundation Trust,02/10/2020,DRESSINGS  -  PROCEDURE PACKS,Surgery,NHS LOGISTICS,1121102380,7.7,
Department of Health,Salisbury NHS Foundation Trust,02/10/2020,ANAESTHETIC EQUIPMENT ACCESSORIES,Surgery,NHS LOGISTICS,1121102380,62.5,
Department of Health,Salisbury NHS Foundation Trust,02/10/2020,BAGS SACKS - OTHER,Musculo-Skeletal,NHS LOGISTICS,1121102380,4,
Department of Health,Salisbury NHS Foundation Trust,02/10/2020,DRESSINGS - PRE STERILE,Musculo-Skeletal,NHS LOGISTICS,1121102380,2.76,
Department of Health,Salisbury NHS Foundation Trust,02/10/2020,DRESSINGS  -  PROCEDURE PACKS,Musculo-Skeletal,NHS LOGISTICS,1121102380,1,
Department of Health,Salisbury NHS Foundation Trust,02/10/2020,SURGICAL INSTRUMENTS - GENERAL,Musculo-Skeletal,NHS LOGISTICS,1121102380,5.8,
Department of Health,Salisbury NHS Foundation Trust,02/10/2020,MEDSURGCONS-OTHER,Musculo-Skeletal,NHS LOGISTICS,1121102380,78.76,
Department of Health,Salisbury NHS Foundation Trust,02/10/2020,MEDSURGCONS-SUTURES,Musculo-Skeletal,NHS LOGISTICS,1121102380,29.22,
Department of Health,Salisbury NHS Foundation Trust,02/10/2020,MEDSURGCONS-SUTURES,Musculo-Skeletal,NHS LOGISTICS,1121102380,31.5,
Department of Health,Salisbury NHS Foundation Trust,02/10/2020,NON DISPOSABLE BED LINEN,Musculo-Skeletal,NHS LOGISTICS,1121102380,2.82,
Department of Health,Salisbury NHS Foundation Trust,02/10/2020,PAPER GENERAL STATIONERY SUNDRIES,Medicine,NHS LOGISTICS,1121102380,16.06,
Department of Health,Salisbury NHS Foundation Trust,02/10/2020,PAPER GENERAL STATIONERY SUNDRIES,Medicine,NHS LOGISTICS,1121102380,64.16,
Department of Health,Salisbury NHS Foundation Trust,02/10/2020,DRESSINGS - PRE STERILE,Musculo-Skeletal,NHS LOGISTICS,1121102380,9.48,
Department of Health,Salisbury NHS Foundation Trust,02/10/2020,DRESSINGS - PRE STERILE,Musculo-Skeletal,NHS LOGISTICS,1121102380,4.22,
Department of Health,Salisbury NHS Foundation Trust,02/10/2020,MEDSURGCONS-OTHER,Musculo-Skeletal,NHS LOGISTICS,1121102380,3.38,
Department of Health,Salisbury NHS Foundation Trust,02/10/2020,MEDSURGCONS-OTHER,Musculo-Skeletal,NHS LOGISTICS,1121102380,5.43,
Department of Health,Salisbury NHS Foundation Trust,02/10/2020,DRESSINGS - PRE STERILE,Musculo-Skeletal,NHS LOGISTICS,1121102380,2.13,
Department of Health,Salisbury NHS Foundation Trust,02/10/2020,DRESSINGS  -  PROCEDURE PACKS,Musculo-Skeletal,NHS LOGISTICS,1121102380,1.4,
Department of Health,Salisbury NHS Foundation Trust,02/10/2020,TOILETRIES PERSONAL HYGIENE PRODUCT,Musculo-Skeletal,NHS LOGISTICS,1121102380,2.88,
Department of Health,Salisbury NHS Foundation Trust,02/10/2020,MEDSURGCONS-OTHER,Musculo-Skeletal,NHS LOGISTICS,1121102380,4.38,
Department of Health,Salisbury NHS Foundation Trust,02/10/2020,DRESSINGS - PRE STERILE,Musculo-Skeletal,NHS LOGISTICS,1121102380,3.44,
Department of Health,Salisbury NHS Foundation Trust,02/10/2020,NON DISPOSABLE BED LINEN,Musculo-Skeletal,NHS LOGISTICS,1121102380,2.82,
Department of Health,Salisbury NHS Foundation Trust,02/10/2020,MEDSURGCONS-OTHER,Clinical Support,NHS LOGISTICS,1121102380,380,
Department of Health,Salisbury NHS Foundation Trust,02/10/2020,MEDSURGCONS-OTHER,Clinical Support,NHS LOGISTICS,1121102380,190,
Department of Health,Salisbury NHS Foundation Trust,02/10/2020,MEDSURGCONS-OTHER,Clinical Support,NHS LOGISTICS,1121102380,25,
Department of Health,Salisbury NHS Foundation Trust,02/10/2020,MEDSURGCONS-OTHER,Clinical Support,NHS LOGISTICS,1121102380,43,
Department of Health,Salisbury NHS Foundation Trust,02/10/2020,MEDSURGCONS-OTHER,Clinical Support,NHS LOGISTICS,1121102380,190,
Department of Health,Salisbury NHS Foundation Trust,02/10/2020,MEDSURGCONS-OTHER,Clinical Support,NHS LOGISTICS,1121102380,47.5,
Department of Health,Salisbury NHS Foundation Trust,02/10/2020,MEDSURGCONS-OTHER,Clinical Support,NHS LOGISTICS,1121102380,152.5,
Department of Health,Salisbury NHS Foundation Trust,02/10/2020,SEATING GENERAL,Medicine,NHS LOGISTICS,1121102380,7,
Department of Health,Salisbury NHS Foundation Trust,02/10/2020,MEDSURGCONS-OTHER,Medicine,NHS LOGISTICS,1121102380,1800,
Department of Health,Salisbury NHS Foundation Trust,02/10/2020,MEDSURGCONS-OTHER,Medicine,NHS LOGISTICS,1121102380,3600,
Department of Health,Salisbury NHS Foundation Trust,02/10/2020,MEDSURGCONS-OTHER,Medicine,NHS LOGISTICS,1121102380,1836.75,
Department of Health,Salisbury NHS Foundation Trust,02/10/2020,OTHER MEDICAL SUPPLIES,Medicine,NHS LOGISTICS,1121102380,1107.33,
Department of Health,Salisbury NHS Foundation Trust,02/10/2020,OTHER MEDICAL SUPPLIES,Medicine,NHS LOGISTICS,1121102380,379.59,
Department of Health,Salisbury NHS Foundation Trust,02/10/2020,MEDSURGCONS-OTHER,Medicine,NHS LOGISTICS,1121102380,2880,
Department of Health,Salisbury NHS Foundation Trust,02/10/2020,MEDSURGCONS-OTHER,Medicine,NHS LOGISTICS,1121102380,201.5,
Department of Health,Salisbury NHS Foundation Trust,02/10/2020,MEDSURGCONS-OTHER,Medicine,NHS LOGISTICS,1121102380,120.9,
Department of Health,Salisbury NHS Foundation Trust,02/10/2020,MEDSURGCONS-OTHER,Medicine,NHS LOGISTICS,1121102380,160,
Department of Health,Salisbury NHS Foundation Trust,02/10/2020,MEDSURGCONS-OTHER,Medicine,NHS LOGISTICS,1121102380,400,
Department of Health,Salisbury NHS Foundation Trust,02/10/2020,MEDSURGCONS-OTHER,Medicine,NHS LOGISTICS,1121102380,142.67,
Department of Health,Salisbury NHS Foundation Trust,02/10/2020,MEDSURGCONS-OTHER,Medicine,NHS LOGISTICS,1121102380,118.63,
Department of Health,Salisbury NHS Foundation Trust,02/10/2020,MEDSURGCONS-OTHER,Medicine,NHS LOGISTICS,1121102380,118.62,
Department of Health,Salisbury NHS Foundation Trust,02/10/2020,MEDSURGCONS-OTHER,Medicine,NHS LOGISTICS,1121102380,118.63,
Department of Health,Salisbury NHS Foundation Trust,02/10/2020,MEDSURGCONS-OTHER,Medicine,NHS LOGISTICS,1121102380,118.62,
Department of Health,Salisbury NHS Foundation Trust,02/10/2020,MEDSURGCONS-OTHER,Medicine,NHS LOGISTICS,1121102380,480,
Department of Health,Salisbury NHS Foundation Trust,02/10/2020,MEDSURGCONS-OTHER,Medicine,NHS LOGISTICS,1121102380,400,
Department of Health,Salisbury NHS Foundation Trust,02/10/2020,MEDSURGCONS-OTHER,Medicine,NHS LOGISTICS,1121102380,400,
Department of Health,Salisbury NHS Foundation Trust,02/10/2020,MEDSURGCONS-OTHER,Medicine,NHS LOGISTICS,1121102380,400,
Department of Health,Salisbury NHS Foundation Trust,02/10/2020,MEDSURGCONS-OTHER,Medicine,NHS LOGISTICS,1121102380,140,
Department of Health,Salisbury NHS Foundation Trust,02/10/2020,MEDSURGCONS-OTHER,Medicine,NHS LOGISTICS,1121102380,240,
Department of Health,Salisbury NHS Foundation Trust,02/10/2020,MEDSURGCONS-OTHER,Medicine,NHS LOGISTICS,1121102380,240,
Department of Health,Salisbury NHS Foundation Trust,02/10/2020,MEDSURGCONS-OTHER,Medicine,NHS LOGISTICS,1121102380,330,
Department of Health,Salisbury NHS Foundation Trust,02/10/2020,MEDSURGCONS-OTHER,Medicine,NHS LOGISTICS,1121102380,320,
Department of Health,Salisbury NHS Foundation Trust,02/10/2020,MEDSURGCONS-OTHER,Medicine,NHS LOGISTICS,1121102380,330,
Department of Health,Salisbury NHS Foundation Trust,02/10/2020,OTHER MEDICAL SUPPLIES,Surgery,NHS LOGISTICS,1121102380,8.5,
Department of Health,Salisbury NHS Foundation Trust,02/10/2020,OTHER MEDICAL SUPPLIES,Surgery,NHS LOGISTICS,1121102380,23,
Department of Health,Salisbury NHS Foundation Trust,02/10/2020,ANAESTHETIC EQUIPMENT ACCESSORIES,Surgery,NHS LOGISTICS,1121102380,37.8,
Department of Health,Salisbury NHS Foundation Trust,02/10/2020,ANAESTHETIC EQUIPMENT ACCESSORIES,Surgery,NHS LOGISTICS,1121102380,75.6,
Department of Health,Salisbury NHS Foundation Trust,02/10/2020,ANAESTHETIC EQUIPMENT ACCESSORIES,Surgery,NHS LOGISTICS,1121102380,62.5,
Department of Health,Salisbury NHS Foundation Trust,02/10/2020,TUBES,Surgery,NHS LOGISTICS,1121102380,15.72,
Department of Health,Salisbury NHS Foundation Trust,02/10/2020,MEDSURGCONS-OTHER,Surgery,NHS LOGISTICS,1121102380,12.6,
Department of Health,Salisbury NHS Foundation Trust,02/10/2020,MEDSURGCONS-OTHER,Surgery,NHS LOGISTICS,1121102380,6.76,
Department of Health,Salisbury NHS Foundation Trust,02/10/2020,MEDSURGCONS-OTHER,Surgery,NHS LOGISTICS,1121102380,5.43,
Department of Health,Salisbury NHS Foundation Trust,02/10/2020,MEDSURGCONS-OTHER,Surgery,NHS LOGISTICS,1121102380,1.53,
Department of Health,Salisbury NHS Foundation Trust,02/10/2020,MEDSURGCONS-OTHER,Surgery,NHS LOGISTICS,1121102380,2.39,
Department of Health,Salisbury NHS Foundation Trust,02/10/2020,HEALTHCARE - WEAR,Surgery,NHS LOGISTICS,1121102380,37.5,
Department of Health,Salisbury NHS Foundation Trust,02/10/2020,HEALTHCARE - WEAR,Surgery,NHS LOGISTICS,1121102380,12.5,
Department of Health,Salisbury NHS Foundation Trust,02/10/2020,HEALTHCARE - WEAR,Surgery,NHS LOGISTICS,1121102380,12.5,
Department of Health,Salisbury NHS Foundation Trust,02/10/2020,HEALTHCARE - WEAR,Surgery,NHS LOGISTICS,1121102380,12.5,
Department of Health,Salisbury NHS Foundation Trust,02/10/2020,M & S EQUIPELECTEQUIPINST - OTHER,Surgery,NHS LOGISTICS,1121102380,24.5,
Department of Health,Salisbury NHS Foundation Trust,02/10/2020,M & S EQUIPELECTEQUIPINST - OTHER,Surgery,NHS LOGISTICS,1121102380,24.5,
Department of Health,Salisbury NHS Foundation Trust,02/10/2020,OTHER MEDICAL SUPPLIES,Surgery,NHS LOGISTICS,1121102380,19.5,
Department of Health,Salisbury NHS Foundation Trust,02/10/2020,MEDSURGCONS-OTHER,Surgery,NHS LOGISTICS,1121102380,22.5,
Department of Health,Salisbury NHS Foundation Trust,02/10/2020,MEDSURGCONS-OTHER,Surgery,NHS LOGISTICS,1121102380,23,
Department of Health,Salisbury NHS Foundation Trust,02/10/2020,OTHER MEDICAL SUPPLIES,Surgery,NHS LOGISTICS,1121102380,6.7,
Department of Health,Salisbury NHS Foundation Trust,02/10/2020,DRUGS,Surgery,NHS LOGISTICS,1121102380,63.72,
Department of Health,Salisbury NHS Foundation Trust,02/10/2020,OTHER MEDICAL SUPPLIES,Surgery,NHS LOGISTICS,1121102380,10.6,
Department of Health,Salisbury NHS Foundation Trust,02/10/2020,OTHER MEDICAL SUPPLIES,Surgery,NHS LOGISTICS,1121102380,10.6,
Department of Health,Salisbury NHS Foundation Trust,02/10/2020,SURGICAL INSTRUMENTS - GENERAL,Surgery,NHS LOGISTICS,1121102380,5.17,
Department of Health,Salisbury NHS Foundation Trust,02/10/2020,TUBES,Surgery,NHS LOGISTICS,1121102380,6,
Department of Health,Salisbury NHS Foundation Trust,02/10/2020,TUBES,Surgery,NHS LOGISTICS,1121102380,3,
Department of Health,Salisbury NHS Foundation Trust,02/10/2020,MEDSURGCONS-OTHER,Medicine,NHS LOGISTICS,1121102380,172.8,
Department of Health,Salisbury NHS Foundation Trust,02/10/2020,TISSUES HAND TOWELS & TOILET PAPER,Medicine,NHS LOGISTICS,1121102380,0.54,
Department of Health,Salisbury NHS Foundation Trust,02/10/2020,DISPOSABLE THEATRE DRAPES WIPES,Medicine,NHS LOGISTICS,1121102380,19.51,
Department of Health,Salisbury NHS Foundation Trust,02/10/2020,DRESSINGS - PRE STERILE,Musculo-Skeletal,NHS LOGISTICS,1121102380,15.12,
Department of Health,Salisbury NHS Foundation Trust,02/10/2020,DRESSINGS - PRE STERILE,Musculo-Skeletal,NHS LOGISTICS,1121102380,6.3,
Department of Health,Salisbury NHS Foundation Trust,02/10/2020,DRESSINGS - PRE STERILE,Musculo-Skeletal,NHS LOGISTICS,1121102380,2.8,
Department of Health,Salisbury NHS Foundation Trust,02/10/2020,DRESSINGS - PRE STERILE,Musculo-Skeletal,NHS LOGISTICS,1121102380,12.05,
Department of Health,Salisbury NHS Foundation Trust,02/10/2020,DISPOSABLE THEATRE DRAPES WIPES,Musculo-Skeletal,NHS LOGISTICS,1121102380,1.73,
Department of Health,Salisbury NHS Foundation Trust,02/10/2020,PATIENT APPLIANCES,Musculo-Skeletal,NHS LOGISTICS,1121102380,4.65,
Department of Health,Salisbury NHS Foundation Trust,02/10/2020,PATIENT APPLIANCES,Musculo-Skeletal,NHS LOGISTICS,1121102380,9.3,
Department of Health,Salisbury NHS Foundation Trust,02/10/2020,PATIENT APPLIANCES,Musculo-Skeletal,NHS LOGISTICS,1121102380,9.3,
Department of Health,Salisbury NHS Foundation Trust,02/10/2020,PATIENT APPLIANCES,Musculo-Skeletal,NHS LOGISTICS,1121102380,13.95,
Department of Health,Salisbury NHS Foundation Trust,02/10/2020,PATIENT APPLIANCES,Musculo-Skeletal,NHS LOGISTICS,1121102380,13.95,
Department of Health,Salisbury NHS Foundation Trust,02/10/2020,PATIENT APPLIANCES,Musculo-Skeletal,NHS LOGISTICS,1121102380,9.3,
Department of Health,Salisbury NHS Foundation Trust,02/10/2020,DRESSINGS  -  PROCEDURE PACKS,Musculo-Skeletal,NHS LOGISTICS,1121102380,3.94,
Department of Health,Salisbury NHS Foundation Trust,02/10/2020,DRESSINGS - PRE STERILE,Musculo-Skeletal,NHS LOGISTICS,1121102380,3.34,
Department of Health,Salisbury NHS Foundation Trust,02/10/2020,DRESSINGS - PRE STERILE,Musculo-Skeletal,NHS LOGISTICS,1121102380,0.71,
Department of Health,Salisbury NHS Foundation Trust,02/10/2020,PATIENT APPLIANCES,Musculo-Skeletal,NHS LOGISTICS,1121102380,14,
Department of Health,Salisbury NHS Foundation Trust,02/10/2020,PATIENT APPLIANCES,Musculo-Skeletal,NHS LOGISTICS,1121102380,14,
Department of Health,Salisbury NHS Foundation Trust,02/10/2020,DRESSINGS - PRE STERILE,Musculo-Skeletal,NHS LOGISTICS,1121102380,18,
Department of Health,Salisbury NHS Foundation Trust,02/10/2020,DRESSINGS - PRE STERILE,Musculo-Skeletal,NHS LOGISTICS,1121102380,18,
Department of Health,Salisbury NHS Foundation Trust,02/10/2020,DRESSINGS - PRE STERILE,Musculo-Skeletal,NHS LOGISTICS,1121102380,41.5,
Department of Health,Salisbury NHS Foundation Trust,02/10/2020,DRESSINGS  -  PROCEDURE PACKS,Musculo-Skeletal,NHS LOGISTICS,1121102380,6.4,
Department of Health,Salisbury NHS Foundation Trust,02/10/2020,DRESSINGS - PRE STERILE,Musculo-Skeletal,NHS LOGISTICS,1121102380,6.1,
Department of Health,Salisbury NHS Foundation Trust,02/10/2020,DISPOSABLE THEATRE DRAPES WIPES,Musculo-Skeletal,NHS LOGISTICS,1121102380,19.51,
Department of Health,Salisbury NHS Foundation Trust,02/10/2020,PATIENT APPLIANCES,Musculo-Skeletal,NHS LOGISTICS,1121102380,200,
Department of Health,Salisbury NHS Foundation Trust,02/10/2020,PATIENT APPLIANCES,Musculo-Skeletal,NHS LOGISTICS,1121102380,25.9,
Department of Health,Salisbury NHS Foundation Trust,02/10/2020,TISSUES HAND TOWELS & TOILET PAPER,Surgery,NHS LOGISTICS,1121102380,10.53,
Department of Health,Salisbury NHS Foundation Trust,02/10/2020,DRESSINGS - PRE STERILE,Surgery,NHS LOGISTICS,1121102380,14.31,
Department of Health,Salisbury NHS Foundation Trust,02/10/2020,DRESSINGS - PRE STERILE,Surgery,NHS LOGISTICS,1121102380,7.25,
Department of Health,Salisbury NHS Foundation Trust,02/10/2020,MED SURG EQUIP REP MAINT CLEANING,Medicine,NHS LOGISTICS,1121102380,150,
Department of Health,Salisbury NHS Foundation Trust,02/10/2020,MEDSURGCONS-OTHER,Medicine,NHS LOGISTICS,1121102380,25,
Department of Health,Salisbury NHS Foundation Trust,02/10/2020,MEDSURGCONS-OTHER,Medicine,NHS LOGISTICS,1121102380,248,
Department of Health,Salisbury NHS Foundation Trust,02/10/2020,MEDSURGCONS-OTHER,Medicine,NHS LOGISTICS,1121102380,496,
Department of Health,Salisbury NHS Foundation Trust,02/10/2020,MEDSURGCONS-OTHER,Medicine,NHS LOGISTICS,1121102380,185,
Department of Health,Salisbury NHS Foundation Trust,02/10/2020,MEDSURGCONS-OTHER,Medicine,NHS LOGISTICS,1121102380,640,
Department of Health,Salisbury NHS Foundation Trust,02/10/2020,MEDSURGCONS-OTHER,Medicine,NHS LOGISTICS,1121102380,320,
Department of Health,Salisbury NHS Foundation Trust,02/10/2020,MEDSURGCONS-OTHER,Medicine,NHS LOGISTICS,1121102380,630,
Department of Health,Salisbury NHS Foundation Trust,02/10/2020,MEDSURGCONS-OTHER,Medicine,NHS LOGISTICS,1121102380,70,
Department of Health,Salisbury NHS Foundation Trust,02/10/2020,MEDSURGCONS-OTHER,Medicine,NHS LOGISTICS,1121102380,42,
Department of Health,Salisbury NHS Foundation Trust,02/10/2020,MEDSURGCONS-OTHER,Medicine,NHS LOGISTICS,1121102380,67,
Department of Health,Salisbury NHS Foundation Trust,02/10/2020,OTHER MEDICAL SUPPLIES,Clinical Support,NHS LOGISTICS,1121102380,30.5,
Department of Health,Salisbury NHS Foundation Trust,02/10/2020,OTHER MEDICAL SUPPLIES,Clinical Support,NHS LOGISTICS,1121102380,23,
Department of Health,Salisbury NHS Foundation Trust,02/10/2020,BAGS SACKS - OTHER,Clinical Support,NHS LOGISTICS,1121102380,0.67,
Department of Health,Salisbury NHS Foundation Trust,02/10/2020,DRESSINGS - PRE STERILE,Clinical Support,NHS LOGISTICS,1121102380,0.68,
Department of Health,Salisbury NHS Foundation Trust,02/10/2020,M & S EQUIPELECTEQUIPINST - OTHER,Clinical Support,NHS LOGISTICS,1121102380,6.76,
Department of Health,Salisbury NHS Foundation Trust,02/10/2020,PATIENTS BEDWEAR UNISEX,Clinical Support,NHS LOGISTICS,1121102380,3.75,
Department of Health,Salisbury NHS Foundation Trust,02/10/2020,TUBES,Clinical Support,NHS LOGISTICS,1121102380,0.26,
Department of Health,Salisbury NHS Foundation Trust,02/10/2020,SURGICAL INSTRUMENTS - GENERAL,Clinical Support,NHS LOGISTICS,1121102380,11.55,
Department of Health,Salisbury NHS Foundation Trust,02/10/2020,CLEANING MATERIAL PRODUCTS SUNDRIES,Clinical Support,NHS LOGISTICS,1121102380,6.6,
Department of Health,Salisbury NHS Foundation Trust,02/10/2020,DRESSINGS - PRE STERILE,Clinical Support,NHS LOGISTICS,1121102380,11.9,
Department of Health,Salisbury NHS Foundation Trust,02/10/2020,SURGICAL INSTRUMENTS - GENERAL,Clinical Support,NHS LOGISTICS,1121102380,27.44,
Department of Health,Salisbury NHS Foundation Trust,02/10/2020,OTHER MEDICAL SUPPLIES,Clinical Support,NHS LOGISTICS,1121102380,31.05,
Department of Health,Salisbury NHS Foundation Trust,02/10/2020,M & S EQUIPELECTEQUIPINST - OTHER,Clinical Support,NHS LOGISTICS,1121102380,11.76,
Department of Health,Salisbury NHS Foundation Trust,02/10/2020,MEDSURGCONS-OTHER,Clinical Support,NHS LOGISTICS,1121102380,3.38,
Department of Health,Salisbury NHS Foundation Trust,02/10/2020,MEDSURGCONS-OTHER,Clinical Support,NHS LOGISTICS,1121102380,2.39,
Department of Health,Salisbury NHS Foundation Trust,02/10/2020,MEDSURGCONS-OTHER,Clinical Support,NHS LOGISTICS,1121102380,10,
Department of Health,Salisbury NHS Foundation Trust,02/10/2020,MEDSURGCONS-OTHER,Clinical Support,NHS LOGISTICS,1121102380,1.53,
Department of Health,Salisbury NHS Foundation Trust,02/10/2020,OTHER MEDICAL SUPPLIES,Clinical Support,NHS LOGISTICS,1121102380,1.34,
Department of Health,Salisbury NHS Foundation Trust,02/10/2020,OTHER MEDICAL SUPPLIES,Clinical Support,NHS LOGISTICS,1121102380,3.58,
Department of Health,Salisbury NHS Foundation Trust,02/10/2020,OTHER MEDICAL SUPPLIES,Clinical Support,NHS LOGISTICS,1121102380,137.37,
Department of Health,Salisbury NHS Foundation Trust,02/10/2020,SURGICAL INSTRUMENTS - DISPOSABLE,Clinical Support,NHS LOGISTICS,1121102380,2.25,
Department of Health,Salisbury NHS Foundation Trust,02/10/2020,MEDSURGCONS-OTHER,Clinical Support,NHS LOGISTICS,1121102380,24.15,
Department of Health,Salisbury NHS Foundation Trust,02/10/2020,M & S EQUIPELECTEQUIPINST - OTHER,Clinical Support,NHS LOGISTICS,1121102380,150,
Department of Health,Salisbury NHS Foundation Trust,02/10/2020,OTHER MEDICAL SUPPLIES,Clinical Support,NHS LOGISTICS,1121102380,0.82,
Department of Health,Salisbury NHS Foundation Trust,02/10/2020,OTHER MEDICAL SUPPLIES,Clinical Support,NHS LOGISTICS,1121102380,1.3,
Department of Health,Salisbury NHS Foundation Trust,02/10/2020,MEDSURGCONS-OTHER,Clinical Support,NHS LOGISTICS,1121102380,39.38,
Department of Health,Salisbury NHS Foundation Trust,02/10/2020,DRESSINGS - PRE STERILE,Clinical Support,NHS LOGISTICS,1121102380,2.04,
Department of Health,Salisbury NHS Foundation Trust,02/10/2020,MEDSURGCONS-SUTURES,Clinical Support,NHS LOGISTICS,1121102380,36.37,
Department of Health,Salisbury NHS Foundation Trust,02/10/2020,MEDSURGCONS-SUTURES,Clinical Support,NHS LOGISTICS,1121102380,36.5,
Department of Health,Salisbury NHS Foundation Trust,02/10/2020,DRESSINGS - PRE STERILE,Clinical Support,NHS LOGISTICS,1121102380,20.44,
Department of Health,Salisbury NHS Foundation Trust,02/10/2020,HABERDASHERY,Clinical Support,NHS LOGISTICS,1121102380,4.44,
Department of Health,Salisbury NHS Foundation Trust,02/10/2020,DRESSINGS - PRE STERILE,Clinical Support,NHS LOGISTICS,1121102380,2.84,
Department of Health,Salisbury NHS Foundation Trust,02/10/2020,MEDSURGCONS-OTHER,Clinical Support,NHS LOGISTICS,1121102380,11.2,
Department of Health,Salisbury NHS Foundation Trust,02/10/2020,MEDSURGCONS-OTHER,Clinical Support,NHS LOGISTICS,1121102380,0.78,
Department of Health,Salisbury NHS Foundation Trust,02/10/2020,MEDSURGCONS-OTHER,Clinical Support,NHS LOGISTICS,1121102380,3.24,
Department of Health,Salisbury NHS Foundation Trust,02/10/2020,NON DISPOSABLE BED LINEN,Clinical Support,NHS LOGISTICS,1121102380,33.84,
Department of Health,Salisbury NHS Foundation Trust,02/10/2020,MEDSURGCONS-OTHER,Clinical Support,NHS LOGISTICS,1121102380,3.5,
Department of Health,Salisbury NHS Foundation Trust,02/10/2020,PATIENT APPLIANCES,Clinical Support,NHS LOGISTICS,1121102380,6.14,
Department of Health,Salisbury NHS Foundation Trust,02/10/2020,DRESSINGS  -  PROCEDURE PACKS,Clinical Support,NHS LOGISTICS,1121102380,44.57,
Department of Health,Salisbury NHS Foundation Trust,02/10/2020,DRESSINGS - PRE STERILE,Musculo-Skeletal,NHS LOGISTICS,1121102380,1.46,
Department of Health,Salisbury NHS Foundation Trust,02/10/2020,DRESSINGS - PRE STERILE,Musculo-Skeletal,NHS LOGISTICS,1121102380,7.64,
Department of Health,Salisbury NHS Foundation Trust,02/10/2020,DRESSINGS - PRE STERILE,Musculo-Skeletal,NHS LOGISTICS,1121102380,6.3,
Department of Health,Salisbury NHS Foundation Trust,02/10/2020,DRESSINGS - PRE STERILE,Musculo-Skeletal,NHS LOGISTICS,1121102380,1.82,
Department of Health,Salisbury NHS Foundation Trust,02/10/2020,DRESSINGS - PRE STERILE,Musculo-Skeletal,NHS LOGISTICS,1121102380,6.84,
Department of Health,Salisbury NHS Foundation Trust,02/10/2020,DRESSINGS - PRE STERILE,Musculo-Skeletal,NHS LOGISTICS,1121102380,4.22,
Department of Health,Salisbury NHS Foundation Trust,02/10/2020,DRESSINGS - PRE STERILE,Musculo-Skeletal,NHS LOGISTICS,1121102380,14.84,
Department of Health,Salisbury NHS Foundation Trust,02/10/2020,PATIENT APPLIANCES,Musculo-Skeletal,NHS LOGISTICS,1121102380,23.25,
Department of Health,Salisbury NHS Foundation Trust,02/10/2020,PATIENT APPLIANCES,Musculo-Skeletal,NHS LOGISTICS,1121102380,23.25,
Department of Health,Salisbury NHS Foundation Trust,02/10/2020,PATIENT APPLIANCES,Musculo-Skeletal,NHS LOGISTICS,1121102380,23.25,
Department of Health,Salisbury NHS Foundation Trust,02/10/2020,PATIENT APPLIANCES,Musculo-Skeletal,NHS LOGISTICS,1121102380,23.25,
Department of Health,Salisbury NHS Foundation Trust,02/10/2020,DRESSINGS - PRE STERILE,Musculo-Skeletal,NHS LOGISTICS,1121102380,5.5,
Department of Health,Salisbury NHS Foundation Trust,02/10/2020,DRESSINGS - PRE STERILE,Musculo-Skeletal,NHS LOGISTICS,1121102380,2,
Department of Health,Salisbury NHS Foundation Trust,02/10/2020,DRESSINGS - PRE STERILE,Musculo-Skeletal,NHS LOGISTICS,1121102380,1.69,
Department of Health,Salisbury NHS Foundation Trust,02/10/2020,M & S EQUIPELECTEQUIPINST - OTHER,Musculo-Skeletal,NHS LOGISTICS,1121102380,23.52,
Department of Health,Salisbury NHS Foundation Trust,02/10/2020,MEDSURGCONS-OTHER,Musculo-Skeletal,NHS LOGISTICS,1121102380,3.38,
Department of Health,Salisbury NHS Foundation Trust,02/10/2020,SURGICAL INSTRUMENTS - GENERAL,Musculo-Skeletal,NHS LOGISTICS,1121102380,14.5,
Department of Health,Salisbury NHS Foundation Trust,02/10/2020,PATIENT APPLIANCES,Musculo-Skeletal,NHS LOGISTICS,1121102380,17.5,
Department of Health,Salisbury NHS Foundation Trust,02/10/2020,PATIENT APPLIANCES,Musculo-Skeletal,NHS LOGISTICS,1121102380,17.5,
Department of Health,Salisbury NHS Foundation Trust,02/10/2020,DRESSINGS  -  PROCEDURE PACKS,Musculo-Skeletal,NHS LOGISTICS,1121102380,29,
Department of Health,Salisbury NHS Foundation Trust,02/10/2020,SURGICAL INSTRUMENTS - DISPOSABLE,Musculo-Skeletal,NHS LOGISTICS,1121102380,9,
Department of Health,Salisbury NHS Foundation Trust,02/10/2020,DRUGS,Musculo-Skeletal,NHS LOGISTICS,1121102380,161.62,
Department of Health,Salisbury NHS Foundation Trust,02/10/2020,MEDSURGCONS-OTHER,Musculo-Skeletal,NHS LOGISTICS,1121102380,39.38,
Department of Health,Salisbury NHS Foundation Trust,02/10/2020,MEDSURGCONS-OTHER,Musculo-Skeletal,NHS LOGISTICS,1121102380,39.38,
Department of Health,Salisbury NHS Foundation Trust,02/10/2020,MEDSURGCONS-OTHER,Musculo-Skeletal,NHS LOGISTICS,1121102380,78.76,
Department of Health,Salisbury NHS Foundation Trust,02/10/2020,MEDSURGCONS-SUTURES,Musculo-Skeletal,NHS LOGISTICS,1121102380,62.5,
Department of Health,Salisbury NHS Foundation Trust,02/10/2020,MEDSURGCONS-SUTURES,Musculo-Skeletal,NHS LOGISTICS,1121102380,45.17,
Department of Health,Salisbury NHS Foundation Trust,02/10/2020,DRESSINGS - PRE STERILE,Musculo-Skeletal,NHS LOGISTICS,1121102380,2.84,
Department of Health,Salisbury NHS Foundation Trust,02/10/2020,DRESSINGS - PRE STERILE,Musculo-Skeletal,NHS LOGISTICS,1121102380,3.24,
Department of Health,Salisbury NHS Foundation Trust,02/10/2020,DISPOSABLE THEATRE DRAPES WIPES,Musculo-Skeletal,NHS LOGISTICS,1121102380,19.51,
Department of Health,Salisbury NHS Foundation Trust,02/10/2020,DRESSINGS  -  PROCEDURE PACKS,Musculo-Skeletal,NHS LOGISTICS,1121102380,16.26,
Department of Health,Salisbury NHS Foundation Trust,02/10/2020,OTHER MEDICAL SUPPLIES,Musculo-Skeletal,NHS LOGISTICS,1121102380,13.8,
Department of Health,Salisbury NHS Foundation Trust,02/10/2020,MEDSURGCONS-OTHER,Musculo-Skeletal,NHS LOGISTICS,1121102380,12.76,
Department of Health,Salisbury NHS Foundation Trust,02/10/2020,MEDSURGCONS-OTHER,Musculo-Skeletal,NHS LOGISTICS,1121102380,5.43,
Department of Health,Salisbury NHS Foundation Trust,02/10/2020,DRESSINGS - PRE STERILE,Musculo-Skeletal,NHS LOGISTICS,1121102380,1.42,
Department of Health,Salisbury NHS Foundation Trust,02/10/2020,DRESSINGS  -  PROCEDURE PACKS,Musculo-Skeletal,NHS LOGISTICS,1121102380,1.4,
Department of Health,Salisbury NHS Foundation Trust,02/10/2020,OTHER MEDICAL SUPPLIES,Musculo-Skeletal,NHS LOGISTICS,1121102380,3,
Department of Health,Salisbury NHS Foundation Trust,02/10/2020,MEDSURGCONS-OTHER,Musculo-Skeletal,NHS LOGISTICS,1121102380,5,
Department of Health,Salisbury NHS Foundation Trust,02/10/2020,MEDSURGCONS-OTHER,Musculo-Skeletal,NHS LOGISTICS,1121102380,5.1,
Department of Health,Salisbury NHS Foundation Trust,02/10/2020,OTHER MEDICAL SUPPLIES,Musculo-Skeletal,NHS LOGISTICS,1121102380,1.34,
Department of Health,Salisbury NHS Foundation Trust,02/10/2020,SURGICAL INSTRUMENTS - DISPOSABLE,Musculo-Skeletal,NHS LOGISTICS,1121102380,9,
Department of Health,Salisbury NHS Foundation Trust,02/10/2020,MEDSURGCONS-OTHER,Musculo-Skeletal,NHS LOGISTICS,1121102380,3.53,
Department of Health,Salisbury NHS Foundation Trust,02/10/2020,MEDSURGCONS-OTHER,Musculo-Skeletal,NHS LOGISTICS,1121102380,31.6,
Department of Health,Salisbury NHS Foundation Trust,02/10/2020,TOILETRIES PERSONAL HYGIENE PRODUCT,Musculo-Skeletal,NHS LOGISTICS,1121102380,13.4,
Department of Health,Salisbury NHS Foundation Trust,02/10/2020,TISSUES HAND TOWELS & TOILET PAPER,Musculo-Skeletal,NHS LOGISTICS,1121102380,9.81,
Department of Health,Salisbury NHS Foundation Trust,02/10/2020,M & S EQUIPELECTEQUIPINST - OTHER,Musculo-Skeletal,NHS LOGISTICS,1121102380,23.52,
Department of Health,Salisbury NHS Foundation Trust,02/10/2020,SERVICES FROM NHS BODIES,Musculo-Skeletal,NHS LOGISTICS,1121102380,17.8,
Department of Health,Salisbury NHS Foundation Trust,02/10/2020,MEDSURGCONS-OTHER,Musculo-Skeletal,NHS LOGISTICS,1121102380,5.6,
Department of Health,Salisbury NHS Foundation Trust,02/10/2020,NON DISPOSABLE BED LINEN,Musculo-Skeletal,NHS LOGISTICS,1121102380,45.12,
Department of Health,Salisbury NHS Foundation Trust,02/10/2020,PATIENT APPLIANCES,Musculo-Skeletal,NHS LOGISTICS,1121102380,32.55,
Department of Health,Salisbury NHS Foundation Trust,02/10/2020,PATIENT APPLIANCES,Musculo-Skeletal,NHS LOGISTICS,1121102380,15.35,
Department of Health,Salisbury NHS Foundation Trust,02/10/2020,TOILETRIES PERSONAL HYGIENE PRODUCT,Musculo-Skeletal,NHS LOGISTICS,1121102380,2.7,
Department of Health,Salisbury NHS Foundation Trust,02/10/2020,DISPOSABLE THEATRE DRAPES WIPES,Musculo-Skeletal,NHS LOGISTICS,1121102380,39.02,
Department of Health,Salisbury NHS Foundation Trust,02/10/2020,DRESSINGS  -  PROCEDURE PACKS,Surgery,NHS LOGISTICS,1121102380,1.4,
Department of Health,Salisbury NHS Foundation Trust,02/10/2020,MEDSURGCONS-OTHER,Surgery,NHS LOGISTICS,1121102380,39.38,
Department of Health,Salisbury NHS Foundation Trust,02/10/2020,DRESSINGS - PRE STERILE,Surgery,NHS LOGISTICS,1121102380,0.71,
Department of Health,Salisbury NHS Foundation Trust,02/10/2020,SURGICAL INSTRUMENTS - GENERAL,Surgery,NHS LOGISTICS,1121102380,1.03,
Department of Health,Salisbury NHS Foundation Trust,02/10/2020,DRESSINGS - PRE STERILE,Surgery,NHS LOGISTICS,1121102380,2.64,
Department of Health,Salisbury NHS Foundation Trust,02/10/2020,OTHER MEDICAL SUPPLIES,Surgery,NHS LOGISTICS,1121102380,410,
Department of Health,Salisbury NHS Foundation Trust,02/10/2020,MEDSURGCONS-OTHER,Surgery,NHS LOGISTICS,1121102380,240,
Department of Health,Salisbury NHS Foundation Trust,02/10/2020,LAB EQUIP-LABORATORY APPARATUS,Clinical Support,NHS LOGISTICS,1121102380,57.9,
Department of Health,Salisbury NHS Foundation Trust,02/10/2020,LAB EQUIP-LABORATORY APPARATUS,Clinical Support,NHS LOGISTICS,1121102380,10.87,
Department of Health,Salisbury NHS Foundation Trust,02/10/2020,LAB REAGENTS-BUFFERS COMPUND SOLNS,Clinical Support,NHS LOGISTICS,1121102380,344.1,
Department of Health,Salisbury NHS Foundation Trust,02/10/2020,DISPOSABLE THEATRE DRAPES WIPES,Clinical Support,NHS LOGISTICS,1121102380,12.6,
Department of Health,Salisbury NHS Foundation Trust,02/10/2020,LAB EQUIP-LABORATORY APPARATUS,Clinical Support,NHS LOGISTICS,1121102380,57.9,
Department of Health,Salisbury NHS Foundation Trust,02/10/2020,LAB EQUIP-LABORATORY APPARATUS,Clinical Support,NHS LOGISTICS,1121102380,10.87,
Department of Health,Salisbury NHS Foundation Trust,02/10/2020,LAB REAGENTS-BUFFERS COMPUND SOLNS,Clinical Support,NHS LOGISTICS,1121102380,344.1,
Department of Health,Salisbury NHS Foundation Trust,02/10/2020,DISPOSABLE THEATRE DRAPES WIPES,Clinical Support,NHS LOGISTICS,1121102380,12.6,
Department of Health,Salisbury NHS Foundation Trust,02/10/2020,OTHER MEDICAL SUPPLIES,Surgery,NHS LOGISTICS,1121102380,82,
Department of Health,Salisbury NHS Foundation Trust,02/10/2020,DRESSINGS - PRE STERILE,Surgery,NHS LOGISTICS,1121102380,5.02,
Department of Health,Salisbury NHS Foundation Trust,02/10/2020,DISPOSABLE THEATRE DRAPES WIPES,Surgery,NHS LOGISTICS,1121102380,5.19,
Department of Health,Salisbury NHS Foundation Trust,02/10/2020,PATIENTS INCONTINENCE,Surgery,NHS LOGISTICS,1121102380,2.36,
Department of Health,Salisbury NHS Foundation Trust,02/10/2020,M & S EQUIPELECTEQUIPINST - OTHER,Surgery,NHS LOGISTICS,1121102380,4.75,
Department of Health,Salisbury NHS Foundation Trust,02/10/2020,DRESSINGS - PRE STERILE,Surgery,NHS LOGISTICS,1121102380,0.71,
Department of Health,Salisbury NHS Foundation Trust,02/10/2020,DRESSINGS  -  PROCEDURE PACKS,Surgery,NHS LOGISTICS,1121102380,6.4,
Department of Health,Salisbury NHS Foundation Trust,02/10/2020,MEDSURGCONS-OTHER,Surgery,NHS LOGISTICS,1121102380,4.38,
Department of Health,Salisbury NHS Foundation Trust,02/10/2020,MEDSURGCONS-OTHER,Surgery,NHS LOGISTICS,1121102380,3.53,
Department of Health,Salisbury NHS Foundation Trust,02/10/2020,MEDSURGCONS-OTHER,Surgery,NHS LOGISTICS,1121102380,6.16,
Department of Health,Salisbury NHS Foundation Trust,02/10/2020,TISSUES HAND TOWELS & TOILET PAPER,Surgery,NHS LOGISTICS,1121102380,0.6,
Department of Health,Salisbury NHS Foundation Trust,02/10/2020,TUBES,Surgery,NHS LOGISTICS,1121102380,3,
Department of Health,Salisbury NHS Foundation Trust,02/10/2020,DRESSINGS - PRE STERILE,Musculo-Skeletal,NHS LOGISTICS,1121102380,146.4,
Department of Health,Salisbury NHS Foundation Trust,02/10/2020,MEDSURGCONS-OTHER,Clinical Support,NHS LOGISTICS,1121102380,152.5,
Department of Health,Salisbury NHS Foundation Trust,02/10/2020,DISPOSABLE THEATRE DRAPES WIPES,Facilities,NHS LOGISTICS,1121102380,19.51,
Department of Health,Salisbury NHS Foundation Trust,02/10/2020,PAPER GENERAL STATIONERY SUNDRIES,Clinical Support,NHS LOGISTICS,1121102380,16.06,
Department of Health,Salisbury NHS Foundation Trust,02/10/2020,OTHER MEDICAL SUPPLIES,Clinical Support,NHS LOGISTICS,1121102380,4.6,
Department of Health,Salisbury NHS Foundation Trust,02/10/2020,DISPOSABLE THEATRE DRAPES WIPES,Clinical Support,NHS LOGISTICS,1121102380,19.51,
Department of Health,Salisbury NHS Foundation Trust,02/10/2020,DRESSINGS - PRE STERILE,Clinical Support,NHS LOGISTICS,1121102380,3.54,
Department of Health,Salisbury NHS Foundation Trust,02/10/2020,PATIENT APPLIANCES,Clinical Support,NHS LOGISTICS,1121102380,36.17,
Department of Health,Salisbury NHS Foundation Trust,02/10/2020,PATIENT APPLIANCES,Clinical Support,NHS LOGISTICS,1121102380,6.14,
Department of Health,Salisbury NHS Foundation Trust,02/10/2020,PATIENT APPLIANCES,Clinical Support,NHS LOGISTICS,1121102380,60.57,
Department of Health,Salisbury NHS Foundation Trust,02/10/2020,TISSUES HAND TOWELS & TOILET PAPER,Clinical Support,NHS LOGISTICS,1121102380,8.54,
Department of Health,Salisbury NHS Foundation Trust,02/10/2020,DRESSINGS - PRE STERILE,Clinical Support,NHS LOGISTICS,1121102380,1,
Department of Health,Salisbury NHS Foundation Trust,02/10/2020,PATIENT APPLIANCES,Clinical Support,NHS LOGISTICS,1121102380,19.96,
Department of Health,Salisbury NHS Foundation Trust,02/10/2020,SERVICES FROM NHS BODIES,Clinical Support,NHS LOGISTICS,1121102380,3.56,
Department of Health,Salisbury NHS Foundation Trust,02/10/2020,MEDSURGCONS-OTHER,Clinical Support,NHS LOGISTICS,1121102380,7.78,
Department of Health,Salisbury NHS Foundation Trust,02/10/2020,DRESSINGS - PRE STERILE,Surgery,NHS LOGISTICS,1121102380,7.83,
Department of Health,Salisbury NHS Foundation Trust,02/10/2020,DRESSINGS - PRE STERILE,Surgery,NHS LOGISTICS,1121102380,3.34,
Department of Health,Salisbury NHS Foundation Trust,02/10/2020,OTHER MEDICAL SUPPLIES,Surgery,NHS LOGISTICS,1121102380,6.63,
Department of Health,Salisbury NHS Foundation Trust,02/10/2020,OTHER MEDICAL SUPPLIES,Surgery,NHS LOGISTICS,1121102380,5.36,
Department of Health,Salisbury NHS Foundation Trust,02/10/2020,DRUGS,Surgery,NHS LOGISTICS,1121102380,646.48,
Department of Health,Salisbury NHS Foundation Trust,02/10/2020,BEVERAGES & AMBIENT FOOD,Surgery,NHS LOGISTICS,1121102380,1.71,
Department of Health,Salisbury NHS Foundation Trust,02/10/2020,MEDSURGCONS-OTHER,Surgery,NHS LOGISTICS,1121102380,157.52,
Department of Health,Salisbury NHS Foundation Trust,02/10/2020,MEDSURGCONS-OTHER,Surgery,NHS LOGISTICS,1121102380,157.52,
Department of Health,Salisbury NHS Foundation Trust,02/10/2020,MEDSURGCONS-OTHER,Surgery,NHS LOGISTICS,1121102380,140.96,
Department of Health,Salisbury NHS Foundation Trust,02/10/2020,OTHER MEDICAL SUPPLIES,Surgery,NHS LOGISTICS,1121102380,23,
Department of Health,Salisbury NHS Foundation Trust,02/10/2020,OTHER MEDICAL SUPPLIES,Surgery,NHS LOGISTICS,1121102380,5.4,
Department of Health,Salisbury NHS Foundation Trust,02/10/2020,ANAESTHETIC EQUIPMENT ACCESSORIES,Surgery,NHS LOGISTICS,1121102380,37.8,
Department of Health,Salisbury NHS Foundation Trust,02/10/2020,ANAESTHETIC EQUIPMENT ACCESSORIES,Surgery,NHS LOGISTICS,1121102380,37.8,
Department of Health,Salisbury NHS Foundation Trust,02/10/2020,OTHER MEDICAL SUPPLIES,Surgery,NHS LOGISTICS,1121102380,6,
Department of Health,Salisbury NHS Foundation Trust,02/10/2020,MEDSURGCONS-OTHER,Surgery,NHS LOGISTICS,1121102380,22.5,
Department of Health,Salisbury NHS Foundation Trust,02/10/2020,MEDSURGCONS-OTHER,Surgery,NHS LOGISTICS,1121102380,23,
Department of Health,Salisbury NHS Foundation Trust,02/10/2020,TUBES,Surgery,NHS LOGISTICS,1121102380,12,
Department of Health,Salisbury NHS Foundation Trust,02/10/2020,PATIENTS BABY WEAR,Facilities,NHS LOGISTICS,1121102380,19.98,
Department of Health,Salisbury NHS Foundation Trust,02/10/2020,PATIENTS BABY WEAR,Facilities,NHS LOGISTICS,1121102380,18.51,
Department of Health,Salisbury NHS Foundation Trust,02/10/2020,PATIENTS BABY WEAR,Facilities,NHS LOGISTICS,1121102380,5.94,
Department of Health,Salisbury NHS Foundation Trust,02/10/2020,OTHER MEDICAL SUPPLIES,Facilities,NHS LOGISTICS,1121102380,23,
Department of Health,Salisbury NHS Foundation Trust,02/10/2020,PATIENTS INCONTINENCE,Facilities,NHS LOGISTICS,1121102380,13.12,
Department of Health,Salisbury NHS Foundation Trust,02/10/2020,PATIENTS INCONTINENCE,Facilities,NHS LOGISTICS,1121102380,11.88,
Department of Health,Salisbury NHS Foundation Trust,02/10/2020,TUBES,Facilities,NHS LOGISTICS,1121102380,10.48,
Department of Health,Salisbury NHS Foundation Trust,02/10/2020,MEDSURGCONS-OTHER,Facilities,NHS LOGISTICS,1121102380,4.2,
Department of Health,Salisbury NHS Foundation Trust,02/10/2020,MEDSURGCONS-OTHER,Facilities,NHS LOGISTICS,1121102380,3.38,
Department of Health,Salisbury NHS Foundation Trust,02/10/2020,MEDSURGCONS-OTHER,Facilities,NHS LOGISTICS,1121102380,5.43,
Department of Health,Salisbury NHS Foundation Trust,02/10/2020,MEDSURGCONS-OTHER,Facilities,NHS LOGISTICS,1121102380,2.39,
Department of Health,Salisbury NHS Foundation Trust,02/10/2020,DRESSINGS  -  PROCEDURE PACKS,Facilities,NHS LOGISTICS,1121102380,1.75,
Department of Health,Salisbury NHS Foundation Trust,02/10/2020,MEDSURGCONS-OTHER,Facilities,NHS LOGISTICS,1121102380,10,
Department of Health,Salisbury NHS Foundation Trust,02/10/2020,MEDSURGCONS-OTHER,Facilities,NHS LOGISTICS,1121102380,23,
Department of Health,Salisbury NHS Foundation Trust,02/10/2020,TOILETRIES PERSONAL HYGIENE PRODUCT,Facilities,NHS LOGISTICS,1121102380,3.26,
Department of Health,Salisbury NHS Foundation Trust,02/10/2020,DRESSINGS - PRE STERILE,Facilities,NHS LOGISTICS,1121102380,4.08,
Department of Health,Salisbury NHS Foundation Trust,02/10/2020,MEDSURGCONS-OTHER,Facilities,NHS LOGISTICS,1121102380,11.2,
Department of Health,Salisbury NHS Foundation Trust,02/10/2020,NON DISPOSABLE BED LINEN,Facilities,NHS LOGISTICS,1121102380,5.64,
Department of Health,Salisbury NHS Foundation Trust,02/10/2020,DISPOSABLE THEATRE DRAPES WIPES,Facilities,NHS LOGISTICS,1121102380,39.02,
Department of Health,Salisbury NHS Foundation Trust,02/10/2020,OTHER MEDICAL SUPPLIES,Medicine,NHS LOGISTICS,1121102380,23,
Department of Health,Salisbury NHS Foundation Trust,02/10/2020,PATIENTS INCONTINENCE,Medicine,NHS LOGISTICS,1121102380,6.56,
Department of Health,Salisbury NHS Foundation Trust,02/10/2020,PATIENTS INCONTINENCE,Medicine,NHS LOGISTICS,1121102380,5.94,
Department of Health,Salisbury NHS Foundation Trust,02/10/2020,DRESSINGS - PRE STERILE,Medicine,NHS LOGISTICS,1121102380,1.46,
Department of Health,Salisbury NHS Foundation Trust,02/10/2020,DRESSINGS - PRE STERILE,Medicine,NHS LOGISTICS,1121102380,3.82,
Department of Health,Salisbury NHS Foundation Trust,02/10/2020,CLEANING MATERIAL PRODUCTS SUNDRIES,Medicine,NHS LOGISTICS,1121102380,4.25,
Department of Health,Salisbury NHS Foundation Trust,02/10/2020,DRESSINGS - PRE STERILE,Medicine,NHS LOGISTICS,1121102380,11.9,
Department of Health,Salisbury NHS Foundation Trust,02/10/2020,M & S EQUIPELECTEQUIPINST - OTHER,Medicine,NHS LOGISTICS,1121102380,1.7,
Department of Health,Salisbury NHS Foundation Trust,02/10/2020,PATIENTS INCONTINENCE,Medicine,NHS LOGISTICS,1121102380,2.36,
Department of Health,Salisbury NHS Foundation Trust,02/10/2020,MEDSURGCONS-OTHER,Medicine,NHS LOGISTICS,1121102380,3.38,
Department of Health,Salisbury NHS Foundation Trust,02/10/2020,MEDSURGCONS-OTHER,Medicine,NHS LOGISTICS,1121102380,2.39,
Department of Health,Salisbury NHS Foundation Trust,02/10/2020,M & S EQUIPELECTEQUIPINST - OTHER,Medicine,NHS LOGISTICS,1121102380,4.75,
Department of Health,Salisbury NHS Foundation Trust,02/10/2020,DRESSINGS - PRE STERILE,Medicine,NHS LOGISTICS,1121102380,0.71,
Department of Health,Salisbury NHS Foundation Trust,02/10/2020,DRESSINGS  -  PROCEDURE PACKS,Medicine,NHS LOGISTICS,1121102380,3.2,
Department of Health,Salisbury NHS Foundation Trust,02/10/2020,DRESSINGS  -  PROCEDURE PACKS,Medicine,NHS LOGISTICS,1121102380,1.75,
Department of Health,Salisbury NHS Foundation Trust,02/10/2020,TOILETRIES PERSONAL HYGIENE PRODUCT,Medicine,NHS LOGISTICS,1121102380,1.77,
Department of Health,Salisbury NHS Foundation Trust,02/10/2020,MEDSURGCONS-OTHER,Medicine,NHS LOGISTICS,1121102380,5,
Department of Health,Salisbury NHS Foundation Trust,02/10/2020,OTHER MEDICAL SUPPLIES,Medicine,NHS LOGISTICS,1121102380,7.12,
Department of Health,Salisbury NHS Foundation Trust,02/10/2020,OTHER MEDICAL SUPPLIES,Medicine,NHS LOGISTICS,1121102380,2.68,
Department of Health,Salisbury NHS Foundation Trust,02/10/2020,SURGICAL INSTRUMENTS - DISPOSABLE,Medicine,NHS LOGISTICS,1121102380,2.25,
Department of Health,Salisbury NHS Foundation Trust,02/10/2020,DRESSINGS - PRE STERILE,Medicine,NHS LOGISTICS,1121102380,2.04,
Department of Health,Salisbury NHS Foundation Trust,02/10/2020,MEDSURGCONS-OTHER,Medicine,NHS LOGISTICS,1121102380,5.6,
Department of Health,Salisbury NHS Foundation Trust,02/10/2020,TISSUES HAND TOWELS & TOILET PAPER,Medicine,NHS LOGISTICS,1121102380,1.2,
Department of Health,Salisbury NHS Foundation Trust,02/10/2020,MEDSURGCONS-OTHER,Medicine,NHS LOGISTICS,1121102380,0.78,
Department of Health,Salisbury NHS Foundation Trust,02/10/2020,DRESSINGS - PRE STERILE,Medicine,NHS LOGISTICS,1121102380,3.83,
Department of Health,Salisbury NHS Foundation Trust,02/10/2020,NON DISPOSABLE BED LINEN,Medicine,NHS LOGISTICS,1121102380,5.64,
Department of Health,Salisbury NHS Foundation Trust,02/10/2020,DISPOSABLE THEATRE DRAPES WIPES,Medicine,NHS LOGISTICS,1121102380,19.51,
Department of Health,Salisbury NHS Foundation Trust,02/10/2020,OTHER MEDICAL SUPPLIES,Medicine,NHS LOGISTICS,1121102380,41,
Department of Health,Salisbury NHS Foundation Trust,02/10/2020,PATIENTS INCONTINENCE,Medicine,NHS LOGISTICS,1121102380,6.56,
Department of Health,Salisbury NHS Foundation Trust,02/10/2020,BAGS SACKS - OTHER,Medicine,NHS LOGISTICS,1121102380,6.4,
Department of Health,Salisbury NHS Foundation Trust,02/10/2020,DRESSINGS - PRE STERILE,Medicine,NHS LOGISTICS,1121102380,4.08,
Department of Health,Salisbury NHS Foundation Trust,02/10/2020,DRESSINGS - PRE STERILE,Medicine,NHS LOGISTICS,1121102380,1.46,
Department of Health,Salisbury NHS Foundation Trust,02/10/2020,DRESSINGS - PRE STERILE,Medicine,NHS LOGISTICS,1121102380,1,
Department of Health,Salisbury NHS Foundation Trust,02/10/2020,DRESSINGS - PRE STERILE,Medicine,NHS LOGISTICS,1121102380,1.18,
Department of Health,Salisbury NHS Foundation Trust,02/10/2020,DRESSINGS - PRE STERILE,Medicine,NHS LOGISTICS,1121102380,6.3,
Department of Health,Salisbury NHS Foundation Trust,02/10/2020,TOILETRIES PERSONAL HYGIENE PRODUCT,Medicine,NHS LOGISTICS,1121102380,10.05,
Department of Health,Salisbury NHS Foundation Trust,02/10/2020,MEDSURGCONS-OTHER,Medicine,NHS LOGISTICS,1121102380,27.3,
Department of Health,Salisbury NHS Foundation Trust,02/10/2020,PATIENT APPLIANCES,Medicine,NHS LOGISTICS,1121102380,58.51,
Department of Health,Salisbury NHS Foundation Trust,02/10/2020,DRESSINGS - PRE STERILE,Medicine,NHS LOGISTICS,1121102380,2.75,
Department of Health,Salisbury NHS Foundation Trust,02/10/2020,DRESSINGS - PRE STERILE,Medicine,NHS LOGISTICS,1121102380,1,
Department of Health,Salisbury NHS Foundation Trust,02/10/2020,DRESSINGS - PRE STERILE,Medicine,NHS LOGISTICS,1121102380,35.7,
Department of Health,Salisbury NHS Foundation Trust,02/10/2020,MEDSURGCONS-OTHER,Medicine,NHS LOGISTICS,1121102380,7,
Department of Health,Salisbury NHS Foundation Trust,02/10/2020,OTHER MEDICAL SUPPLIES,Medicine,NHS LOGISTICS,1121102380,10.35,
Department of Health,Salisbury NHS Foundation Trust,02/10/2020,M & S EQUIPELECTEQUIPINST - OTHER,Medicine,NHS LOGISTICS,1121102380,3.4,
Department of Health,Salisbury NHS Foundation Trust,02/10/2020,TISSUES HAND TOWELS & TOILET PAPER,Medicine,NHS LOGISTICS,1121102380,3,
Department of Health,Salisbury NHS Foundation Trust,02/10/2020,PATIENTS INCONTINENCE,Medicine,NHS LOGISTICS,1121102380,1.98,
Department of Health,Salisbury NHS Foundation Trust,02/10/2020,MEDSURGCONS-OTHER,Medicine,NHS LOGISTICS,1121102380,25.4,
Department of Health,Salisbury NHS Foundation Trust,02/10/2020,M & S EQUIPELECTEQUIPINST - OTHER,Medicine,NHS LOGISTICS,1121102380,11.76,
Department of Health,Salisbury NHS Foundation Trust,02/10/2020,MEDSURGCONS-OTHER,Medicine,NHS LOGISTICS,1121102380,6.76,
Department of Health,Salisbury NHS Foundation Trust,02/10/2020,TUBES,Medicine,NHS LOGISTICS,1121102380,5.82,
Department of Health,Salisbury NHS Foundation Trust,02/10/2020,M & S EQUIPELECTEQUIPINST - OTHER,Medicine,NHS LOGISTICS,1121102380,4.75,
Department of Health,Salisbury NHS Foundation Trust,02/10/2020,DRESSINGS - PRE STERILE,Medicine,NHS LOGISTICS,1121102380,5.68,
Department of Health,Salisbury NHS Foundation Trust,02/10/2020,OTHER MEDICAL SUPPLIES,Medicine,NHS LOGISTICS,1121102380,2.8,
Department of Health,Salisbury NHS Foundation Trust,02/10/2020,MEDSURGCONS-OTHER,Medicine,NHS LOGISTICS,1121102380,69,
Department of Health,Salisbury NHS Foundation Trust,02/10/2020,OTHER MEDICAL SUPPLIES,Medicine,NHS LOGISTICS,1121102380,2.68,
Department of Health,Salisbury NHS Foundation Trust,02/10/2020,OTHER MEDICAL SUPPLIES,Medicine,NHS LOGISTICS,1121102380,3.58,
Department of Health,Salisbury NHS Foundation Trust,02/10/2020,SURGICAL INSTRUMENTS - DISPOSABLE,Medicine,NHS LOGISTICS,1121102380,4.5,
Department of Health,Salisbury NHS Foundation Trust,02/10/2020,DRESSINGS - PRE STERILE,Medicine,NHS LOGISTICS,1121102380,26.67,
Department of Health,Salisbury NHS Foundation Trust,02/10/2020,MEDSURGCONS-OTHER,Medicine,NHS LOGISTICS,1121102380,12,
Department of Health,Salisbury NHS Foundation Trust,02/10/2020,DRESSINGS - PRE STERILE,Medicine,NHS LOGISTICS,1121102380,2.76,
Department of Health,Salisbury NHS Foundation Trust,02/10/2020,MEDSURGCONS-OTHER,Medicine,NHS LOGISTICS,1121102380,22.37,
Department of Health,Salisbury NHS Foundation Trust,02/10/2020,MEDSURGCONS-OTHER,Medicine,NHS LOGISTICS,1121102380,11.63,
Department of Health,Salisbury NHS Foundation Trust,02/10/2020,TUBES,Medicine,NHS LOGISTICS,1121102380,2,
Department of Health,Salisbury NHS Foundation Trust,02/10/2020,NON DISPOSABLE BED LINEN,Medicine,NHS LOGISTICS,1121102380,2.82,
Department of Health,Salisbury NHS Foundation Trust,02/10/2020,DISPOSABLE THEATRE DRAPES WIPES,Medicine,NHS LOGISTICS,1121102380,58.53,
Department of Health,Salisbury NHS Foundation Trust,02/10/2020,OTHER MEDICAL SUPPLIES,Surgery,NHS LOGISTICS,1121102380,36.4,
Department of Health,Salisbury NHS Foundation Trust,02/10/2020,OTHER MEDICAL SUPPLIES,Surgery,NHS LOGISTICS,1121102380,7.6,
Department of Health,Salisbury NHS Foundation Trust,02/10/2020,OTHER MEDICAL SUPPLIES,Surgery,NHS LOGISTICS,1121102380,23,
Department of Health,Salisbury NHS Foundation Trust,02/10/2020,TUBES,Surgery,NHS LOGISTICS,1121102380,5.24,
Department of Health,Salisbury NHS Foundation Trust,02/10/2020,ELECTRICAL EQUIPMENT,Surgery,NHS LOGISTICS,1121102380,1.48,
Department of Health,Salisbury NHS Foundation Trust,02/10/2020,MEDSURGCONS-OTHER,Surgery,NHS LOGISTICS,1121102380,13.52,
Department of Health,Salisbury NHS Foundation Trust,02/10/2020,MEDSURGCONS-OTHER,Surgery,NHS LOGISTICS,1121102380,10.86,
Department of Health,Salisbury NHS Foundation Trust,02/10/2020,DRESSINGS - PRE STERILE,Surgery,NHS LOGISTICS,1121102380,3.55,
Department of Health,Salisbury NHS Foundation Trust,02/10/2020,DRESSINGS  -  PROCEDURE PACKS,Surgery,NHS LOGISTICS,1121102380,29,
Department of Health,Salisbury NHS Foundation Trust,02/10/2020,OTHER MEDICAL SUPPLIES,Surgery,NHS LOGISTICS,1121102380,23.94,
Department of Health,Salisbury NHS Foundation Trust,02/10/2020,MEDSURGCONS-SUTURES,Surgery,NHS LOGISTICS,1121102380,46.34,
Department of Health,Salisbury NHS Foundation Trust,02/10/2020,MEDSURGCONS-OTHER,Surgery,NHS LOGISTICS,1121102380,88,
Department of Health,Salisbury NHS Foundation Trust,02/10/2020,DRESSINGS - PRE STERILE,Surgery,NHS LOGISTICS,1121102380,8.7,
Department of Health,Salisbury NHS Foundation Trust,02/10/2020,MEDSURGCONS-OTHER,Surgery,NHS LOGISTICS,1121102380,5.6,
Department of Health,Salisbury NHS Foundation Trust,02/10/2020,MEDSURGCONS-OTHER,Surgery,NHS LOGISTICS,1121102380,56,
Department of Health,Salisbury NHS Foundation Trust,02/10/2020,MEDSURGCONS-OTHER,Surgery,NHS LOGISTICS,1121102380,36,
Department of Health,Salisbury NHS Foundation Trust,02/10/2020,MEDSURGCONS-OTHER,Musculo-Skeletal,NHS LOGISTICS,1121102380,8.21,
Department of Health,Salisbury NHS Foundation Trust,02/10/2020,MEDSURGCONS-OTHER,Musculo-Skeletal,NHS LOGISTICS,1121102380,14.54,
Department of Health,Salisbury NHS Foundation Trust,02/10/2020,DRESSINGS - PRE STERILE,Surgery,NHS LOGISTICS,1121102380,191.7,
Department of Health,Salisbury NHS Foundation Trust,02/10/2020,DRESSINGS - PRE STERILE,Surgery,NHS LOGISTICS,1121102380,1.46,
Department of Health,Salisbury NHS Foundation Trust,02/10/2020,DRESSINGS - PRE STERILE,Surgery,NHS LOGISTICS,1121102380,2.72,
Department of Health,Salisbury NHS Foundation Trust,02/10/2020,HEALTHCARE - WEAR,Surgery,NHS LOGISTICS,1121102380,58.8,
Department of Health,Salisbury NHS Foundation Trust,02/10/2020,HEALTHCARE - WEAR,Surgery,NHS LOGISTICS,1121102380,88.14,
Department of Health,Salisbury NHS Foundation Trust,02/10/2020,TOILETRIES PERSONAL HYGIENE PRODUCT,Surgery,NHS LOGISTICS,1121102380,13.4,
Department of Health,Salisbury NHS Foundation Trust,02/10/2020,SURGICAL INSTRUMENTS - GENERAL,Surgery,NHS LOGISTICS,1121102380,39,
Department of Health,Salisbury NHS Foundation Trust,02/10/2020,SURGICAL INSTRUMENTS - GENERAL,Surgery,NHS LOGISTICS,1121102380,18.5,
Department of Health,Salisbury NHS Foundation Trust,02/10/2020,DRESSINGS - PRE STERILE,Surgery,NHS LOGISTICS,1121102380,7,
Department of Health,Salisbury NHS Foundation Trust,02/10/2020,DRESSINGS - PRE STERILE,Surgery,NHS LOGISTICS,1121102380,5.86,
Department of Health,Salisbury NHS Foundation Trust,02/10/2020,BEVERAGES & AMBIENT FOOD,Surgery,NHS LOGISTICS,1121102380,7.81,
Department of Health,Salisbury NHS Foundation Trust,02/10/2020,TUBES,Surgery,NHS LOGISTICS,1121102380,48.4,
Department of Health,Salisbury NHS Foundation Trust,02/10/2020,DRUGS,Surgery,NHS LOGISTICS,1121102380,20.05,
Department of Health,Salisbury NHS Foundation Trust,02/10/2020,SURGICAL INSTRUMENTS - DISPOSABLE,Surgery,NHS LOGISTICS,1121102380,4.5,
Department of Health,Salisbury NHS Foundation Trust,02/10/2020,DRUGS,Surgery,NHS LOGISTICS,1121102380,646.48,
Department of Health,Salisbury NHS Foundation Trust,02/10/2020,BEVERAGES & AMBIENT FOOD,Surgery,NHS LOGISTICS,1121102380,1.14,
Department of Health,Salisbury NHS Foundation Trust,02/10/2020,MEDSURGCONS-OTHER,Surgery,NHS LOGISTICS,1121102380,39.38,
Department of Health,Salisbury NHS Foundation Trust,02/10/2020,MEDSURGCONS-OTHER,Surgery,NHS LOGISTICS,1121102380,39.38,
Department of Health,Salisbury NHS Foundation Trust,02/10/2020,MEDSURGCONS-OTHER,Surgery,NHS LOGISTICS,1121102380,39.38,
Department of Health,Salisbury NHS Foundation Trust,02/10/2020,MEDSURGCONS-OTHER,Surgery,NHS LOGISTICS,1121102380,78.76,
Department of Health,Salisbury NHS Foundation Trust,02/10/2020,MEDSURGCONS-OTHER,Surgery,NHS LOGISTICS,1121102380,78.76,
Department of Health,Salisbury NHS Foundation Trust,02/10/2020,MEDSURGCONS-OTHER,Surgery,NHS LOGISTICS,1121102380,39.38,
Department of Health,Salisbury NHS Foundation Trust,02/10/2020,DRESSINGS - PRE STERILE,Surgery,NHS LOGISTICS,1121102380,2.04,
Department of Health,Salisbury NHS Foundation Trust,02/10/2020,MEDSURGCONS-SUTURES,Surgery,NHS LOGISTICS,1121102380,29.97,
Department of Health,Salisbury NHS Foundation Trust,02/10/2020,MEDSURGCONS-SUTURES,Surgery,NHS LOGISTICS,1121102380,126.81,
Department of Health,Salisbury NHS Foundation Trust,02/10/2020,MEDSURGCONS-SUTURES,Surgery,NHS LOGISTICS,1121102380,49.76,
Department of Health,Salisbury NHS Foundation Trust,02/10/2020,MEDSURGCONS-SUTURES,Surgery,NHS LOGISTICS,1121102380,21.6,
Department of Health,Salisbury NHS Foundation Trust,02/10/2020,MEDSURGCONS-SUTURES,Surgery,NHS LOGISTICS,1121102380,45.17,
Department of Health,Salisbury NHS Foundation Trust,02/10/2020,BEVERAGES & AMBIENT FOOD,Surgery,NHS LOGISTICS,1121102380,5.76,
Department of Health,Salisbury NHS Foundation Trust,02/10/2020,TUBES,Surgery,NHS LOGISTICS,1121102380,4.6,
Department of Health,Salisbury NHS Foundation Trust,02/10/2020,TUBES,Surgery,NHS LOGISTICS,1121102380,15,
Department of Health,Salisbury NHS Foundation Trust,02/10/2020,NON DISPOSABLE BED LINEN,Surgery,NHS LOGISTICS,1121102380,5.64,
Department of Health,Salisbury NHS Foundation Trust,02/10/2020,CLEANING MATERIAL PRODUCTS SUNDRIES,Surgery,NHS LOGISTICS,1121102380,3.92,
Department of Health,Salisbury NHS Foundation Trust,02/10/2020,DISPOSABLE THEATRE DRAPES WIPES,Surgery,NHS LOGISTICS,1121102380,19.51,
Department of Health,Salisbury NHS Foundation Trust,02/10/2020,MEDSURGCONS-LAPAROSCOPIC EQUIPMENT,Surgery,NHS LOGISTICS,1121102380,114,
Department of Health,Salisbury NHS Foundation Trust,02/10/2020,MEDSURGCONS-OTHER,Surgery,NHS LOGISTICS,1121102380,120,
Department of Health,Salisbury NHS Foundation Trust,02/10/2020,M & S EQUIPELECTEQUIPINST - OTHER,Surgery,NHS LOGISTICS,1121102380,1358.72,
Department of Health,Salisbury NHS Foundation Trust,02/10/2020,TISSUES HAND TOWELS & TOILET PAPER,Clinical Support,NHS LOGISTICS,1121102380,31.59,
Department of Health,Salisbury NHS Foundation Trust,02/10/2020,TISSUES HAND TOWELS & TOILET PAPER,Clinical Support,NHS LOGISTICS,1121102380,0.81,
Department of Health,Salisbury NHS Foundation Trust,02/10/2020,OTHER MEDICAL SUPPLIES,Clinical Support,NHS LOGISTICS,1121102380,7.12,
Department of Health,Salisbury NHS Foundation Trust,02/10/2020,TISSUES HAND TOWELS & TOILET PAPER,Clinical Support,NHS LOGISTICS,1121102380,1.22,
Department of Health,Salisbury NHS Foundation Trust,02/10/2020,MEDSURGCONS-OTHER,Clinical Support,NHS LOGISTICS,1121102380,3.38,
Department of Health,Salisbury NHS Foundation Trust,02/10/2020,M & S EQUIPELECTEQUIPINST - OTHER,Clinical Support,NHS LOGISTICS,1121102380,0.61,
Department of Health,Salisbury NHS Foundation Trust,02/10/2020,NON DISPOSABLE BED LINEN,Clinical Support,NHS LOGISTICS,1121102380,5.64,
Department of Health,Salisbury NHS Foundation Trust,02/10/2020,DISPOSABLE THEATRE DRAPES WIPES,Clinical Support,NHS LOGISTICS,1121102380,19.51,
Department of Health,Salisbury NHS Foundation Trust,02/10/2020,OTHER MEDICAL SUPPLIES,Clinical Support,NHS LOGISTICS,1121102380,17,
Department of Health,Salisbury NHS Foundation Trust,02/10/2020,SURGICAL INSTRUMENTS - GENERAL,Clinical Support,NHS LOGISTICS,1121102380,18.5,
Department of Health,Salisbury NHS Foundation Trust,02/10/2020,SURGICAL INSTRUMENTS - GENERAL,Clinical Support,NHS LOGISTICS,1121102380,64.6,
Department of Health,Salisbury NHS Foundation Trust,02/10/2020,OTHER MEDICAL SUPPLIES,Clinical Support,NHS LOGISTICS,1121102380,31.05,
Department of Health,Salisbury NHS Foundation Trust,02/10/2020,DRESSINGS  -  PROCEDURE PACKS,Clinical Support,NHS LOGISTICS,1121102380,0.15,
Department of Health,Salisbury NHS Foundation Trust,02/10/2020,MEDSURGCONS-OTHER,Clinical Support,NHS LOGISTICS,1121102380,3.38,
Department of Health,Salisbury NHS Foundation Trust,02/10/2020,MEDSURGCONS-OTHER,Clinical Support,NHS LOGISTICS,1121102380,5.43,
Department of Health,Salisbury NHS Foundation Trust,02/10/2020,MEDSURGCONS-OTHER,Clinical Support,NHS LOGISTICS,1121102380,1.53,
Department of Health,Salisbury NHS Foundation Trust,02/10/2020,DRESSINGS  -  PROCEDURE PACKS,Clinical Support,NHS LOGISTICS,1121102380,0.63,
Department of Health,Salisbury NHS Foundation Trust,02/10/2020,OTHER MEDICAL SUPPLIES,Clinical Support,NHS LOGISTICS,1121102380,6.68,
Department of Health,Salisbury NHS Foundation Trust,02/10/2020,MEDSURGCONS-OTHER,Clinical Support,NHS LOGISTICS,1121102380,2.5,
Department of Health,Salisbury NHS Foundation Trust,02/10/2020,MEDSURGCONS-OTHER,Clinical Support,NHS LOGISTICS,1121102380,2.55,
Department of Health,Salisbury NHS Foundation Trust,02/10/2020,OTHER MEDICAL SUPPLIES,Clinical Support,NHS LOGISTICS,1121102380,6.63,
Department of Health,Salisbury NHS Foundation Trust,02/10/2020,OTHER MEDICAL SUPPLIES,Clinical Support,NHS LOGISTICS,1121102380,1.34,
Department of Health,Salisbury NHS Foundation Trust,02/10/2020,MEDSURGCONS-OTHER,Clinical Support,NHS LOGISTICS,1121102380,8.05,
Department of Health,Salisbury NHS Foundation Trust,02/10/2020,MEDSURGCONS-OTHER,Clinical Support,NHS LOGISTICS,1121102380,39.38,
Department of Health,Salisbury NHS Foundation Trust,02/10/2020,MEDSURGCONS-OTHER,Clinical Support,NHS LOGISTICS,1121102380,39.38,
Department of Health,Salisbury NHS Foundation Trust,02/10/2020,MEDSURGCONS-OTHER,Clinical Support,NHS LOGISTICS,1121102380,39.38,
Department of Health,Salisbury NHS Foundation Trust,02/10/2020,MEDSURGCONS-SUTURES,Clinical Support,NHS LOGISTICS,1121102380,55.34,
Department of Health,Salisbury NHS Foundation Trust,02/10/2020,MEDSURGCONS-SUTURES,Clinical Support,NHS LOGISTICS,1121102380,75.9,
Department of Health,Salisbury NHS Foundation Trust,02/10/2020,MEDSURGCONS-SUTURES,Clinical Support,NHS LOGISTICS,1121102380,33.11,
Department of Health,Salisbury NHS Foundation Trust,02/10/2020,NON DISPOSABLE BED LINEN,Clinical Support,NHS LOGISTICS,1121102380,8.46,
Department of Health,Salisbury NHS Foundation Trust,02/10/2020,MEDSURGCONS-OTHER,Medicine,NHS LOGISTICS,1121102380,1020,
Department of Health,Salisbury NHS Foundation Trust,02/10/2020,MED PROSTH - PACEMAKERS,Medicine,NHS LOGISTICS,1121102380,400,
